"Fondo/Fund";"COD_LOCALE_PROGETTO/PROJECT-LOCAL-CODE";"Codice Unico Progetto/Unique Project Code";"Codice Fiscale Beneficiario/Beneficiary Fiscal Code";"Nome Beneficiario/beneficiary name";"Denominazione dell'operazione/Operation Name";"Sintesi dell'operazione/Operation Summary";"Data inizio operazione/Operation Start Date";"Data fine operazione/Operation end date";"Spesa ammissibile/Eligible expenditure";"Tasso di cofinanziamento/Union co-financing rate";"cap/postcode";"paese/country";"categoria di operazione/operation category";"data aggiornamento/updating date"
"FSE";"2015-3701/RER";"E39J15000990002";"80152680379";"IRECOOP EMILIA-ROMAGNA SOCIETA' COOPERATIVA";"IncludeRE. Azioni di accompagnamento individuale, formazione in piccoli gruppi, tirocinio, accompagnamento al lavoro nell�Area Urbana di Reggio Emilia - Azione 1";"IncludeRE. Azioni di accompagnamento individuale, formazione in piccoli gruppi, tirocinio, accompagnamento al lavoro nell�Area Urbana di Reggio Emilia - Azione 1, attivit� rivolta a 40 persone costituita da:";13/11/2015 00:00:00;30/4/2018 00:00:00;163460,44;0,50;"008035";"008";"109";"31/10/2019"
"FSE";"2015-3702/RER";"E39J15001330002";"80152680379";"IRECOOP EMILIA-ROMAGNA SOCIETA' COOPERATIVA";"IncludeRE. Azioni di accompagnamento individuale, formazione con certificazione, accompagnamento al lavoro nell�Area Urbana di Reggio Emilia - Azione 2";"IncludeRE. Azioni di accompagnamento individuale, formazione con certificazione, accompagnamento al lavoro nell�Area Urbana di Reggio Emilia - Azione 2, attivit� rivolta a 12 persone costituita da:";13/11/2015 00:00:00;28/2/2017 00:00:00;30911,22;0,50;"008035";"008";"109";"31/10/2019"
"FSE";"2015-3704/RER";"E39J15001000002";"80152680379";"IRECOOP EMILIA-ROMAGNA SOCIETA' COOPERATIVA";"Accompagnamento al lavoro, formazione e tirocini per l'Area Urbana di Piacenza - AZIONE 1";"Accompagnamento al lavoro, formazione e tirocini per l'Area Urbana di Piacenza - AZIONE 1, attivit� rivolta a 23 persone costituita da:";16/11/2015 00:00:00;30/6/2017 00:00:00;80442,99;0,50;"008033";"008";"109";"31/10/2019"
"FSE";"2015-3705/RER";"E39J15001010002";"80152680379";"IRECOOP EMILIA-ROMAGNA SOCIETA' COOPERATIVA";"Accompagnamento al lavoro, formazione e tirocini per l'Area Urbana di Parma - AZIONE 1";"Accompagnamento al lavoro, formazione e tirocini per l'Area Urbana di Parma - AZIONE 1, attivit� rivolta a 30 persone costituita da:";30/11/2015 00:00:00;21/12/2017 00:00:00;143814,00;0,50;"008034";"008";"109";"31/10/2019"
"FSE";"2015-3706/RER";"E39J15001020002";"80152680379";"IRECOOP EMILIA-ROMAGNA SOCIETA' COOPERATIVA";"Accompagnamento individuale, formazione in piccoli gruppi, tirocinio, accompagnamento al lavoro- Area Urbana di Modena- Azione 1";"Accompagnamento individuale, formazione in piccoli gruppi, tirocinio, accompagnamento al lavoro- Area Urbana di Modena- Azione 1, attivit� rivolta a 16 persone costituita da:";8/2/2016 00:00:00;28/2/2017 00:00:00;63903,40;0,50;"008036";"008";"109";"31/10/2019"
"FSE";"2015-3708/RER";"E39J15001030002";"80152680379";"IRECOOP EMILIA-ROMAGNA SOCIETA' COOPERATIVA";"PERCORSI DI INCLUSIONE SOCIO LAVORATIVA NEL TERRITORIO DEL DELTA - Azione 1";"PERCORSI DI INCLUSIONE SOCIO LAVORATIVA NEL TERRITORIO DEL DELTA - Azione 1, attivit� rivolta a 22 persone costituita da:";13/11/2015 00:00:00;31/1/2017 00:00:00;90769,40;0,50;"008038";"008";"109";"31/10/2019"
"FSE";"2015-3709/RER";"E39J15001340002";"80152680379";"IRECOOP EMILIA-ROMAGNA SOCIETA' COOPERATIVA";"GESTIONE DEL MAGAZZINO - AREA URBANA DI PIACENZA - AZIONE 2";"GESTIONE DEL MAGAZZINO - AREA URBANA DI PIACENZA - AZIONE 2, attivit� rivolta a 12 persone costituita da:";1/12/2015 00:00:00;31/12/2016 00:00:00;52302,30;0,50;"008033";"008";"109";"31/10/2019"
"FSE";"2015-3710/RER";"E39J15001350002";"80152680379";"IRECOOP EMILIA-ROMAGNA SOCIETA' COOPERATIVA";"OPERATORE DI MAGAZZINO MERCI: UC 1 e UC 3. AREA URBANA DI PARMA  - AZIONE 2";"OPERATORE DI MAGAZZINO MERCI: UC 1 e UC 3. AREA URBANA DI PARMA  - AZIONE 2, attivit� rivolta a 12 persone costituita da:";16/11/2015 00:00:00;26/6/2017 00:00:00;50477,45;0,50;"008034";"008";"109";"31/10/2019"
"FSE";"2015-3834/RER";"E89J15000740002";"01164570358";"CIS  Scuola per la Gestione d'Impresa Societ� consortile a responsabilit� limitata";"Tecnico contabile esperto nel controllo di gestione";"Tecnico contabile esperto nel controllo di gestione, attivit� rivolta a 12 persone costituita da un percorso di formazione di specializzazione per l'area professionale di Amministrazione e controllo d�impresa finalizzato all'acquisizione di un certificato di qualifica di Tecnico contabile. Il corso, della durata di 500 ore, � rivolto a 12 persone.";9/11/2015 00:00:00;13/7/2016 00:00:00;70880,00;0,50;"008035";"008";"102";"31/10/2019"
"FSE";"2015-3836/RER";"E89J15000750002";"01164570358";"CIS  Scuola per la Gestione d'Impresa Societ� consortile a responsabilit� limitata";"TECNICO DI PROGRAMMAZIONE DELLA PRODUZIONE INDUSTRIALE CON COMPETENZE IN LEAN ORGANIZATION";"TECNICO DI PROGRAMMAZIONE DELLA PRODUZIONE INDUSTRIALE CON COMPETENZE IN LEAN ORGANIZATION, attivit� rivolta a 12 persone costituita da un percorso di formazione di specializzazione per l'area professionale di Approvvigionamento e gestione della produzione industriale finalizzato all'acquisizione di un certificato di qualifica di Tecnico di programmazione della produzione industriale. Il corso, della durata di 300 ore, � rivolto a 12 persone.";9/11/2015 00:00:00;1/6/2016 00:00:00;42990,00;0,50;"008035";"008";"102";"31/10/2019"
"FSE";"2015-3838/RER";"E39J15001480002";"01229920333";"TUTOR Societ� Consortile a responsabilit� limitata";"TECNICO NELLE SOLUZIONI ENERGETICHE SISTEMA EDIFICIO IMPIANTO";"TECNICO NELLE SOLUZIONI ENERGETICHE SISTEMA EDIFICIO IMPIANTO, attivit� rivolta a 12 persone costituita da un percorso di formazione di specializzazione per l'area professionale di Sviluppo e gestione dell�energia finalizzato all'acquisizione di un certificato di qualifica di Tecnico nelle soluzioni energetiche sistema edificio impianto. Il corso, della durata di 500 ore, � rivolto a 12 persone.";15/2/2016 00:00:00;17/10/2016 00:00:00;67805,00;0,50;"008033";"008";"102";"31/10/2019"
"FSE";"2015-3841/RER";"E39J15001490002";"01229920333";"TUTOR Societ� Consortile a responsabilit� limitata";"LA LAVORAZIONE DELLE CARNI SUINE SULL�APPENNINO PIACENTINO";"LA LAVORAZIONE DELLE CARNI SUINE SULL�APPENNINO PIACENTINO, attivit� rivolta a 12 persone costituita da un percorso di formazione di accesso all'area professionale di Progettazione e produzione alimentare finalizzato all'acquisizione di un certificato di competenze di Operatore delle lavorazioni carni. Il corso, della durata di 300 ore, � rivolto a 12 persone.";16/11/2015 00:00:00;16/11/2016 00:00:00;35378,00;0,50;"008033";"008";"102";"31/10/2019"
"FSE";"2015-3842/RER";"E39J15001500002";"03121711208";"Oficina Impresa Sociale Srl";"FORMAZIONE TECNICA IN AREA MARKETING E VENDITE PER L'EXPORT";"FORMAZIONE TECNICA IN AREA MARKETING E VENDITE PER L'EXPORT, attivit� rivolta a 24 persone costituita da:";13/11/2015 00:00:00;23/12/2016 00:00:00;98386,00;0,50;"008037";"008";"102";"31/10/2019"
"FSE";"2015-3843/RER";"E39J15001510002";"03121711208";"Oficina Impresa Sociale Srl";"TECNICO DELL'AUTOMAZIONE INDUSTRIALE con specializzazione in architetture PLC e sistemi di motion control";"TECNICO DELL'AUTOMAZIONE INDUSTRIALE con specializzazione in architetture PLC e sistemi di motion control, attivit� rivolta a 12 persone costituita da un percorso di formazione di specializzazione per l'area professionale di Progettazione e produzione meccanica ed elettromeccanica finalizzato all'acquisizione di un certificato di qualifica di Tecnico dell�automazione industriale. Il corso, della durata di 300 ore, � rivolto a 12 persone.";13/11/2015 00:00:00;23/11/2016 00:00:00;41883,00;0,50;"008037";"008";"102";"31/10/2019"
"FSE";"2015-3845/RER";"E79J15000340002";"01149540385";"CONSORZIO FERRARA INNOVAZIONE-Societ� Consortile a responsabilit� limitata ";"TECNICO AMMINISTRAZIONE, FINANZA E CONTROLLO DI GESTIONE - SPECIALIZZAZIONE IN STRUMENTI DERIVATI E MINIBOND";"TECNICO AMMINISTRAZIONE, FINANZA E CONTROLLO DI GESTIONE - SPECIALIZZAZIONE IN STRUMENTI DERIVATI E MINIBOND, attivit� rivolta a 12 persone costituita da un percorso di formazione di specializzazione per l'area professionale di Amministrazione e controllo d�impresa finalizzato all'acquisizione di un certificato di qualifica di Tecnico amministrazione, finanza e controllo di gestione. Il corso, della durata di 300 ore, � rivolto a 12 persone.";16/11/2015 00:00:00;29/6/2016 00:00:00;42228,00;0,50;"008038";"008";"102";"31/10/2019"
"FSE";"2015-3846/RER";"E39J15001520002";"92047970378";"CONSORZIO FORMEDIL EMILIA-ROMAGNA";"Gestione del cantiere infrastrutturale";"Gestione del cantiere infrastrutturale, attivit� rivolta a 24 persone costituita da:";29/1/2016 00:00:00;24/1/2017 00:00:00;94683,00;0,50;"008039";"008";"102";"31/10/2019"
"FSE";"2015-3847/RER";"E39J15001530002";"92047970378";"CONSORZIO FORMEDIL EMILIA-ROMAGNA";"Percorsi per l'innovazione tecnologica del settore delle costruzioni";"Percorsi per l'innovazione tecnologica del settore delle costruzioni, attivit� rivolta a 69 persone costituita da:";28/10/2015 00:00:00;4/10/2016 00:00:00;328341,00;0,50;"008033:::008034:::008035:::008037";"008";"102";"31/10/2019"
"FSE";"2015-3848/RER";"E19J15000750002";"02604400404";"TECHNE Societ� consortile a responsabilit� limitata";"Percorso formativo per Tecnico esperto nella pianificazione del ciclo integrato dei rifiuti";"Percorso formativo per Tecnico esperto nella pianificazione del ciclo integrato dei rifiuti, attivit� rivolta a 12 persone costituita da un percorso di formazione di specializzazione per l'area professionale di Difesa e valorizzazione delle risorse del territorio finalizzato all'acquisizione di un certificato di qualifica di Tecnico esperto nella pianificazione del ciclo integrato dei rifiuti urbani. Il corso, della durata di 300 ore, � rivolto a 12 persone.";10/11/2015 00:00:00;30/4/2017 00:00:00;43057,00;0,50;"008040";"008";"102";"31/10/2019"
"FSE";"2015-3850/RER";"E19J15000760002";"02604400404";"TECHNE Societ� consortile a responsabilit� limitata";"Percorso formativo per Operatore alla Poltrona Odontoiatrica";"Percorso formativo per Operatore alla Poltrona Odontoiatrica, attivit� rivolta a 12 persone costituita da un percorso di formazione di specializzazione per l'area professionale di Erogazione servizi socio-sanitari finalizzato all'acquisizione di un certificato di qualifica di Operatore alla poltrona odontoiatrica. Il corso, della durata di 300 ore, � rivolto a 12 persone.";12/11/2015 00:00:00;30/4/2017 00:00:00;45978,00;0,50;"008040";"008";"102";"31/10/2019"
"FSE";"2015-3851/RER";"E39J15002480002";"92050070371";"Fondazione Aldini Valeriani per lo sviluppo della cultura tecnica";"Operatore di cura e pulizia spazi e ambienti per Centrogest spa";"Operatore di cura e pulizia spazi e ambienti per Centrogest spa, attivit� rivolta a 15 persone costituita da un percorso di formazione di accesso all'area professionale di Erogazione servizi di pulizia finalizzato all'acquisizione di un certificato di qualifica di Operatore di cura e pulizia di spazi e ambienti. Il corso, della durata di 600 ore, � rivolto a 15 persone.";10/11/2015 00:00:00;23/5/2016 00:00:00;72120,00;0,50;"008037";"008";"102";"31/10/2019"
"FSE";"2015-3853/RER";"E39J15001540002";"92050070371";"Fondazione Aldini Valeriani per lo sviluppo della cultura tecnica";"Tecnico commerciale marketing esperto in analisi dei mercati";"Tecnico commerciale marketing esperto in analisi dei mercati, attivit� rivolta a 15 persone costituita da un percorso di formazione di specializzazione per l'area professionale di Marketing e vendite finalizzato all'acquisizione di un certificato di qualifica di Tecnico commerciale - marketing. Il corso, della durata di 300 ore, � rivolto a 15 persone.";12/11/2015 00:00:00;21/4/2016 00:00:00;43728,00;0,50;"008037";"008";"102";"31/10/2019"
"FSE";"2015-3854/RER";"E89J15001050002";"93002400369";"Cerform";"Percorsi formativi in area marketing e vendite per il settore ceramico";"Percorsi formativi in area marketing e vendite per il settore ceramico, attivit� rivolta a 30 persone costituita da:";19/10/2015 00:00:00;29/7/2016 00:00:00;139926,00;0,50;"008036";"008";"102";"31/10/2019"
"FSE";"2015-3855/RER";"E89J15000760002";"93002400369";"Cerform";"Tecnologo di prodotto/processo per la decorazione digitale ceramica";"Tecnologo di prodotto/processo per la decorazione digitale ceramica, attivit� rivolta a 15 persone costituita da un percorso di formazione di specializzazione per l'area professionale di Progettazione e produzione chimica finalizzato all'acquisizione di un certificato di qualifica di Tecnico di prodotto/processo nella chimica. Il corso, della durata di 300 ore, � rivolto a 15 persone.";16/11/2015 00:00:00;6/12/2016 00:00:00;42386,00;0,50;"008036";"008";"102";"31/10/2019"
"FSE";"2015-3856/RER";"E89J15001060002";"93002400369";"Cerform";"Grafico digitale ceramico";"Grafico digitale ceramico, attivit� rivolta a 15 persone costituita da un percorso di formazione di specializzazione per l'area professionale di Progettazione e produzione prodotti grafici finalizzato all'acquisizione di un certificato di qualifica di Tecnico grafico. Il corso, della durata di 500 ore, � rivolto a 15 persone.";9/11/2015 00:00:00;20/9/2016 00:00:00;69683,00;0,50;"008036";"008";"102";"31/10/2019"
"FSE";"2015-3859/RER";"E39J15001550002";"92049540377";"Fondazione Opera Madonna del Lavoro";"Formazione per l'occupazione nel progetto Bologna Football Catering";"Formazione per l'occupazione nel progetto Bologna Football Catering, attivit� rivolta a 35 persone costituita da:";10/12/2015 00:00:00;20/12/2016 00:00:00;151250,50;0,50;"008037";"008";"102";"31/10/2019"
"FSE";"2015-3691/RER";"E39J15000950002";"80090410376";"Associazione Emiliano - Romagnola di centri autonomi di formazione professionale - A.E.C.A";"TIROCINI RIVOLTI A SOGGETTI RICHIEDENTI ASILO POLITICO DGL 286/1998 - AZ 1 - AREA MONTAGNA OCCIDENTALE - (CIOFS/FP ER Parma)";"TIROCINI RIVOLTI A SOGGETTI RICHIEDENTI ASILO POLITICO DGL 286/1998 - AZ 1 - AREA MONTAGNA OCCIDENTALE - (CIOFS/FP ER Parma), attivit� rivolta a 15 persone costituita da:";12/1/2016 00:00:00;31/10/2016 00:00:00;58366,00;0,50;"008034";"008";"109";"31/10/2019"
"FSE";"2015-3693/RER";"E59J15000280002";"01748791207";"Futura societ� consortile a responsabilit� limitata";"ABILI E COMPETENTI. Percorsi di tirocinio per l'inclusione lavorativa nell'area del sisma";"ABILI E COMPETENTI. Percorsi di tirocinio per l'inclusione lavorativa nell'area del sisma, attivit� rivolta a 110 persone costituita da:";9/11/2015 00:00:00;31/8/2017 00:00:00;518734,00;0,50;"008035:::008036:::008037";"008";"109";"31/10/2019"
"FSE";"2015-3694/RER";"E99J15000710002";"01943460343";"ECIPAR di Parma Soc. Consortile a r.l.";"DALL'ACCOGLIENZA ALL' INCLUSIONE: PERCORSI DI AVVICINAMENTO AL SETTORE PRODUTTIVO PARMENSE PER RICHIEDENTI ASILO E  TITOLARI DI PROTEZIONE INTERNAZIONALE.";"DALL'ACCOGLIENZA ALL' INCLUSIONE: PERCORSI DI AVVICINAMENTO AL SETTORE PRODUTTIVO PARMENSE PER RICHIEDENTI ASILO E  TITOLARI DI PROTEZIONE INTERNAZIONALE., attivit� rivolta a 10 persone costituita da:";16/11/2015 00:00:00;30/8/2016 00:00:00;44308,88;0,50;"008034";"008";"109";"31/10/2019"
"FSE";"2015-3697/RER";"E39J15000960002";"01139920332";"EN.A.I.P. DELLA PROVINCIA DI PIACENZA";"ACCOMPAGNAMENTO ALL'INSERIMENTO LAVORATIVO ATTRAVERSO IL TIROCINIO FORMATIVO";"ACCOMPAGNAMENTO ALL'INSERIMENTO LAVORATIVO ATTRAVERSO IL TIROCINIO FORMATIVO, attivit� rivolta a 24 persone costituita da:";30/11/2015 00:00:00;31/12/2016 00:00:00;101146,00;0,50;"008033";"008";"109";"31/10/2019"
"FSE";"2015-3698/RER";"E39J15001320002";"01139920332";"EN.A.I.P. DELLA PROVINCIA DI PIACENZA";"ACCOMPAGNAMENTO ALL'INSERIMENTO LAVORATIVO ATTRAVERSO PERCORSI DI FORMAZIONE PROFESSIONALE";"ACCOMPAGNAMENTO ALL'INSERIMENTO LAVORATIVO ATTRAVERSO PERCORSI DI FORMAZIONE PROFESSIONALE, attivit� rivolta a 24 persone costituita da:";16/11/2015 00:00:00;31/12/2016 00:00:00;150954,90;0,50;"008033";"008";"109";"31/10/2019"
"FSE";"2015-3699/RER";"E39J15000970002";"80152680379";"IRECOOP EMILIA-ROMAGNA SOCIETA' COOPERATIVA";"Azioni di inclusione sociale tramite inserimenti in azienda - Area Urbana Rimini (Azione 1)";"Azioni di inclusione sociale tramite inserimenti in azienda - Area Urbana Rimini (Azione 1), attivit� rivolta a 30 persone costituita da:";11/11/2015 00:00:00;1/3/2017 00:00:00;123208,70;0,50;"008099";"008";"109";"31/10/2019"
"FSE";"2015-3700/RER";"E39J15000980002";"80152680379";"IRECOOP EMILIA-ROMAGNA SOCIETA' COOPERATIVA";"Reti d'inclusione sociale a sostegno dell'inserimento lavorativo area sisma. (Azione 1)";"Reti d'inclusione sociale a sostegno dell'inserimento lavorativo area sisma. (Azione 1), attivit� rivolta a 35 persone costituita da:";22/10/2015 00:00:00;31/3/2017 00:00:00;136741,20;0,50;"008037:::008038";"008";"109";"31/10/2019"
"FSE";"2015-3711/RER";"E39J15001040002";"80152680379";"IRECOOP EMILIA-ROMAGNA SOCIETA' COOPERATIVA";"AZIONI DI INCLUSIONE  - AREA URBANA DI FORLI' - AZ. 1";"AZIONI DI INCLUSIONE  - AREA URBANA DI FORLI' - AZ. 1, attivit� rivolta a 15 persone costituita da:";11/11/2015 00:00:00;31/3/2017 00:00:00;76333,50;0,50;"008040";"008";"109";"31/10/2019"
"FSE";"2015-3712/RER";"E39J15001050002";"80152680379";"IRECOOP EMILIA-ROMAGNA SOCIETA' COOPERATIVA";"Azioni di inclusione sociale e lavorativa 
per l'Area Urbana di Ravenna - AZIONE 1";"Azioni di inclusione sociale e lavorativa";16/11/2015 00:00:00;30/9/2017 00:00:00;150734,30;0,50;"008039";"008";"109";"31/10/2019"
"FSE";"2015-3713/RER";"E39J15001360002";"80152680379";"IRECOOP EMILIA-ROMAGNA SOCIETA' COOPERATIVA";"Azioni di inclusione sociale e lavorativa nell'Area Urbana di Ravenna - AZIONE 2";"Azioni di inclusione sociale e lavorativa nell'Area Urbana di Ravenna - AZIONE 2, attivit� rivolta a 12 persone costituita da:";16/11/2015 00:00:00;26/7/2017 00:00:00;49455,70;0,50;"008039";"008";"109";"31/10/2019"
"FSE";"2015-3715/RER";"E39J15001370002";"80152680379";"IRECOOP EMILIA-ROMAGNA SOCIETA' COOPERATIVA";"Operatore Agricolo- Area urbana Rimini- Azione 2";"Operatore Agricolo- Area urbana Rimini- Azione 2, attivit� rivolta a 12 persone costituita da:";1/3/2016 00:00:00;21/6/2016 00:00:00;37198,65;0,50;"008099";"008";"109";"31/10/2019"
"FSE";"2015-3716/RER";"E39J15001380002";"80152680379";"IRECOOP EMILIA-ROMAGNA SOCIETA' COOPERATIVA";"AZIONI DI INCLUSIONE SOCIALE  - AREA URBANA DI FORLI� - AZ. 2";"AZIONI DI INCLUSIONE SOCIALE  - AREA URBANA DI FORLI� - AZ. 2, attivit� rivolta a 12 persone costituita da:";11/11/2015 00:00:00;31/3/2017 00:00:00;52337,00;0,50;"008040";"008";"109";"31/10/2019"
"FSE";"2015-3751/RER";"E99J15000790002";"01940320342";"AGRIFORM Soc.Cons. a r.l.";"OPERATORE DI PANIFICIO E PASTIFICIO";"OPERATORE DI PANIFICIO E PASTIFICIO, attivit� rivolta a 12 persone costituita da un percorso di formazione di accesso all'area professionale di Progettazione e produzione alimentare finalizzato all'acquisizione di un certificato di competenze di Operatore di panificio e pastificio. Il corso, della durata di 350 ore, � rivolto a 12 persone.";9/11/2015 00:00:00;29/6/2016 00:00:00;52962,50;0,50;"008034";"008";"109";"31/10/2019"
"FSE";"2015-3755/RER";"E89J15000560002";"00453310351";"I.F.O.A. Istituto Formazione Operatori Aziendali";"Azioni di orientamento, formazione e tirocinio per l�inserimento lavorativo di persone in condizione di svantaggio (Art. 4 della Legge 381/91) nella zona di Sassuolo e Vignola";"Azioni di orientamento, formazione e tirocinio per l�inserimento lavorativo di persone in condizione di svantaggio (Art. 4 della Legge 381/91) nella zona di Sassuolo e Vignola, attivit� rivolta a 16 persone costituita da:";16/11/2015 00:00:00;31/12/2017 00:00:00;66578,77;0,50;"008036";"008";"109";"31/10/2019"
"FSE";"2015-3761/RER";"E99J15000720002";"02291500409";"Fondazione En.A.I.P.  S. Zavatta Rimini";"NUOVE OPPORTUNITA' DI LAVORO";"NUOVE OPPORTUNITA' DI LAVORO, attivit� rivolta a 50 persone costituita da:";6/10/2015 00:00:00;30/6/2017 00:00:00;124240,00;0,50;"008099";"008";"109";"31/10/2019"
"FSE";"2015-3762/RER";"E99J15000800002";"02291500409";"Fondazione En.A.I.P.  S. Zavatta Rimini";"OPERATORE POLIVALENTE";"OPERATORE POLIVALENTE, attivit� rivolta a 36 persone costituita da:";9/11/2015 00:00:00;31/12/2016 00:00:00;189130,34;0,50;"008099";"008";"109";"31/10/2019"
"FSE";"2015-3763/RER";"E99J15001040002";"02291500409";"Fondazione En.A.I.P.  S. Zavatta Rimini";"FORMAZIONE MIRATA";"FORMAZIONE MIRATA, attivit� rivolta a 12 persone costituita da:";12/10/2015 00:00:00;31/12/2016 00:00:00;59534,50;0,50;"008099";"008";"109";"31/10/2019"
"FSE";"2015-3764/RER";"E99J15000730002";"02291500409";"Fondazione En.A.I.P.  S. Zavatta Rimini";"NUOVE  OPPORTUNITA' DI LAVORO (ALTA VALMARECCHIA)";"NUOVE  OPPORTUNITA' DI LAVORO (ALTA VALMARECCHIA), attivit� rivolta a 10 persone costituita da:";26/10/2015 00:00:00;31/12/2016 00:00:00;27101,50;0,50;"008099";"008";"109";"31/10/2019"
"FSE";"2015-3765/RER";"E99J15000740002";"02291500409";"Fondazione En.A.I.P.  S. Zavatta Rimini";"FORMAZIONE PER IL LAVORO";"FORMAZIONE PER IL LAVORO, attivit� rivolta a 60 persone costituita da:";2/11/2015 00:00:00;29/12/2016 00:00:00;260024,45;0,50;"008099";"008";"109";"31/10/2019"
"FSE";"2015-3771/RER";"E39J15002380002";"91204630379";"E.N.F.A.P. Emilia-Romagna - Ente per la Formazione e l'Addestramento Professionale";"Azione per la formazione e l�inserimento lavorativo nel settore tessile, abbigliamento, confezione e maglieria";"Azione per la formazione e l�inserimento lavorativo nel settore tessile, abbigliamento, confezione e maglieria, attivit� rivolta a 20 persone costituita da:";21/9/2015 00:00:00;27/12/2016 00:00:00;111004,50;0,50;"008037";"008";"109";"31/10/2019"
"FSE";"2015-3772/RER";"E39J15001390002";"91204630379";"E.N.F.A.P. Emilia-Romagna - Ente per la Formazione e l'Addestramento Professionale";"Azione per la formazione e l�inserimento lavorativo nell�area professionale ""progettazione e produzione tessile ed abbigliamento confezione e maglieria""";"Azione per la formazione e l�inserimento lavorativo nell�area professionale progettazione e produzione tessile ed abbigliamento confezione e maglieria, attivit� rivolta a 24 persone costituita da:";21/9/2015 00:00:00;20/12/2016 00:00:00;154511,53;0,50;"008037";"008";"109";"31/10/2019"
"FSE";"2015-3773/RER";"E89J15000570002";"02493650358";"DEMETRA FORMAZIONE S.R.L.";"INTERVENTI FORMATIVI A FAVORE DI SOGGETTI SVANTAGGIATI SULL�AREA URBANA DI PIACENZA";"INTERVENTI FORMATIVI A FAVORE DI SOGGETTI SVANTAGGIATI SULL�AREA URBANA DI PIACENZA, attivit� rivolta a 6 persone costituita da:";10/2/2016 00:00:00;15/11/2016 00:00:00;28041,36;0,50;"008033";"008";"109";"31/10/2019"
"FSE";"2015-3774/RER";"E89J15000580002";"02493650358";"DEMETRA FORMAZIONE S.R.L.";"INTERVENTI FORMATIVI A FAVORE DI PERSONE IN CONDIZIONE DI SVANTAGGIO SOCIALE SULL�AREA URBANA DI PARMA - AZIONE N. 1";"INTERVENTI FORMATIVI A FAVORE DI PERSONE IN CONDIZIONE DI SVANTAGGIO SOCIALE SULL�AREA URBANA DI PARMA - AZIONE N. 1, attivit� rivolta a 36 persone costituita da:";12/11/2015 00:00:00;31/12/2017 00:00:00;171848,16;0,50;"008034";"008";"109";"31/10/2019"
"FSE";"2015-3775/RER";"E89J15000710002";"02493650358";"DEMETRA FORMAZIONE S.R.L.";"INTERVENTI FORMATIVI A FAVORE DI PERSONE IN CONDIZIONE DI SVANTAGGIO SOCIALE SULL�AREA URBANA DI PARMA - AZIONE N. 2";"INTERVENTI FORMATIVI A FAVORE DI PERSONE IN CONDIZIONE DI SVANTAGGIO SOCIALE SULL�AREA URBANA DI PARMA - AZIONE N. 2, attivit� rivolta a 12 persone costituita da:";13/11/2015 00:00:00;31/12/2016 00:00:00;50942,25;0,50;"008034";"008";"109";"31/10/2019"
"FSE";"2015-3776/RER";"E89J15000590002";"02493650358";"DEMETRA FORMAZIONE S.R.L.";"INTERVENTI FORMATIVI A FAVORE DI SOGGETTI SVANTAGGIATI SULL�AREA DEL CRATERE";"INTERVENTI FORMATIVI A FAVORE DI SOGGETTI SVANTAGGIATI SULL�AREA DEL CRATERE, attivit� rivolta a 6 persone costituita da:";16/11/2015 00:00:00;15/11/2016 00:00:00;26055,80;0,50;"008035";"008";"109";"31/10/2019"
"FSE";"2015-3777/RER";"E89J15000600002";"02493650358";"DEMETRA FORMAZIONE S.R.L.";"INTERVENTI FORMATIVI A FAVORE DI PERSONE IN CONDIZIONE DI SVANTAGGIO SOCIALE SULL�AREA URBANA DI REGGIO EMILIA";"INTERVENTI FORMATIVI A FAVORE DI PERSONE IN CONDIZIONE DI SVANTAGGIO SOCIALE SULL�AREA URBANA DI REGGIO EMILIA, attivit� rivolta a 21 persone costituita da:";13/11/2015 00:00:00;5/5/2017 00:00:00;95947,38;0,50;"008035";"008";"109";"31/10/2019"
"FSE";"2015-3778/RER";"E89J15000610002";"02493650358";"DEMETRA FORMAZIONE S.R.L.";"INTERVENTI FORMATIVI A FAVORE DI PERSONE IN CONDIZIONE DI SVANTAGGIO SOCIALE SULL�AREA URBANA DI MODENA";"INTERVENTI FORMATIVI A FAVORE DI PERSONE IN CONDIZIONE DI SVANTAGGIO SOCIALE SULL�AREA URBANA DI MODENA, attivit� rivolta a 24 persone costituita da:";12/11/2015 00:00:00;29/12/2016 00:00:00;96789,10;0,50;"008036";"008";"109";"31/10/2019"
"FSE";"2015-3779/RER";"E89J15000620002";"02493650358";"DEMETRA FORMAZIONE S.R.L.";"INTERVENTI FORMATIVI A FAVORE DI RICHIEDENTI ASILO SULL�AREA URBANA DI FORLI�";"INTERVENTI FORMATIVI A FAVORE DI RICHIEDENTI ASILO SULL�AREA URBANA DI FORLI�, attivit� rivolta a 30 persone costituita da:";21/10/2015 00:00:00;30/11/2017 00:00:00;138984,30;0,50;"008040";"008";"109";"31/10/2019"
"FSE";"2015-3780/RER";"E89J15000630002";"02493650358";"DEMETRA FORMAZIONE S.R.L.";"INTERVENTI FORMATIVI A FAVORE DI SOGGETTI SVANTAGGIATI SULL�AREA TERRITORIALE DI CESENA";"INTERVENTI FORMATIVI A FAVORE DI SOGGETTI SVANTAGGIATI SULL�AREA TERRITORIALE DI CESENA, attivit� rivolta a 30 persone costituita da:";5/11/2015 00:00:00;30/11/2017 00:00:00;137475,15;0,50;"008040";"008";"109";"31/10/2019"
"FSE";"2015-3781/RER";"E89J15001030002";"02493650358";"DEMETRA FORMAZIONE S.R.L.";"INTERVENTI FORMATIVI A FAVORE DI PERSONE IN CONDIZIONE DI SVANTAGGIO SOCIALE SULL�AREA URBANA DI RAVENNA";"INTERVENTI FORMATIVI A FAVORE DI PERSONE IN CONDIZIONE DI SVANTAGGIO SOCIALE SULL�AREA URBANA DI RAVENNA, attivit� rivolta a 15 persone costituita da:";2/11/2015 00:00:00;30/11/2017 00:00:00;72072,90;0,50;"008039";"008";"109";"31/10/2019"
"FSE";"2015-3782/RER";"E89J15000640002";"02493650358";"DEMETRA FORMAZIONE S.R.L.";"INTERVENTI FORMATIVI A FAVORE DI SOGGETTI SVANTAGGIATI E RICHIEDENTI ASILO SULL�AREA URBANA DI RIMINI";"INTERVENTI FORMATIVI A FAVORE DI SOGGETTI SVANTAGGIATI E RICHIEDENTI ASILO SULL�AREA URBANA DI RIMINI, attivit� rivolta a 24 persone costituita da:";5/11/2015 00:00:00;16/11/2016 00:00:00;106986,38;0,50;"008099";"008";"109";"31/10/2019"
"FSE";"2015-3783/RER";"E89J15000650002";"80001790353";"Centro di formazione professionale Alberto Simonini";"ADDETTO ALL'ASSEMBLAGGIO DI COMPONENTI ELETTRICO-ELETTRONICI";"ADDETTO ALL'ASSEMBLAGGIO DI COMPONENTI ELETTRICO-ELETTRONICI, attivit� rivolta a 8 persone costituita da:";9/11/2015 00:00:00;8/11/2016 00:00:00;35166,00;0,50;"008035";"008";"109";"31/10/2019"
"FSE";"2015-3784/RER";"E89J15000720002";"80001790353";"Centro di formazione professionale Alberto Simonini";"OPERATORE DI PASTA FRESCA E PANIFICIO";"OPERATORE DI PASTA FRESCA E PANIFICIO, attivit� rivolta a 12 persone costituita da:";16/11/2015 00:00:00;20/6/2016 00:00:00;52832,95;0,50;"008035";"008";"109";"31/10/2019"
"FSE";"2015-3785/RER";"E89J15000660002";"80001790353";"Centro di formazione professionale Alberto Simonini";"ADDETTO ALLA SALDATURA";"ADDETTO ALLA SALDATURA, attivit� rivolta a 10 persone costituita da:";20/10/2015 00:00:00;19/10/2016 00:00:00;38254,00;0,50;"008035";"008";"109";"31/10/2019"
"FSE";"2015-3786/RER";"E89J15000670002";"80001790353";"Centro di formazione professionale Alberto Simonini";"ADDETTO AI SERVIZI DI  PULIZIA";"ADDETTO AI SERVIZI DI  PULIZIA, attivit� rivolta a 8 persone costituita da:";26/10/2015 00:00:00;25/10/2016 00:00:00;34748,00;0,50;"008035";"008";"109";"31/10/2019"
"FSE";"2015-3787/RER";"E69J15000630002";"02138670399";"Ecipar di Ravenna S.R.L.";"INCLUDENDO: PERCORSI FORMATIVI PER FAVORIRE L�INSERIMENTO NEI CONTESTI PRODUTTIVI DELL�AREA URBANA DI RAVENNA";"INCLUDENDO: PERCORSI FORMATIVI PER FAVORIRE L�INSERIMENTO NEI CONTESTI PRODUTTIVI DELL�AREA URBANA DI RAVENNA, attivit� rivolta a 12 persone costituita da un percorso di formazione di accesso all'area professionale di Logistica industriale, del trasporto e spedizione finalizzato all'acquisizione di un certificato di competenze di Operatore di magazzino merci. Il corso, della durata di 200 ore, � rivolto a 12 persone.";16/2/2016 00:00:00;18/5/2016 00:00:00;30818,36;0,50;"008039";"008";"109";"31/10/2019"
"FSE";"2015-3788/RER";"E69J15000640002";"02138670399";"Ecipar di Ravenna S.R.L.";"PROGETTI DI INCLUSIONE PER IL TERRITORIO FAENTINO. OPERATORE DEL LEGNO PER IL RIUSO ED IL RICICLO.";"PROGETTI DI INCLUSIONE PER IL TERRITORIO FAENTINO. OPERATORE DEL LEGNO PER IL RIUSO ED IL RICICLO., attivit� rivolta a 12 persone costituita da un percorso di formazione di accesso all'area professionale di Progettazione e produzione arredamenti finalizzato all'acquisizione di un certificato di competenze di Operatore del legno e dell�arredamento. Il corso, della durata di 300 ore, � rivolto a 12 persone.";5/10/2015 00:00:00;22/12/2015 00:00:00;45977,76;0,50;"008039";"008";"109";"31/10/2019"
"FSE";"2015-3791/RER";"E39J15001400002";"80008070338";"Ente - Scuola per la Formazione professionale delle maestranze edili della Provincia di Piacenza";"Abbattere costruendo - montagna occidentale";"Abbattere costruendo - montagna occidentale, attivit� rivolta a 12 persone costituita da un percorso di formazione di accesso all'area professionale di Progettazione e costruzione edile finalizzato all'acquisizione di un certificato di qualifica di Operatore edile alle strutture. Il corso, della durata di 600 ore, � rivolto a 12 persone.";27/10/2015 00:00:00;30/5/2016 00:00:00;81193,50;0,50;"008033";"008";"109";"31/10/2019"
"FSE";"2015-3792/RER";"E39J15001420002";"01306830397";"ANGELO PESCARINI SCUOLA ARTI E MESTIERI Societ� Consortile a responsabilit� limitata";"Azioni di inclusione lavorativa per donne vittime di violenza";"Azioni di inclusione lavorativa per donne vittime di violenza, attivit� rivolta a 484 persone costituita da:";23/9/2015 00:00:00;21/12/2017 00:00:00;344671,91;0,50;"008033:::008034:::008035:::008036:::008037:::008038:::00803";"008";"109";"31/10/2019"
"FSE";"2015-3793/RER";"E39J15001060002";"01306830397";"ANGELO PESCARINI SCUOLA ARTI E MESTIERI Societ� Consortile a responsabilit� limitata";"PERCORSI DI ORIENTAMENTO, FORMAZIONE E TIROCINIO  A SUPPORTO DELL�OCCUPAZIONE NELL�AREA URBANA DI RAVENNA";"PERCORSI DI ORIENTAMENTO, FORMAZIONE E TIROCINIO  A SUPPORTO DELL�OCCUPAZIONE NELL�AREA URBANA DI RAVENNA, attivit� rivolta a 90 persone costituita da:";9/12/2015 00:00:00;30/6/2017 00:00:00;373845,00;0,50;"008039";"008";"109";"31/10/2019"
"FSE";"2015-3794/RER";"E39J15001410002";"01306830397";"ANGELO PESCARINI SCUOLA ARTI E MESTIERI Societ� Consortile a responsabilit� limitata";"ATTIVITA' FORMATIVE A SUPPORTO DELL�OCCUPAZIONE  NELL'AREA URBANA DI RAVENNA";"ATTIVITA' FORMATIVE A SUPPORTO DELL�OCCUPAZIONE  NELL'AREA URBANA DI RAVENNA, attivit� rivolta a 168 persone costituita da:";9/12/2015 00:00:00;30/6/2017 00:00:00;606552,85;0,50;"008039";"008";"109";"31/10/2019"
"FSE";"2015-3795/RER";"E19J15000730002";"02078610355";"Centro Studio e Lavoro ""La Cremeria"" s.r.l.";"Azioni a supporto della formazione per la figura professionale di Aiuto Cuoco";"Azioni a supporto della formazione per la figura professionale di Aiuto Cuoco, attivit� rivolta a 33 persone costituita da:";26/10/2015 00:00:00;31/12/2016 00:00:00;98122,57;0,50;"008035";"008";"109";"31/10/2019"
"FSE";"2015-3796/RER";"E19J15000740002";"02078610355";"Centro Studio e Lavoro ""La Cremeria"" s.r.l.";"Addetto alla manutenzione e cura del verde";"Addetto alla manutenzione e cura del verde, attivit� rivolta a 15 persone costituita da un percorso di formazione di accesso all'area professionale di Progettazione e gestione del verde finalizzato all'acquisizione di un certificato di competenze di Operatore del verde. Il corso, della durata di 200 ore, � rivolto a 15 persone.";30/3/2016 00:00:00;31/12/2016 00:00:00;31379,45;0,50;"008035";"008";"109";"31/10/2019"
"FSE";"2015-3802/RER";"E99J15000810002";"00829580364";"Iscom formazione";"PIANO DI INTERVENTO PER L'INCLUSIONE LAVORATIVA NELLA PARTE MODENESE DELL'AREA TARGET MONTAGNA CENTRALE";"PIANO DI INTERVENTO PER L'INCLUSIONE LAVORATIVA NELLA PARTE MODENESE DELL'AREA TARGET MONTAGNA CENTRALE, attivit� rivolta a 12 persone costituita da:";16/11/2015 00:00:00;19/4/2016 00:00:00;51621,10;0,50;"008036";"008";"109";"31/10/2019"
"FSE";"2015-3803/RER";"E79J15000310002";"03462620406";"Associazione San Patrignano Scuola e Formazione";"NET.WORK: New Experiences and Training for Work";"NET.WORK: New Experiences and Training for Work, attivit� rivolta a 47 persone costituita da:";22/10/2015 00:00:00;8/7/2016 00:00:00;125427,71;0,50;"008099";"008";"109";"31/10/2019"
"FSE";"2015-3804/RER";"E79J15000320002";"03462620406";"Associazione San Patrignano Scuola e Formazione";"Giro di vite";"Giro di vite, attivit� rivolta a 60 persone costituita da:";24/10/2015 00:00:00;14/11/2016 00:00:00;297445,65;0,50;"008099";"008";"109";"31/10/2019"
"FSE";"2015-3805/RER";"E99J15000820002";"02637130408";"Itinera s.r.l. consortile (in liquidazione) - Centro Internazionale di Studi Turistici";"Azione e percorso di formazione per addetti alla portineria notturna nelle strutture turistiche e ricettive";"Azione e percorso di formazione per addetti alla portineria notturna nelle strutture turistiche e ricettive, attivit� rivolta a 12 persone costituita da:";16/11/2015 00:00:00;28/7/2016 00:00:00;45009,26;0,50;"008099";"008";"109";"31/10/2019"
"FSE";"2015-3818/RER";"E39J15001430002";"04051790378";"Nuovo Cescot Emilia-Romagna s.c.r.l.";"AZIONI PER L'OCCUPAZIONE NELL'AREA MARKETING E VENDITE";"AZIONI PER L'OCCUPAZIONE NELL'AREA MARKETING E VENDITE, attivit� rivolta a 90 persone costituita da:";26/10/2015 00:00:00;14/12/2016 00:00:00;371645,50;0,50;"008035:::008036:::008037:::008039:::008099";"008";"102";"31/10/2019"
"FSE";"2015-3819/RER";"E39J15001440002";"04051790378";"Nuovo Cescot Emilia-Romagna s.c.r.l.";"AZIONI PER L�OCCUPAZIONE NEL SETTORE TURISTICO";"AZIONI PER L�OCCUPAZIONE NEL SETTORE TURISTICO, attivit� rivolta a 26 persone costituita da:";4/11/2015 00:00:00;26/7/2016 00:00:00;147854,76;0,50;"008037:::008040";"008";"102";"31/10/2019"
"FSE";"2015-3820/RER";"E39J15001450002";"04051790378";"Nuovo Cescot Emilia-Romagna s.c.r.l.";"AZIONI PER L�OCCUPAZIONE NELL�AREA GRAFICA";"AZIONI PER L�OCCUPAZIONE NELL�AREA GRAFICA, attivit� rivolta a 39 persone costituita da:";4/11/2015 00:00:00;29/6/2016 00:00:00;160548,52;0,50;"008037:::008099";"008";"102";"31/10/2019"
"FSE";"2015-3821/RER";"E39J15002470002";"04051790378";"Nuovo Cescot Emilia-Romagna s.c.r.l.";"AZIONI PER L'OCCUPAZIONE NELL'AREA FOOD&BEVERAGE";"AZIONI PER L'OCCUPAZIONE NELL'AREA FOOD&BEVERAGE, attivit� rivolta a 65 persone costituita da:";27/10/2015 00:00:00;8/7/2016 00:00:00;203678,47;0,50;"008037:::008039:::008040:::008099";"008";"102";"31/10/2019"
"FSE";"2015-3930/RER";"E49J15000340002";"03549630964";"RANDSTAD HR SOLUTIONS SRL";"NUOVE PROFESSIONALITA' PER IL SETTORE ENOGASTRONOMICO - PROFILI AREA RISTORAZIONE";"NUOVE PROFESSIONALITA' PER IL SETTORE ENOGASTRONOMICO - PROFILI AREA RISTORAZIONE, attivit� rivolta a 240 persone costituita da:";25/1/2016 00:00:00;22/12/2016 00:00:00;171391,00;0,50;"008037";"008";"102";"31/10/2019"
"FSE";"2015-3931/RER";"E49J15000350002";"03549630964";"RANDSTAD HR SOLUTIONS SRL";"NUOVE PROFESSIONALITA' PER IL SETTORE ENOGASTRONOMICO- PROFILI AREA VENDITE";"NUOVE PROFESSIONALITA' PER IL SETTORE ENOGASTRONOMICO- PROFILI AREA VENDITE, attivit� rivolta a 96 persone costituita da:";15/12/2015 00:00:00;21/12/2016 00:00:00;180566,50;0,50;"008037";"008";"102";"31/10/2019"
"FSE";"2015-3932/RER";"E99J15000890002";"01928210341";"En.A.I.P. Parma";"COMPETENZE PER L'AMMINISTRAZIONE E GESTIONE D'IMPRESA";"COMPETENZE PER L'AMMINISTRAZIONE E GESTIONE D'IMPRESA, attivit� rivolta a 30 persone costituita da:";16/11/2015 00:00:00;5/6/2017 00:00:00;115881,00;0,50;"008034";"008";"102";"31/10/2019"
"FSE";"2015-3934/RER";"E99J15000900002";"01928210341";"En.A.I.P. Parma";"CATERING & BANQUETING";"CATERING & BANQUETING, attivit� rivolta a 15 persone costituita da un percorso di formazione di specializzazione per l'area professionale di Produzione e distribuzione pasti finalizzato all'acquisizione di un certificato di qualifica di Tecnico dei servizi sala-banqueting. Il corso, della durata di 300 ore, � rivolto a 15 persone.";16/11/2015 00:00:00;5/6/2017 00:00:00;42919,00;0,50;"008034";"008";"102";"31/10/2019"
"FSE";"2015-3936/RER";"E99J15000920002";"02291500409";"Fondazione En.A.I.P.  S. Zavatta Rimini";"IMPIANTI ELETTRICI E DOMOTICA";"IMPIANTI ELETTRICI E DOMOTICA, attivit� rivolta a 12 persone costituita da un percorso di formazione di specializzazione per l'area professionale di Installazione componenti e impianti elettrici e termo-idraulici finalizzato all'acquisizione di un certificato di qualifica di Tecnico nei sistemi domotici. Il corso, della durata di 500 ore, � rivolto a 12 persone.";12/11/2015 00:00:00;31/3/2017 00:00:00;67518,00;0,50;"008099";"008";"102";"31/10/2019"
"FSE";"2015-3937/RER";"E99J15001050002";"02291500409";"Fondazione En.A.I.P.  S. Zavatta Rimini";"PROGETTAZIONE MECCANICA E CARPENTERIA METALLICA";"PROGETTAZIONE MECCANICA E CARPENTERIA METALLICA, attivit� rivolta a 30 persone costituita da:";16/11/2015 00:00:00;30/6/2017 00:00:00;142717,00;0,50;"008099";"008";"102";"31/10/2019"
"FSE";"2015-3938/RER";"E99J15000930002";"02291500409";"Fondazione En.A.I.P.  S. Zavatta Rimini";"OPERATORE IMPIANTI TERMO-IDRAULICI";"OPERATORE IMPIANTI TERMO-IDRAULICI, attivit� rivolta a 12 persone costituita da un percorso di formazione di accesso all'area professionale di Installazione componenti e impianti elettrici e termo-idraulici finalizzato all'acquisizione di un certificato di qualifica di Operatore impianti termo-idraulici. Il corso, della durata di 600 ore, � rivolto a 12 persone.";5/11/2015 00:00:00;31/3/2017 00:00:00;71985,00;0,50;"008099";"008";"102";"31/10/2019"
"FSE";"2015-3941/RER";"E39J15001630002";"80152680379";"IRECOOP EMILIA-ROMAGNA SOCIETA' COOPERATIVA";"Esperto nella gestione dei servizi sociali";"Esperto nella gestione dei servizi sociali, attivit� rivolta a 12 persone costituita da un percorso di formazione di specializzazione per l'area professionale di Gestione processi, progetti e strutture finalizzato all'acquisizione di un certificato di qualifica di Tecnico esperto nella gestione di servizi. Il corso, della durata di 300 ore, � rivolto a 12 persone.";26/10/2015 00:00:00;30/10/2016 00:00:00;43728,00;0,50;"008099";"008";"102";"31/10/2019"
"FSE";"2015-3943/RER";"E39J15001640002";"80152680379";"IRECOOP EMILIA-ROMAGNA SOCIETA' COOPERATIVA";"OPERATORE ALLA POLTRONA ODONTOIATRICA";"OPERATORE ALLA POLTRONA ODONTOIATRICA, attivit� rivolta a 12 persone costituita da un percorso di formazione di specializzazione per l'area professionale di Erogazione servizi socio-sanitari finalizzato all'acquisizione di un certificato di qualifica di Operatore alla poltrona odontoiatrica. Il corso, della durata di 300 ore, � rivolto a 12 persone.";16/11/2015 00:00:00;20/12/2016 00:00:00;41252,00;0,50;"008034";"008";"102";"31/10/2019"
"FSE";"2015-3949/RER";"E39J15001650002";"80152680379";"IRECOOP EMILIA-ROMAGNA SOCIETA' COOPERATIVA";"MEDIATORE INTERCULTURALE ESPERTO IN MEDIAZIONE NEI PROCESSI SOCIO-EDUCATIVI";"MEDIATORE INTERCULTURALE ESPERTO IN MEDIAZIONE NEI PROCESSI SOCIO-EDUCATIVI, attivit� rivolta a 12 persone costituita da un percorso di formazione di specializzazione per l'area professionale di Erogazione servizi socio-sanitari finalizzato all'acquisizione di un certificato di qualifica di Mediatore inter-culturale. Il corso, della durata di 300 ore, � rivolto a 12 persone.";3/11/2015 00:00:00;25/11/2016 00:00:00;43728,00;0,50;"008035";"008";"102";"31/10/2019"
"FSE";"2015-4633/RER";"E39J15003560002";"04164640379";"CEFAL Emilia Romagna Societ� Cooperativa";"Operatore della ristorazione -  IeFP 2015/2017";"Operatore della ristorazione -  IeFP 2015/2017, attivit� rivolta a 40 persone costituita da:";15/9/2015 00:00:00;16/6/2017 00:00:00;477393,00;0,50;"008037";"008";"103";"31/10/2019"
"FSE";"2015-4634/RER";"E39J15003570002";"04164640379";"CEFAL Emilia Romagna Societ� Cooperativa";"Operatore del punto vendita - IeFP 2015/2017";"Operatore del punto vendita - IeFP 2015/2017, attivit� rivolta a 20 persone costituita da:";15/9/2015 00:00:00;14/6/2017 00:00:00;238680,00;0,50;"008039";"008";"103";"31/10/2019"
"FSE";"2015-4635/RER";"E39J15003580002";"04164640379";"CEFAL Emilia Romagna Societ� Cooperativa";"Operatore meccanico - IeFP 2015/2017";"Operatore meccanico - IeFP 2015/2017, attivit� rivolta a 20 persone costituita da:";15/9/2015 00:00:00;16/6/2017 00:00:00;242703,00;0,50;"008039";"008";"103";"31/10/2019"
"FSE";"2015-4636/RER";"E39J15003590002";"04164640379";"CEFAL Emilia Romagna Societ� Cooperativa";"Operatore impianti elettrici e solari fotovltaici - IeFP 2015/2017";"Operatore impianti elettrici e solari fotovltaici - IeFP 2015/2017, attivit� rivolta a 20 persone costituita da:";15/9/2015 00:00:00;21/6/2017 00:00:00;231116,00;0,50;"008039";"008";"103";"31/10/2019"
"FSE";"2015-4637/RER";"E39J15003510002";"01186040331";"ECIPAR  societ� consortile a responsabilit� limitata - Formazione e servizi innovativi per l'artigianato e le P.M.I.";"OPERATORE MECCATRONICO DELL'AUTORIPARAZIONE - IeFP 2015/2017";"OPERATORE MECCATRONICO DELL'AUTORIPARAZIONE - IeFP 2015/2017, attivit� rivolta a 25 persone costituita da:";15/9/2015 00:00:00;22/6/2017 00:00:00;232144,00;0,50;"008033";"008";"103";"31/10/2019"
"FSE";"2015-4638/RER";"E49J15000610002";"80004440337";"ENDO-FAP Don Orione Borgonovo - Formazione Aggiornamento Professionale";"Operatore grafico - IeFP 2015/2017";"Operatore grafico - IeFP 2015/2017, attivit� rivolta a 20 persone costituita da:";15/9/2015 00:00:00;26/6/2017 00:00:00;232961,00;0,50;"008033";"008";"103";"31/10/2019"
"FSE";"2015-4639/RER";"E49J15000620002";"80004440337";"ENDO-FAP Don Orione Borgonovo - Formazione Aggiornamento Professionale";"Operatore meccanico - IeFP 2015/2017";"Operatore meccanico - IeFP 2015/2017, attivit� rivolta a 20 persone costituita da:";15/9/2015 00:00:00;23/6/2017 00:00:00;231327,00;0,50;"008033";"008";"103";"31/10/2019"
"FSE";"2015-4640/RER";"E49J15000630002";"80004440337";"ENDO-FAP Don Orione Borgonovo - Formazione Aggiornamento Professionale";"Operatore sistemi elettrico-elettronici - IeFP 2015/2017";"Operatore sistemi elettrico-elettronici - IeFP 2015/2017, attivit� rivolta a 20 persone costituita da:";15/9/2015 00:00:00;21/6/2017 00:00:00;231327,00;0,50;"008033";"008";"103";"31/10/2019"
"FSE";"2015-4641/RER";"E99J15001470002";"80006350369";"Ente diocesano per la salvezza e la educazione della gioventu'";"Progettazione e produzione meccanica ed elettromeccanica Iefp 2015/17";"Progettazione e produzione meccanica ed elettromeccanica Iefp 2015/17, attivit� rivolta a 40 persone costituita da:";15/9/2015 00:00:00;27/6/2017 00:00:00;465520,00;0,50;"008036";"008";"103";"31/10/2019"
"FSE";"2016-5497/RER";"E99D16002250009";"02483780363";"FORMODENA - FORMAZIONE PROFESSIONALE PER I TERRITORI MODENESI SOC.CONS.A.R.L.";"Sostenibilit� green dei prodotti e del processi tessili - Moda green";"Sostenibilit� green dei prodotti e del processi tessili - Moda green, attivit� rivolta a 36 persone costituita da:";14/3/2017 00:00:00;30/11/2018 00:00:00;24572,00;0,50;"008036";"008";"106";"31/10/2019"
"FSE";"2016-5498/RER";"E39D16005220002";"80061110377";"IAL Innovazione Apprendimento Lavoro Emilia Romagna S.r.l. Impresa Sociale";"Azione di informazione e sensibilizzazione connessa all?operazione:
?Azioni integrate per  il sostegno all?internazionalizzazione delle piccole imprese nel Piacentino?
";"Azione di informazione e sensibilizzazione connessa all?operazione:
?Azioni integrate per  il sostegno all?internazionalizzazione delle piccole imprese nel Piacentino?
";28/3/2017 00:00:00;31/3/2017 00:00:00;5000,00;0,50;"008037";"008";"106";"31/10/2019"
"FSE";"2016-5501/RER";"E89D16001640002";"80061110377";"IAL Innovazione Apprendimento Lavoro Emilia Romagna S.r.l. Impresa Sociale";"?Azione di informazione e sensibilizzazione connessa all?operazione ?Tecnologie dell'informazione e della comunicazione per le aziende turistiche e della ristorazione?";"?Azione di informazione e sensibilizzazione connessa all?operazione ?Tecnologie dell'informazione e della comunicazione per le aziende turistiche e della ristorazione?";27/3/2017 00:00:00;27/3/2017 00:00:00;2400,00;0,50;"008037";"008";"106";"31/10/2019"
"FSE";"2016-5504/RER";"E99D16002180002";"02483780363";"FORMODENA - FORMAZIONE PROFESSIONALE PER I TERRITORI MODENESI SOC.CONS.A.R.L.";"MODA GREEN- Seminario di apertura";"MODA GREEN- Seminario di apertura";12/12/2016 00:00:00;12/12/2016 00:00:00;2400,00;0,50;"008036";"008";"106";"31/10/2019"
"FSE";"2016-5505/RER";"E39D16005410009";"80061110377";"IAL Innovazione Apprendimento Lavoro Emilia Romagna S.r.l. Impresa Sociale";"Azioni integrate per il sostegno all�internazionalizzazione delle piccole imprese nel territorio Piacentino";"Azioni integrate per il sostegno all�internazionalizzazione delle piccole imprese nel territorio Piacentino, attivit� rivolta a 32 persone costituita da:";21/3/2017 00:00:00;21/9/2018 00:00:00;27652,32;0,50;"008033";"008";"106";"31/10/2019"
"FSE";"2016-5507/RER";"E99D16002260009";"80061110377";"IAL Innovazione Apprendimento Lavoro Emilia Romagna S.r.l. Impresa Sociale";"Azioni integrate per  il sostegno all�internazionalizzazione delle piccole imprese della comunit� Modenese";"Azioni integrate per  il sostegno all�internazionalizzazione delle piccole imprese della comunit� Modenese, attivit� rivolta a 40 persone costituita da:";13/9/2017 00:00:00;25/1/2018 00:00:00;31576,00;0,50;"008036";"008";"106";"31/10/2019"
"FSE";"2016-5508/RER";"E39D16005400009";"80061110377";"IAL Innovazione Apprendimento Lavoro Emilia Romagna S.r.l. Impresa Sociale";"Azioni integrate per  il sostegno all�internazionalizzazione delle piccole imprese dell�Area Metropolitana di Bologna";"Azioni integrate per  il sostegno all�internazionalizzazione delle piccole imprese dell�Area Metropolitana di Bologna, attivit� rivolta a 32 persone costituita da:";21/2/2017 00:00:00;27/7/2018 00:00:00;31977,28;0,50;"008037";"008";"106";"31/10/2019"
"FSE";"2016-5788/RER";"E89D16001320002";"01955980352";"FONDAZIONE ENAIP DON GIANFRANCO MAGNANI";"OPERATORE DI STAMPA - IeFP 2016/2018";"OPERATORE DI STAMPA - IeFP 2016/2018, attivit� rivolta a 20 persone costituita da:";15/9/2016 00:00:00;20/6/2018 00:00:00;240610,25;0,50;"008035";"008";"103";"31/10/2019"
"FSE";"2016-5789/RER";"E89D16001330002";"01955980352";"FONDAZIONE ENAIP DON GIANFRANCO MAGNANI";"OPERATORE MECCANICO - IeFP 2016/2018";"OPERATORE MECCANICO - IeFP 2016/2018, attivit� rivolta a 40 persone costituita da:";15/9/2016 00:00:00;28/6/2018 00:00:00;479598,00;0,50;"008035";"008";"103";"31/10/2019"
"FSE";"2016-5790/RER";"E99D16001770002";"80001590340";"Centro Servizi Edili - C.S.E. Parma";"Operatore edile alle strutture ""Iefp 2016/2018""";"Operatore edile alle strutture Iefp 2016/2018, attivit� rivolta a 20 persone costituita da:";15/9/2016 00:00:00;6/7/2018 00:00:00;238680,00;0,50;"008034";"008";"103";"31/10/2019"
"FSE";"2016-5791/RER";"E19D16001000002";"02604400404";"TECHNE Societ� consortile a responsabilit� limitata";"Operatore alle cure estetiche - Iefp 2016/2018";"Operatore alle cure estetiche - Iefp 2016/2018, attivit� rivolta a 21 persone costituita da:";15/9/2016 00:00:00;14/6/2018 00:00:00;249000,00;0,50;"008040";"008";"103";"31/10/2019"
"FSE";"2016-5792/RER";"E39D16004780002";"01186040331";"ECIPAR  societ� consortile a responsabilit� limitata - Formazione e servizi innovativi per l'artigianato e le P.M.I.";"Operatore Meccatronico dell'autoriparazione - IeFP 2016/2018";"Operatore Meccatronico dell'autoriparazione - IeFP 2016/2018, attivit� rivolta a 25 persone costituita da:";15/9/2016 00:00:00;19/6/2018 00:00:00;233000,00;0,50;"008033";"008";"103";"31/10/2019"
"FSE";"2016-5793/RER";"E89D16001340002";"01768220350";"C.F.P. BASSA REGGIANA Soc. Cons.r.l";"Operatore meccanico - IeFP 2016/2018";"Operatore meccanico - IeFP 2016/2018, attivit� rivolta a 21 persone costituita da:";15/9/2016 00:00:00;26/6/2018 00:00:00;235820,00;0,50;"008035";"008";"103";"31/10/2019"
"FSE";"2016-5794/RER";"E89D16001350002";"01768220350";"C.F.P. BASSA REGGIANA Soc. Cons.r.l";"Operatore meccatronico dell'autoriparazione - IeFP 2016/2018";"Operatore meccatronico dell'autoriparazione - IeFP 2016/2018, attivit� rivolta a 21 persone costituita da:";15/9/2016 00:00:00;20/6/2018 00:00:00;231327,00;0,50;"008035";"008";"103";"31/10/2019"
"FSE";"2016-5795/RER";"E19D16001010002";"02078610355";"Centro Studio e Lavoro ""La Cremeria"" s.r.l.";"Operatore della Ristorazione - IeFP 2016/2018";"Operatore della Ristorazione - IeFP 2016/2018, attivit� rivolta a 16 persone costituita da:";15/9/2016 00:00:00;18/6/2018 00:00:00;236244,00;0,50;"008035";"008";"103";"31/10/2019"
"FSE";"2016-5796/RER";"E19D16001020002";"02078610355";"Centro Studio e Lavoro ""La Cremeria"" s.r.l.";"Operatore della Promozione e Accoglienza turistica - IeFP 2016/2018";"Operatore della Promozione e Accoglienza turistica - IeFP 2016/2018, attivit� rivolta a 15 persone costituita da:";15/9/2016 00:00:00;14/6/2018 00:00:00;238045,00;0,50;"008035";"008";"103";"31/10/2019"
"FSE";"2016-5797/RER";"E99D16001780002";"02020330342";"FORMA FUTURO Soc.Cons. r.l.";"OPERATORE MECCANICO IeFP 2016-2018";"OPERATORE MECCANICO IeFP 2016-2018, attivit� rivolta a 42 persone costituita da:";15/9/2016 00:00:00;26/6/2018 00:00:00;465716,00;0,50;"008034";"008";"103";"31/10/2019"
"FSE";"2016-6178/RER";"E89D16003130007";"93002400369";"Cerform";"Tecnico degli acquisti e di gestione delle forniture";"Tecnico degli acquisti e di gestione delle forniture, attivit� rivolta a 15 persone costituita da un percorso di formazione ad elevata complessit� progettato con riferimento al Sistema regionale delle qualifiche afferente all'area professionale di Approvvigionamento e gestione della produzione industriale finalizzato all'acquisizione di un certificato di qualifica di Tecnico degli acquisti e approvvigionamenti. Il corso, della durata di 300 ore, � rivolto a 15 persone.";4/5/2017 00:00:00;15/12/2017 00:00:00;44097,00;0,50;"008036";"008";"102";"31/10/2019"
"FSE";"2016-6184/RER";"E79D16002320007";"01371590389";"INFOMEDIA, Associazione per la formazione professionale, l'informazione e la comunicazione";"TECNICO CONTABILE PER CONSULENZE ON SITE";"TECNICO CONTABILE PER CONSULENZE ON SITE, attivit� rivolta a 12 persone costituita da un percorso di formazione ad elevata complessit� progettato con riferimento al Sistema regionale delle qualifiche afferente all'area professionale di Amministrazione e controllo d�impresa finalizzato all'acquisizione di un certificato di qualifica di Tecnico contabile. Il corso, della durata di 500 ore, � rivolto a 12 persone.";28/3/2017 00:00:00;15/9/2017 00:00:00;64574,00;0,50;"008038";"008";"102";"31/10/2019"
"FSE";"2016-6186/RER";"E39D16007820007";"01229920333";"TUTOR Societ� Consortile a responsabilit� limitata";"PROFILI PROFESSIONALI PER IL COMPARTO MECCANICO-MECCATRONICO";"PROFILI PROFESSIONALI PER IL COMPARTO MECCANICO-MECCATRONICO, attivit� rivolta a 12 persone costituita da un percorso di formazione ad elevata complessit� progettato con riferimento al Sistema regionale delle qualifiche afferente all'area professionale di Progettazione e produzione meccanica ed elettromeccanica finalizzato all'acquisizione di un certificato di qualifica di Tecnico dell�automazione industriale. Il corso, della durata di 500 ore, � rivolto a 12 persone.";27/4/2017 00:00:00;29/9/2017 00:00:00;69035,00;0,50;"008033";"008";"102";"31/10/2019"
"FSE";"2016-6188/RER";"E29D16002210007";"80061110377";"IAL Innovazione Apprendimento Lavoro Emilia Romagna S.r.l. Impresa Sociale";"LA RISTORAZIONE IN EMILIA-ROMAGNA";"LA RISTORAZIONE IN EMILIA-ROMAGNA, attivit� rivolta a 84 persone costituita da:";23/3/2017 00:00:00;27/3/2018 00:00:00;508052,00;0,50;"008033:::008034:::008036:::008038:::008039:::008040:::00809";"008";"102";"31/10/2019"
"FSE";"2016-6190/RER";"E39D16007830007";"80061110377";"IAL Innovazione Apprendimento Lavoro Emilia Romagna S.r.l. Impresa Sociale";"STRATEGIE DI MERCATO";"STRATEGIE DI MERCATO, attivit� rivolta a 24 persone costituita da:";27/3/2017 00:00:00;17/11/2017 00:00:00;107428,00;0,50;"008035:::008037";"008";"102";"31/10/2019"
"FSE";"2016-6191/RER";"E29D16002220007";"80061110377";"IAL Innovazione Apprendimento Lavoro Emilia Romagna S.r.l. Impresa Sociale";"PROGETTAZIONE E PRODUZIONE MECCANICA ED ELETTROMECCANICA";"PROGETTAZIONE E PRODUZIONE MECCANICA ED ELETTROMECCANICA, attivit� rivolta a 36 persone costituita da:";3/4/2017 00:00:00;23/3/2018 00:00:00;214652,00;0,50;"008036:::008037";"008";"102";"31/10/2019"
"FSE";"2016-6195/RER";"E89D16003140007";"01768220350";"C.F.P. BASSA REGGIANA Soc. Cons.r.l";"AZIONI A SOSTEGNO DELL�OCCUPAZIONE NEL SETTORE MECCANICO";"AZIONI A SOSTEGNO DELL�OCCUPAZIONE NEL SETTORE MECCANICO, attivit� rivolta a 12 persone costituita da un percorso di formazione progettato con riferimento al Sistema regionale delle qualifiche afferente all'area professionale di Progettazione e produzione meccanica ed elettromeccanica finalizzato all'acquisizione di un certificato di qualifica di Operatore meccanico. Il corso, della durata di 600 ore, � rivolto a 12 persone.";20/3/2017 00:00:00;14/9/2017 00:00:00;72120,00;0,50;"008035";"008";"102";"31/10/2019"
"FSE";"2016-6198/RER";"E99D16004270007";"92065520345";"CISITA Parma S.r.l.";"Tecnico gestore degli approvvigionamenti e della catena di fornitura";"Tecnico gestore degli approvvigionamenti e della catena di fornitura, attivit� rivolta a 12 persone costituita da un percorso di formazione ad elevata complessit� progettato con riferimento al Sistema regionale delle qualifiche afferente all'area professionale di Approvvigionamento e gestione della produzione industriale finalizzato all'acquisizione di un certificato di qualifica di Tecnico degli acquisti e approvvigionamenti. Il corso, della durata di 300 ore, � rivolto a 12 persone.";26/5/2017 00:00:00;15/9/2017 00:00:00;43728,00;0,50;"008034";"008";"102";"31/10/2019"
"FSE";"2016-6201/RER";"E69D16003100007";"01388830331";"Centro di Formazione, Sperimentazione e Innovazione ""Vittorio Tadini""  S. C. a R. L.";"OPERATORE DELLE LAVORAZIONI CARNI E SALUMI: COMPETENZE PROFESSIONALIZZANTI A FAVORE DELL�INSERIMENTO LAVORATIVO";"OPERATORE DELLE LAVORAZIONI CARNI E SALUMI: COMPETENZE PROFESSIONALIZZANTI A FAVORE DELL�INSERIMENTO LAVORATIVO, attivit� rivolta a 12 persone costituita da un percorso di formazione progettato con riferimento al Sistema regionale delle qualifiche afferente all'area professionale di Progettazione e produzione alimentare finalizzato all'acquisizione di un certificato di competenze di Operatore delle lavorazioni carni. Il corso, della durata di 300 ore, � rivolto a 12 persone.";9/5/2017 00:00:00;20/7/2017 00:00:00;36314,00;0,50;"008033";"008";"102";"31/10/2019"
"FSE";"2016-6659/RER";"E99D17000550007";"02020330342";"FORMA FUTURO Soc.Cons. r.l.";"OPERAZIONE PER LA SODDISFAZIONE DEI BISOGNI FORMATIVI E LAVORATIVI DEI DETENUTI DEGLI ISTITUTI PENITENZIARI DI PARMA";"OPERAZIONE PER LA SODDISFAZIONE DEI BISOGNI FORMATIVI E LAVORATIVI DEI DETENUTI DEGLI ISTITUTI PENITENZIARI DI PARMA, attivit� rivolta a 40 persone costituita da:";7/6/2017 00:00:00;10/4/2018 00:00:00;80429,36;0,50;"008034";"008";"109";"31/10/2019"
"FSE";"2016-6660/RER";"E89D17000390007";"02078610355";"Centro Studio e Lavoro ""La Cremeria"" s.r.l.";"ADDETTO ALLA RISTORAZIONE PER II.PP. REGGIO EMILIA";"ADDETTO ALLA RISTORAZIONE PER II.PP. REGGIO EMILIA, attivit� rivolta a 15 persone costituita da un percorso di formazione progettato con riferimento al Sistema regionale delle qualifiche afferente all'area professionale di Produzione e distribuzione pasti finalizzato all'acquisizione di un certificato di competenze di Operatore della ristorazione. Il corso, della durata di 300 ore, � rivolto a 15 persone.";26/6/2017 00:00:00;13/3/2018 00:00:00;38384,00;0,50;"008035";"008";"109";"31/10/2019"
"FSE";"2016-6662/RER";"E99D17000560007";"02291500409";"Fondazione En.A.I.P.  S. Zavatta Rimini";"Percorsi per l�integrazione socio-lavorativa";"Percorsi per l�integrazione socio-lavorativa, attivit� rivolta a 20 persone costituita da:";27/7/2017 00:00:00;8/9/2018 00:00:00;67726,00;0,50;"008099";"008";"109";"31/10/2019"
"FSE";"2016-6663/RER";"E99D17000570007";"02291500409";"Fondazione En.A.I.P.  S. Zavatta Rimini";"LIBERI DI LAVORARE";"LIBERI DI LAVORARE, attivit� rivolta a 13 persone costituita da:";26/7/2017 00:00:00;27/8/2018 00:00:00;42038,30;0,50;"008099";"008";"109";"31/10/2019"
"FSE";"2016-6664/RER";"E39D17000410007";"01139920332";"EN.A.I.P. DELLA PROVINCIA DI PIACENZA";"OPERATORE DEL LEGNO PER IL RECUPERO DI PRODOTTI LIGNEI D'ARREDO";"OPERATORE DEL LEGNO PER IL RECUPERO DI PRODOTTI LIGNEI D'ARREDO, attivit� rivolta a 15 persone costituita da:";21/7/2017 00:00:00;26/3/2018 00:00:00;40148,00;0,50;"008033";"008";"109";"31/10/2019"
"FSE";"2016-6666/RER";"E89D17000380007";"01955980352";"FONDAZIONE ENAIP DON GIANFRANCO MAGNANI";"FORMAZIONE PER L'INCLUSIONE LAVORATIVA A REGGIO EMILIA";"FORMAZIONE PER L'INCLUSIONE LAVORATIVA A REGGIO EMILIA, attivit� rivolta a 18 persone costituita da:";14/6/2017 00:00:00;29/6/2018 00:00:00;53270,24;0,50;"008035";"008";"109";"31/10/2019"
"FSE";"2016-6667/RER";"E99D17000580007";"92028510375";"C.I.O.F.S. - F.P. EMILIA ROMAGNA";"Percorsi orientativi e formativi per l�inclusione socio-lavorativa di persone in carico all'U.E.P.E. - Territorio di Parma";"Percorsi orientativi e formativi per l�inclusione socio-lavorativa di persone in carico all'U.E.P.E. - Territorio di Parma, attivit� rivolta a 5 persone costituita da:";23/6/2017 00:00:00;11/6/2018 00:00:00;19714,00;0,50;"008034";"008";"109";"31/10/2019"
"FSE";"2016-6668/RER";"E89D17000400007";"92028510375";"C.I.O.F.S. - F.P. EMILIA ROMAGNA";"Percorsi orientativi e formativi per l�inclusione socio-lavorativa di persone in esecuzione penale esterna - Reggio Emilia";"Percorsi orientativi e formativi per l�inclusione socio-lavorativa di persone in esecuzione penale esterna - Reggio Emilia, attivit� rivolta a 10 persone costituita da:";4/9/2017 00:00:00;;33470,80;0,50;"008035";"008";"109";"31/10/2019"
"FSE";"2016-6670/RER";"E99D17000540007";"80152680379";"IRECOOP EMILIA-ROMAGNA SOCIETA' COOPERATIVA";"INTERVENTI ORIENTATIVI E FORMATIVI PER L'INCLUSIONE SOCIO- LAVORATIVA DI PERSONE IN ESECUZIONE PENALE- CASA CIRCONDARIALE DI MODENA";"INTERVENTI ORIENTATIVI E FORMATIVI PER L'INCLUSIONE SOCIO- LAVORATIVA DI PERSONE IN ESECUZIONE PENALE- CASA CIRCONDARIALE DI MODENA, attivit� rivolta a 12 persone costituita da:";26/10/2017 00:00:00;12/2/2018 00:00:00;37760,00;0,50;"008036";"008";"109";"31/10/2019"
"FSE";"2016-6901/RER";"E69D16002210002";"01938940408";"CNA FORMAZIONE Forl�-Cesena - Societa' consortile a r.l.";"Certificazione dei Tirocini ai sensi LR 17/2005 e ss.mm. n. 1 - CNA FORMAZIONE Forl�-Cesena - Societa' consortile a r.l.";"Certificazione dei Tirocini ai sensi LR 17/2005 e ss.mm. n. 1 - CNA FORMAZIONE Forl�-Cesena - Societa' consortile a r.l.";11/4/2016 00:00:00;31/8/2017 00:00:00;4047,00;0,50;"008040";"008";"102";"31/10/2019"
"FSE";"2016-6902/RER";"E99D16003250002";"01720860400";"CESCOT S.c.a r.l.";"Certificazione dei Tirocini ai sensi LR 17/2005 e ss.mm. n. 1 - CESCOT S.c.a r.l.";"Certificazione dei Tirocini ai sensi LR 17/2005 e ss.mm. n. 1 - CESCOT S.c.a r.l.";15/9/2014 00:00:00;;21087,00;0,50;"008099";"008";"102";"31/10/2019"
"FSE";"2016-6903/RER";"E39D16006560002";"04051790378";"Nuovo Cescot Emilia-Romagna s.c.r.l.";"Certificazione dei Tirocini ai sensi LR 17/2005 e ss.mm. n. 1 - Nuovo Cescot Emilia-Romagna s.c.r.l.";"Certificazione dei Tirocini ai sensi LR 17/2005 e ss.mm. n. 1 - Nuovo Cescot Emilia-Romagna s.c.r.l.";1/7/2014 00:00:00;24/7/2018 00:00:00;17821,00;0,50;"008037";"008";"102";"31/10/2019"
"FSE";"2016-6904/RER";"E99D16003280002";"01943460343";"ECIPAR di Parma Soc. Consortile a r.l.";"Certificazione dei Tirocini ai sensi LR 17/2005 e ss.mm. n. 1 - ECIPAR di Parma Soc. Consortile a r.l.";"Certificazione dei Tirocini ai sensi LR 17/2005 e ss.mm. n. 1 - ECIPAR di Parma Soc. Consortile a r.l.";3/11/2014 00:00:00;15/12/2017 00:00:00;24282,00;0,50;"008034";"008";"102";"31/10/2019"
"FSE";"2016-6905/RER";"E89D16002390002";"01768220350";"C.F.P. BASSA REGGIANA Soc. Cons.r.l";"Certificazione dei Tirocini ai sensi LR 17/2005 e ss.mm. n. 1 - C.F.P. BASSA REGGIANA Soc. Cons.r.l";"Certificazione dei Tirocini ai sensi LR 17/2005 e ss.mm. n. 1 - C.F.P. BASSA REGGIANA Soc. Cons.r.l";21/12/2015 00:00:00;2/2/2018 00:00:00;3834,00;0,50;"008035";"008";"102";"31/10/2019"
"FSE";"2016-6906/RER";"E79D16001650002";"00928150382";"CE.S.CO.T. Ferrara Soc. Cooperativa";"Certificazione dei Tirocini ai sensi LR 17/2005 e ss.mm. n. 1 - CE.S.CO.T. Ferrara Soc. Cooperativa";"Certificazione dei Tirocini ai sensi LR 17/2005 e ss.mm. n. 1 - CE.S.CO.T. Ferrara Soc. Cooperativa";22/12/2015 00:00:00;10/1/2018 00:00:00;4899,00;0,50;"008038";"008";"102";"31/10/2019"
"FSE";"2016-6907/RER";"E89D16002400002";"01955980352";"FONDAZIONE ENAIP DON GIANFRANCO MAGNANI";"Certificazione dei Tirocini ai sensi LR 17/2005 e ss.mm. n. 1 - FONDAZIONE ENAIP DON GIANFRANCO MAGNANI";"Certificazione dei Tirocini ai sensi LR 17/2005 e ss.mm. n. 1 - FONDAZIONE ENAIP DON GIANFRANCO MAGNANI";31/12/2015 00:00:00;;25986,00;0,50;"008035";"008";"102";"31/10/2019"
"FSE";"2016-6908/RER";"E49D16001550002";"02602440352";"WARRANTRAINING S.R.L.";"Certificazione dei Tirocini ai sensi LR 17/2005 e ss.mm. n. 1 - WARRANTRAINING S.R.L.";"Certificazione dei Tirocini ai sensi LR 17/2005 e ss.mm. n. 1 - WARRANTRAINING S.R.L.";30/12/2016 00:00:00;;4260,00;0,50;"008035";"008";"102";"31/10/2019"
"FSE";"2015-3822/RER";"E39J15001460002";"04051790378";"Nuovo Cescot Emilia-Romagna s.c.r.l.";"AZIONI PER L'OCCUPAZIONE NELL'AREA AMMINISTRAZIONE E CONTROLLO DI IMPRESA";"AZIONI PER L'OCCUPAZIONE NELL'AREA AMMINISTRAZIONE E CONTROLLO DI IMPRESA, attivit� rivolta a 38 persone costituita da:";12/11/2015 00:00:00;8/7/2016 00:00:00;154451,00;0,50;"008036:::008099";"008";"102";"31/10/2019"
"FSE";"2015-3823/RER";"E39J15001470002";"04051790378";"Nuovo Cescot Emilia-Romagna s.c.r.l.";"AZIONI PER L'OCCUPAZIONE NELL'AREA PROGETTAZIONE E PRODUZIONE ALIMENTARE";"AZIONI PER L'OCCUPAZIONE NELL'AREA PROGETTAZIONE E PRODUZIONE ALIMENTARE, attivit� rivolta a 75 persone costituita da:";28/10/2015 00:00:00;16/12/2016 00:00:00;351495,13;0,50;"008036:::008038:::008039:::008040:::008099";"008";"102";"31/10/2019"
"FSE";"2015-3825/RER";"E69J15000650002";"01388830331";"Centro di Formazione, Sperimentazione e Innovazione ""Vittorio Tadini""  S. C. a R. L.";"Formazione e inserimento di junior sales manager per la rete assicurativa-commerciale di Marazzi e Teragni s.n.c. Agenzia Generale di Piacenza UnipolSai";"Formazione e inserimento di junior sales manager per la rete assicurativa-commerciale di Marazzi e Teragni s.n.c. Agenzia Generale di Piacenza UnipolSai, attivit� rivolta a 12 persone costituita da un percorso di formazione di specializzazione per l'area professionale di Promozione ed erogazione servizi/prodotti finanziari, creditizi, assicurativi finalizzato all'acquisizione di un certificato di qualifica di Tecnico dei servizi/prodotti finanziari, creditizi, assicurativi. Il corso, della durata di 500 ore, � rivolto a 12 persone.";14/1/2016 00:00:00;22/6/2016 00:00:00;67775,00;0,50;"008033";"008";"102";"31/10/2019"
"FSE";"2015-3826/RER";"E69J15000660002";"01388830331";"Centro di Formazione, Sperimentazione e Innovazione ""Vittorio Tadini""  S. C. a R. L.";"Competenze professionalizzanti a favore dell'inserimento lavorativo 
nel settore delle lavorazioni carni";"Competenze professionalizzanti a favore dell'inserimento lavorativo";27/10/2015 00:00:00;11/3/2016 00:00:00;35945,00;0,50;"008033";"008";"102";"31/10/2019"
"FSE";"2015-3829/RER";"E79J15000330002";"01371590389";"INFOMEDIA, Associazione per la formazione professionale, l'informazione e la comunicazione";"TECNICO COMMERCIALE MARKETING - ESPERTO DI WEB & SOCIAL MARKETING, TECNICHE SEO ED E COMMERCE";"TECNICO COMMERCIALE MARKETING - ESPERTO DI WEB & SOCIAL MARKETING, TECNICHE SEO ED E COMMERCE, attivit� rivolta a 14 persone costituita da un percorso di formazione di specializzazione per l'area professionale di Marketing e vendite finalizzato all'acquisizione di un certificato di qualifica di Tecnico commerciale - marketing. Il corso, della durata di 300 ore, � rivolto a 14 persone.";14/9/2015 00:00:00;15/12/2015 00:00:00;43766,00;0,50;"008038";"008";"102";"31/10/2019"
"FSE";"2015-3831/RER";"E69J15000740002";"02338400407";"Fondazione En.A.I.P. Forl� - Cesena";"Addetto/addetta al cablaggio di impianti elettrici e fotovoltaici";"Addetto/addetta al cablaggio di impianti elettrici e fotovoltaici, attivit� rivolta a 15 persone costituita da un percorso di formazione di accesso all'area professionale di Installazione componenti e impianti elettrici e termo-idraulici finalizzato all'acquisizione di un certificato di qualifica di Operatore impianti elettrici e solari fotovoltaici. Il corso, della durata di 600 ore, � rivolto a 15 persone.";27/10/2015 00:00:00;31/12/2016 00:00:00;74460,00;0,50;"008040";"008";"102";"31/10/2019"
"FSE";"2015-3832/RER";"E69J15000750002";"02338400407";"Fondazione En.A.I.P. Forl� - Cesena";"Addetto/addetta all�installazione e manutenzione di impianti termoidraulici";"Addetto/addetta all�installazione e manutenzione di impianti termoidraulici, attivit� rivolta a 15 persone costituita da un percorso di formazione di accesso all'area professionale di Installazione componenti e impianti elettrici e termo-idraulici finalizzato all'acquisizione di un certificato di qualifica di Operatore impianti termo-idraulici. Il corso, della durata di 600 ore, � rivolto a 15 persone.";10/11/2015 00:00:00;30/12/2016 00:00:00;74460,00;0,50;"008040";"008";"102";"31/10/2019"
"FSE";"2015-3974/RER";"E49J15000390002";"02602440352";"WARRANTRAINING S.R.L.";"Tecnico delle vendite di Concessionaria Auto";"Tecnico delle vendite di Concessionaria Auto, attivit� rivolta a 12 persone costituita da un percorso di formazione di specializzazione per l'area professionale di Marketing e vendite finalizzato all'acquisizione di un certificato di qualifica di Tecnico delle vendite. Il corso, della durata di 300 ore, � rivolto a 12 persone.";29/10/2015 00:00:00;12/4/2016 00:00:00;43359,00;0,50;"008035";"008";"102";"31/10/2019"
"FSE";"2015-3975/RER";"E49J15000400002";"02602440352";"WARRANTRAINING S.R.L.";"Consulente analista funzionale";"Consulente analista funzionale, attivit� rivolta a 12 persone costituita da un percorso di formazione di specializzazione per l'area professionale di Gestione processi, progetti e strutture finalizzato all'acquisizione di un certificato di qualifica di Tecnico esperto nella gestione di servizi. Il corso, della durata di 300 ore, � rivolto a 12 persone.";16/11/2015 00:00:00;22/4/2016 00:00:00;42520,00;0,50;"008037";"008";"102";"31/10/2019"
"FSE";"2015-3976/RER";"E89J15000910002";"01768220350";"C.F.P. BASSA REGGIANA Soc. Cons.r.l";"OPERATORE MACCHINE UTENSILI A CONTROLLO NUMERICO";"OPERATORE MACCHINE UTENSILI A CONTROLLO NUMERICO, attivit� rivolta a 12 persone costituita da un percorso di formazione di accesso all'area professionale di Progettazione e produzione meccanica ed elettromeccanica finalizzato all'acquisizione di un certificato di qualifica di Operatore meccanico. Il corso, della durata di 600 ore, � rivolto a 12 persone.";9/11/2015 00:00:00;28/10/2016 00:00:00;73056,00;0,50;"008035";"008";"102";"31/10/2019"
"FSE";"2015-3979/RER";"E89J15000920002";"01768220350";"C.F.P. BASSA REGGIANA Soc. Cons.r.l";"TECNICO MANUTENTORE AUTRONICO DELL'AUTOMOBILE";"TECNICO MANUTENTORE AUTRONICO DELL'AUTOMOBILE, attivit� rivolta a 12 persone costituita da un percorso di formazione di specializzazione per l'area professionale di Autoriparazione finalizzato all'acquisizione di un certificato di competenze di Tecnico autronico dell�automobile. Il corso, della durata di 250 ore, � rivolto a 12 persone.";26/10/2015 00:00:00;25/2/2016 00:00:00;33787,50;0,50;"008035";"008";"102";"31/10/2019"
"FSE";"2015-3980/RER";"E39J15001720002";"80061110377";"IAL Innovazione Apprendimento Lavoro Emilia Romagna S.r.l. Impresa Sociale";"Sistemi informatici per l�area di Piacenza";"Sistemi informatici per l�area di Piacenza, attivit� rivolta a 12 persone costituita da un percorso di formazione di specializzazione per l'area professionale di Sviluppo e gestione sistemi informatici finalizzato all'acquisizione di un certificato di qualifica di Tecnico informatico. Il corso, della durata di 500 ore, � rivolto a 12 persone.";9/12/2015 00:00:00;15/11/2016 00:00:00;70880,00;0,50;"008033";"008";"102";"31/10/2019"
"FSE";"2015-3981/RER";"E39J15001730002";"80061110377";"IAL Innovazione Apprendimento Lavoro Emilia Romagna S.r.l. Impresa Sociale";"TECNICO DEI SERVIZI TURISTICO RICETTIVI";"TECNICO DEI SERVIZI TURISTICO RICETTIVI, attivit� rivolta a 12 persone costituita da un percorso di formazione di specializzazione per l'area professionale di Promozione ed erogazione servizi turistici finalizzato all'acquisizione di un certificato di qualifica di Tecnico dei servizi turistico-ricettivi. Il corso, della durata di 300 ore, � rivolto a 12 persone.";29/1/2016 00:00:00;27/5/2016 00:00:00;45228,00;0,50;"008099";"008";"102";"31/10/2019"
"FSE";"2015-3983/RER";"E39J15001740002";"80061110377";"IAL Innovazione Apprendimento Lavoro Emilia Romagna S.r.l. Impresa Sociale";"OPERATORE DI PANIFICIO E PASTIFICIO";"OPERATORE DI PANIFICIO E PASTIFICIO, attivit� rivolta a 12 persone costituita da un percorso di formazione di accesso all'area professionale di Progettazione e produzione alimentare finalizzato all'acquisizione di un certificato di qualifica di Operatore di panificio e pastificio. Il corso, della durata di 600 ore, � rivolto a 12 persone.";12/10/2015 00:00:00;15/4/2016 00:00:00;73056,00;0,50;"008099";"008";"102";"31/10/2019"
"FSE";"2015-3986/RER";"E39J15001750002";"80061110377";"IAL Innovazione Apprendimento Lavoro Emilia Romagna S.r.l. Impresa Sociale";"Il pane quotidiano: materie prime impasti e prodotti della panificazione";"Il pane quotidiano: materie prime impasti e prodotti della panificazione, attivit� rivolta a 12 persone costituita da un percorso di formazione di accesso all'area professionale di Progettazione e produzione alimentare finalizzato all'acquisizione di un certificato di competenze di Operatore di panificio e pastificio. Il corso, della durata di 300 ore, � rivolto a 12 persone.";19/10/2015 00:00:00;17/3/2016 00:00:00;36548,00;0,50;"008040";"008";"102";"31/10/2019"
"FSE";"2015-3989/RER";"E39J15001760002";"80061110377";"IAL Innovazione Apprendimento Lavoro Emilia Romagna S.r.l. Impresa Sociale";"Materie prime Impasti e Prodotti della panificazione";"Materie prime Impasti e Prodotti della panificazione, attivit� rivolta a 12 persone costituita da un percorso di formazione di accesso all'area professionale di Progettazione e produzione alimentare finalizzato all'acquisizione di un certificato di qualifica di Operatore di panificio e pastificio. Il corso, della durata di 600 ore, � rivolto a 12 persone.";28/10/2015 00:00:00;18/5/2016 00:00:00;73056,00;0,50;"008040";"008";"102";"31/10/2019"
"FSE";"2015-3860/RER";"E99J15000830002";"02526930363";"Nuova Didactica - societ� consortile a responsabilit� limitata";"TECNICO DI SPEDIZIONE, TRASPORTO E LOGISTICA";"TECNICO DI SPEDIZIONE, TRASPORTO E LOGISTICA, attivit� rivolta a 12 persone costituita da un percorso di formazione di specializzazione per l'area professionale di Logistica industriale, del trasporto e spedizione finalizzato all'acquisizione di un certificato di qualifica di Tecnico di spedizione, trasporto e logistica. Il corso, della durata di 500 ore, � rivolto a 12 persone.";4/12/2015 00:00:00;14/7/2016 00:00:00;70714,00;0,50;"008036";"008";"102";"31/10/2019"
"FSE";"2015-3861/RER";"E99J15000840002";"02526930363";"Nuova Didactica - societ� consortile a responsabilit� limitata";"ANALISTA PROGRAMMATORE";"ANALISTA PROGRAMMATORE, attivit� rivolta a 12 persone costituita da un percorso di formazione di specializzazione per l'area professionale di Sviluppo e gestione sistemi informatici finalizzato all'acquisizione di un certificato di qualifica di Analista programmatore. Il corso, della durata di 500 ore, � rivolto a 12 persone.";29/2/2016 00:00:00;15/12/2016 00:00:00;69635,00;0,50;"008036";"008";"102";"31/10/2019"
"FSE";"2015-3862/RER";"E19J15000840004";"02483780363";"FORMODENA - FORMAZIONE PROFESSIONALE PER I TERRITORI MODENESI SOC.CONS.A.R.L.";"IMPOSTAZIONE E SVILUPPO DI COLLEZIONI MODA";"IMPOSTAZIONE E SVILUPPO DI COLLEZIONI MODA, attivit� rivolta a 12 persone costituita da un percorso di formazione di accesso all'area professionale di Progettazione e produzione tessile ed abbigliamento � confezione e maglieria finalizzato all'acquisizione di un certificato di qualifica di Operatore dell�abbigliamento. Il corso, della durata di 600 ore, � rivolto a 12 persone.";5/11/2015 00:00:00;17/6/2016 00:00:00;75796,00;0,50;"008036";"008";"102";"31/10/2019"
"FSE";"2015-3865/RER";"E99J15000850002";"02483780363";"FORMODENA - FORMAZIONE PROFESSIONALE PER I TERRITORI MODENESI SOC.CONS.A.R.L.";"Competenze tecniche per favorire l�occupazione nei processi contabili e amministrativi in imprese dell'area del sisma";"Competenze tecniche per favorire l�occupazione nei processi contabili e amministrativi in imprese dell'area del sisma, attivit� rivolta a 12 persone costituita da un percorso di formazione di accesso all'area professionale di Amministrazione e controllo d�impresa finalizzato all'acquisizione di un certificato di competenze di Operatore amministrativo-segretariale. Il corso, della durata di 300 ore, � rivolto a 12 persone.";12/10/2015 00:00:00;28/6/2017 00:00:00;36278,00;0,50;"008036";"008";"102";"31/10/2019"
"FSE";"2015-3870/RER";"E89J15000770002";"02493650358";"DEMETRA FORMAZIONE S.R.L.";"OPPORTUNITA' FORMATIVE PER L'INSERIMENTO QUALIFICATO NEL SETTORE ASSICURATIVO";"OPPORTUNITA' FORMATIVE PER L'INSERIMENTO QUALIFICATO NEL SETTORE ASSICURATIVO, attivit� rivolta a 24 persone costituita da:";13/11/2015 00:00:00;30/11/2016 00:00:00;111352,00;0,50;"008037:::008039";"008";"102";"31/10/2019"
"FSE";"2015-3871/RER";"E89J15000780002";"02493650358";"DEMETRA FORMAZIONE S.R.L.";"OPPORTUNITA' FORMATIVE PER L'INSERIMENTO QUALIFICATO NEL SETTORE DELLA LOGISTICA E DELLE SPEDIZIONI";"OPPORTUNITA' FORMATIVE PER L'INSERIMENTO QUALIFICATO NEL SETTORE DELLA LOGISTICA E DELLE SPEDIZIONI, attivit� rivolta a 12 persone costituita da un percorso di formazione di accesso all'area professionale di Logistica industriale, del trasporto e spedizione finalizzato all'acquisizione di un certificato di competenze di Operatore di magazzino merci. Il corso, della durata di 300 ore, � rivolto a 12 persone.";2/11/2015 00:00:00;28/10/2016 00:00:00;35877,50;0,50;"008037";"008";"102";"31/10/2019"
"FSE";"2015-3872/RER";"E89J15000790002";"02493650358";"DEMETRA FORMAZIONE S.R.L.";"OPPORTUNITA' FORMATIVE PER L'INSERIMENTO QUALIFICATO NELLE ATTIVITA' AMMINISTRATIVO-SEGRETARIALI, CONTABILI E DI CONTROLLO DI GESTIONE";"OPPORTUNITA' FORMATIVE PER L'INSERIMENTO QUALIFICATO NELLE ATTIVITA' AMMINISTRATIVO-SEGRETARIALI, CONTABILI E DI CONTROLLO DI GESTIONE, attivit� rivolta a 12 persone costituita da un percorso di formazione di accesso all'area professionale di Amministrazione e controllo d�impresa finalizzato all'acquisizione di un certificato di competenze di Operatore amministrativo-segretariale. Il corso, della durata di 300 ore, � rivolto a 12 persone.";22/10/2015 00:00:00;30/6/2016 00:00:00;36840,00;0,50;"008040";"008";"102";"31/10/2019"
"FSE";"2015-3877/RER";"E89J15000800002";"02493650358";"DEMETRA FORMAZIONE S.R.L.";"OPPORTUNITA' FORMATIVE PER L'INSERIMENTO QUALIFICATO NEL SETTORE DELLA RISTORAZIONE";"OPPORTUNITA' FORMATIVE PER L'INSERIMENTO QUALIFICATO NEL SETTORE DELLA RISTORAZIONE, attivit� rivolta a 24 persone costituita da:";4/11/2015 00:00:00;22/12/2016 00:00:00;83155,48;0,50;"008034:::008035";"008";"102";"31/10/2019"
"FSE";"2015-3886/RER";"E89J15000810002";"00453310351";"I.F.O.A. Istituto Formazione Operatori Aziendali";"Professioni digitali : occupazione e specializzazione";"Professioni digitali : occupazione e specializzazione, attivit� rivolta a 42 persone costituita da:";2/11/2015 00:00:00;21/9/2016 00:00:00;158951,00;0,50;"008035:::008036:::008037";"008";"102";"31/10/2019"
"FSE";"2015-3887/RER";"E89J15000820002";"00453310351";"I.F.O.A. Istituto Formazione Operatori Aziendali";"Profili amministrativi per il controllo d'impresa e l'occupabilit�";"Profili amministrativi per il controllo d'impresa e l'occupabilit�, attivit� rivolta a 28 persone costituita da:";4/11/2015 00:00:00;19/7/2016 00:00:00;145990,00;0,50;"008035:::008036";"008";"102";"31/10/2019"
"FSE";"2015-3888/RER";"E89J15000830002";"00453310351";"I.F.O.A. Istituto Formazione Operatori Aziendali";"PROFESSIONI PER LO SVILUPPO E LA TUTELA DELL'AMBIENTE";"PROFESSIONI PER LO SVILUPPO E LA TUTELA DELL'AMBIENTE, attivit� rivolta a 14 persone costituita da un percorso di formazione di specializzazione per l'area professionale di Sviluppo e tutela dell'ambiente finalizzato all'acquisizione di un certificato di qualifica di Tecnico ambientale. Il corso, della durata di 500 ore, � rivolto a 14 persone.";16/11/2015 00:00:00;22/11/2016 00:00:00;69589,00;0,50;"008034";"008";"102";"31/10/2019"
"FSE";"2015-3890/RER";"E89J15000840002";"00453310351";"I.F.O.A. Istituto Formazione Operatori Aziendali";"INTERNAZIONALIZZAZIONE COME VOLANO STRATEGICO PER LE IMPRESE";"INTERNAZIONALIZZAZIONE COME VOLANO STRATEGICO PER LE IMPRESE, attivit� rivolta a 14 persone costituita da un percorso di formazione di specializzazione per l'area professionale di Marketing e vendite finalizzato all'acquisizione di un certificato di qualifica di Tecnico commerciale - marketing. Il corso, della durata di 300 ore, � rivolto a 14 persone.";10/11/2015 00:00:00;21/7/2016 00:00:00;43728,00;0,50;"008035";"008";"102";"31/10/2019"
"FSE";"2015-3891/RER";"E89J15000850002";"00453310351";"I.F.O.A. Istituto Formazione Operatori Aziendali";"SVILUPPO E RIQUALIFICAZIONE DELLE COMPETENZE NEL SETTORE AGRO-ALIMENTARE";"SVILUPPO E RIQUALIFICAZIONE DELLE COMPETENZE NEL SETTORE AGRO-ALIMENTARE, attivit� rivolta a 42 persone costituita da:";12/11/2015 00:00:00;20/1/2017 00:00:00;191013,00;0,50;"008035:::008036";"008";"102";"31/10/2019"
"FSE";"2015-3892/RER";"E89J15000860002";"00453310351";"I.F.O.A. Istituto Formazione Operatori Aziendali";"IL MID MANAGER DEL FUTURO NELL'IMPRESA MANIFATTURIERA E DI SERVIZI";"IL MID MANAGER DEL FUTURO NELL'IMPRESA MANIFATTURIERA E DI SERVIZI, attivit� rivolta a 42 persone costituita da:";18/1/2016 00:00:00;30/3/2017 00:00:00;130446,00;0,50;"008034:::008035:::008036";"008";"102";"31/10/2019"
"FSE";"2015-3893/RER";"E89J15000870002";"00453310351";"I.F.O.A. Istituto Formazione Operatori Aziendali";"PROFESSIONALITA' PER LA RIORGANIZZAZIONE DELLA CATENA APPROVVIGIONAMENTO/PRODUZIONE NELLA MODERNA MANIFATTURA";"PROFESSIONALITA' PER LA RIORGANIZZAZIONE DELLA CATENA APPROVVIGIONAMENTO/PRODUZIONE NELLA MODERNA MANIFATTURA, attivit� rivolta a 14 persone costituita da un percorso di formazione di specializzazione per l'area professionale di Approvvigionamento e gestione della produzione industriale finalizzato all'acquisizione di un certificato di qualifica di Tecnico di programmazione della produzione industriale. Il corso, della durata di 300 ore, � rivolto a 14 persone.";4/12/2015 00:00:00;13/7/2016 00:00:00;43728,00;0,50;"008035";"008";"102";"31/10/2019"
"FSE";"2015-3894/RER";"E89J15000880002";"00453310351";"I.F.O.A. Istituto Formazione Operatori Aziendali";"PROFESSIONALITA' PER LO SVILUPPO DEI TERRITORI NEL POST EXPO 2015";"PROFESSIONALITA' PER LO SVILUPPO DEI TERRITORI NEL POST EXPO 2015, attivit� rivolta a 14 persone costituita da un percorso di formazione di specializzazione per l'area professionale di Promozione ed erogazione servizi turistici finalizzato all'acquisizione di un certificato di qualifica di Tecnico del marketing turistico. Il corso, della durata di 500 ore, � rivolto a 14 persone.";6/11/2015 00:00:00;22/9/2016 00:00:00;70891,00;0,50;"008035";"008";"102";"31/10/2019"
"FSE";"2015-3895/RER";"E89J15000890002";"00453310351";"I.F.O.A. Istituto Formazione Operatori Aziendali";"COMPETENZE E TECNOLOGIE PER FAVORIRE L'OCCUPAZIONE NELL'IMPRESA MECCANICA";"COMPETENZE E TECNOLOGIE PER FAVORIRE L'OCCUPAZIONE NELL'IMPRESA MECCANICA, attivit� rivolta a 28 persone costituita da:";3/11/2015 00:00:00;14/9/2016 00:00:00;88479,00;0,50;"008035:::008036";"008";"102";"31/10/2019"
"FSE";"2015-3897/RER";"E89J15000900002";"00453310351";"I.F.O.A. Istituto Formazione Operatori Aziendali";"LA RICONVERSIONE DIGITALE DEGLI OPERATORI DELL'EDITORIA TRADIZIONALE";"LA RICONVERSIONE DIGITALE DEGLI OPERATORI DELL'EDITORIA TRADIZIONALE, attivit� rivolta a 14 persone costituita da un percorso di formazione di specializzazione per l'area professionale di Progettazione ed erogazione servizi/prodotti informativi e comunicativi finalizzato all'acquisizione di un certificato di qualifica di Redattore di prodotti editoriali. Il corso, della durata di 300 ore, � rivolto a 14 persone.";10/11/2015 00:00:00;25/5/2016 00:00:00;44466,00;0,50;"008035";"008";"102";"31/10/2019"
"FSE";"2015-3899/RER";"E89J15001070002";"00453310351";"I.F.O.A. Istituto Formazione Operatori Aziendali";"SVILUPPO, RIQUALIFICAZIONE E IMPLEMENTAZIONE DELLE COMPETENZE NEL RETAIL PER IL TERRITORIO REGIONALE";"SVILUPPO, RIQUALIFICAZIONE E IMPLEMENTAZIONE DELLE COMPETENZE NEL RETAIL PER IL TERRITORIO REGIONALE, attivit� rivolta a 42 persone costituita da:";11/11/2015 00:00:00;24/2/2017 00:00:00;187396,00;0,50;"008034:::008037";"008";"102";"31/10/2019"
"FSE";"2015-3901/RER";"E79J15000350002";"03369980408";"CONSULTING S.R.L.";"CULTURAL-MENTE: PROMUOVERE E VALORIZZARE UN�IDENTIT� TERRITORIALE";"CULTURAL-MENTE: PROMUOVERE E VALORIZZARE UN�IDENTIT� TERRITORIALE, attivit� rivolta a 12 persone costituita da un percorso di formazione di specializzazione per l'area professionale di Promozione ed erogazione servizi culturali finalizzato all'acquisizione di un certificato di qualifica di Tecnico della valorizzazione dei beni/prodotti culturali. Il corso, della durata di 300 ore, � rivolto a 12 persone.";16/11/2015 00:00:00;4/5/2016 00:00:00;44028,00;0,50;"008040";"008";"102";"31/10/2019"
"FSE";"2015-3902/RER";"E39J15001560002";"03109320378";"ISCOM Emilia- Romagna";"Produzione e Distribuzione Pasti";"Produzione e Distribuzione Pasti, attivit� rivolta a 96 persone costituita da:";12/10/2015 00:00:00;31/7/2016 00:00:00;385710,00;0,50;"008033:::008034:::008036:::008038:::008039:::008040";"008";"102";"31/10/2019"
"FSE";"2015-3903/RER";"E39J15001570002";"03109320378";"ISCOM Emilia- Romagna";"Promozione ed erogazione servizi turistici";"Promozione ed erogazione servizi turistici, attivit� rivolta a 12 persone costituita da un percorso di formazione di accesso all'area professionale di Promozione ed erogazione servizi turistici finalizzato all'acquisizione di un certificato di qualifica di Operatore della promozione ed accoglienza turistica. Il corso, della durata di 600 ore, � rivolto a 12 persone.";1/2/2016 00:00:00;31/12/2016 00:00:00;70248,00;0,50;"008038";"008";"102";"31/10/2019"
"FSE";"2015-3904/RER";"E39J15001580002";"03109320378";"ISCOM Emilia- Romagna";"Promozione ed erogazione servizi/prodotti finanziari, creditizi, assicurativi";"Promozione ed erogazione servizi/prodotti finanziari, creditizi, assicurativi, attivit� rivolta a 12 persone costituita da un percorso di formazione di specializzazione per l'area professionale di Promozione ed erogazione servizi/prodotti finanziari, creditizi, assicurativi finalizzato all'acquisizione di un certificato di qualifica di Tecnico dei servizi/prodotti finanziari, creditizi, assicurativi. Il corso, della durata di 300 ore, � rivolto a 12 persone.";29/10/2015 00:00:00;30/9/2016 00:00:00;42017,00;0,50;"008038";"008";"102";"31/10/2019"
"FSE";"2015-3905/RER";"E39J15002490002";"03109320378";"ISCOM Emilia- Romagna";"Progettazione e produzione alimentare";"Progettazione e produzione alimentare, attivit� rivolta a 48 persone costituita da:";5/11/2015 00:00:00;15/7/2016 00:00:00;138165,99;0,50;"008037:::008039:::008040:::008099";"008";"102";"31/10/2019"
"FSE";"2015-3906/RER";"E39J15001590002";"03109320378";"ISCOM Emilia- Romagna";"Marketing e Vendite";"Marketing e Vendite, attivit� rivolta a 132 persone costituita da:";12/10/2015 00:00:00;31/12/2016 00:00:00;603166,00;0,50;"008033:::008034:::008035:::008036:::008037:::008038:::00804";"008";"102";"31/10/2019"
"FSE";"2015-3907/RER";"E39J15001600002";"03109320378";"ISCOM Emilia- Romagna";"Logistica industriale, del trasporto e spedizione";"Logistica industriale, del trasporto e spedizione, attivit� rivolta a 12 persone costituita da un percorso di formazione di accesso all'area professionale di Logistica industriale, del trasporto e spedizione finalizzato all'acquisizione di un certificato di qualifica di Operatore di magazzino merci. Il corso, della durata di 600 ore, � rivolto a 12 persone.";16/11/2015 00:00:00;15/11/2016 00:00:00;73056,00;0,50;"008036";"008";"102";"31/10/2019"
"FSE";"2015-3910/RER";"E39J15001610002";"03109320378";"ISCOM Emilia- Romagna";"Tecnico degli acquisti e degli approvvigionamenti: nuovi mercati esteri per l'Agroalimentare";"Tecnico degli acquisti e degli approvvigionamenti: nuovi mercati esteri per l'Agroalimentare, attivit� rivolta a 12 persone costituita da un percorso di formazione di specializzazione per l'area professionale di Approvvigionamento e gestione della produzione industriale finalizzato all'acquisizione di un certificato di qualifica di Tecnico degli acquisti e approvvigionamenti. Il corso, della durata di 300 ore, � rivolto a 12 persone.";12/10/2015 00:00:00;2/5/2016 00:00:00;43124,00;0,50;"008037";"008";"102";"31/10/2019"
"FSE";"2015-3911/RER";"E69J15000670002";"02450600396";"SVILUPPO PMI SRL";"PERCORSI DI QUALIFICAZIONE IN AREA MECCANICA";"PERCORSI DI QUALIFICAZIONE IN AREA MECCANICA, attivit� rivolta a 12 persone costituita da un percorso di formazione di specializzazione per l'area professionale di Progettazione e produzione meccanica ed elettromeccanica finalizzato all'acquisizione di un certificato di qualifica di Disegnatore meccanico. Il corso, della durata di 300 ore, � rivolto a 12 persone.";5/11/2015 00:00:00;16/3/2016 00:00:00;43359,00;0,50;"008039";"008";"102";"31/10/2019"
"FSE";"2015-3912/RER";"E69J15000680002";"02450600396";"SVILUPPO PMI SRL";"TECNICO NELLA QUALITA' DEI  PRODOTTI ALIMENTARI BIO";"TECNICO NELLA QUALITA' DEI  PRODOTTI ALIMENTARI BIO, attivit� rivolta a 12 persone costituita da un percorso di formazione di specializzazione per l'area professionale di Progettazione e produzione alimentare finalizzato all'acquisizione di un certificato di qualifica di Tecnico nella qualita� dei prodotti alimentari. Il corso, della durata di 300 ore, � rivolto a 12 persone.";16/11/2015 00:00:00;22/3/2016 00:00:00;42990,00;0,50;"008040";"008";"102";"31/10/2019"
"FSE";"2015-3915/RER";"E69J15000690002";"02450600396";"SVILUPPO PMI SRL";"Tecnico di spedizione, trasporto e logistica";"Tecnico di spedizione, trasporto e logistica, attivit� rivolta a 12 persone costituita da un percorso di formazione di specializzazione per l'area professionale di Logistica industriale, del trasporto e spedizione finalizzato all'acquisizione di un certificato di qualifica di Tecnico di spedizione, trasporto e logistica. Il corso, della durata di 300 ore, � rivolto a 12 persone.";26/10/2015 00:00:00;8/3/2016 00:00:00;43426,00;0,50;"008039";"008";"102";"31/10/2019"
"FSE";"2015-3919/RER";"E39J15001620002";"01306830397";"ANGELO PESCARINI SCUOLA ARTI E MESTIERI Societ� Consortile a responsabilit� limitata";"FORMAZIONE  PER  TECNICO ESPERTO NELLA GESTIONE DI SERVIZI, SPECIALIZZATO NEL SETTORE SOCIALE E SANITARIO";"FORMAZIONE  PER  TECNICO ESPERTO NELLA GESTIONE DI SERVIZI, SPECIALIZZATO NEL SETTORE SOCIALE E SANITARIO, attivit� rivolta a 12 persone costituita da un percorso di formazione di specializzazione per l'area professionale di Gestione processi, progetti e strutture finalizzato all'acquisizione di un certificato di qualifica di Tecnico esperto nella gestione di servizi. Il corso, della durata di 300 ore, � rivolto a 12 persone.";25/11/2015 00:00:00;31/12/2016 00:00:00;46359,00;0,50;"008039";"008";"102";"31/10/2019"
"FSE";"2015-3920/RER";"E69J15000700002";"92013540395";"Il Sestante Romagna s.r.l.";"TECNICO DI PROGRAMMAZIONE DELLA PRODUZIONE INDUSTRIALE";"TECNICO DI PROGRAMMAZIONE DELLA PRODUZIONE INDUSTRIALE, attivit� rivolta a 12 persone costituita da un percorso di formazione di specializzazione per l'area professionale di Approvvigionamento e gestione della produzione industriale finalizzato all'acquisizione di un certificato di qualifica di Tecnico di programmazione della produzione industriale. Il corso, della durata di 300 ore, � rivolto a 12 persone.";18/1/2016 00:00:00;28/4/2016 00:00:00;43728,00;0,50;"008039";"008";"102";"31/10/2019"
"FSE";"2015-3922/RER";"E39J15002500002";"01139920332";"EN.A.I.P. DELLA PROVINCIA DI PIACENZA";"PERCORSI FORMATIVI PER L'OCCUPAZIONE ED IL SOSTEGNO ALLA MOBILITA' PROFESSIONALE IN AMBITO AMMINISTRATIVO CONTABILE";"PERCORSI FORMATIVI PER L'OCCUPAZIONE ED IL SOSTEGNO ALLA MOBILITA' PROFESSIONALE IN AMBITO AMMINISTRATIVO CONTABILE, attivit� rivolta a 30 persone costituita da:";16/11/2015 00:00:00;30/9/2017 00:00:00;119379,00;0,50;"008033";"008";"102";"31/10/2019"
"FSE";"2015-3923/RER";"E49J15000330002";"13081080155";"Adecco Formazione S.r.l.";"OPERATORE MECCANICO ADDETTO ALL'ASSEMBLAGGIO";"OPERATORE MECCANICO ADDETTO ALL'ASSEMBLAGGIO, attivit� rivolta a 12 persone costituita da un percorso di formazione di accesso all'area professionale di Progettazione e produzione meccanica ed elettromeccanica finalizzato all'acquisizione di un certificato di qualifica di Operatore meccanico di sistemi. Il corso, della durata di 600 ore, � rivolto a 12 persone.";6/10/2015 00:00:00;7/4/2016 00:00:00;74160,00;0,50;"008037";"008";"102";"31/10/2019"
"FSE";"2015-3925/RER";"E99J15000860002";"03484210368";"CONFIMI FORMAZIONE EMILIA S.R.L.";"TECNICO COMMERCIALE MARKETING ESPERTO IN INTERNAZIONALIZZAZIONE";"TECNICO COMMERCIALE MARKETING ESPERTO IN INTERNAZIONALIZZAZIONE, attivit� rivolta a 12 persone costituita da un percorso di formazione di specializzazione per l'area professionale di Marketing e vendite finalizzato all'acquisizione di un certificato di qualifica di Tecnico commerciale - marketing. Il corso, della durata di 500 ore, � rivolto a 12 persone.";8/10/2015 00:00:00;10/5/2016 00:00:00;69650,00;0,50;"008036";"008";"102";"31/10/2019"
"FSE";"2015-3926/RER";"E99J15000870002";"03484210368";"CONFIMI FORMAZIONE EMILIA S.R.L.";"GESTORE DI SISTEMI QUALITA' AZIENDALE";"GESTORE DI SISTEMI QUALITA' AZIENDALE, attivit� rivolta a 12 persone costituita da un percorso di formazione di specializzazione per l'area professionale di Sviluppo e gestione del sistema qualita aziendale finalizzato all'acquisizione di un certificato di qualifica di Gestore del sistema qualita� aziendale. Il corso, della durata di 300 ore, � rivolto a 12 persone.";20/10/2015 00:00:00;19/4/2016 00:00:00;42621,00;0,50;"008036";"008";"102";"31/10/2019"
"FSE";"2015-3929/RER";"E99J15000880002";"03484210368";"CONFIMI FORMAZIONE EMILIA S.R.L.";"TECNICO AMMINISTRAZIONE FINANZA E CONTROLLO DI GESTIONE";"TECNICO AMMINISTRAZIONE FINANZA E CONTROLLO DI GESTIONE, attivit� rivolta a 12 persone costituita da un percorso di formazione di specializzazione per l'area professionale di Amministrazione e controllo d�impresa finalizzato all'acquisizione di un certificato di qualifica di Tecnico amministrazione, finanza e controllo di gestione. Il corso, della durata di 300 ore, � rivolto a 12 persone.";9/10/2015 00:00:00;22/4/2016 00:00:00;43728,00;0,50;"008036";"008";"102";"31/10/2019"
"FSE";"2015-3951/RER";"E39J15001660002";"80152680379";"IRECOOP EMILIA-ROMAGNA SOCIETA' COOPERATIVA";"QUALIFICARE L'OCCUPAZIONE DELLE PERSONE E FAVORIRE L'INSERIMENTO LAVORATIVO IN AMBITO AGROALIMENTARE";"QUALIFICARE L'OCCUPAZIONE DELLE PERSONE E FAVORIRE L'INSERIMENTO LAVORATIVO IN AMBITO AGROALIMENTARE, attivit� rivolta a 24 persone costituita da:";9/11/2015 00:00:00;30/4/2017 00:00:00;111067,00;0,50;"008039";"008";"102";"31/10/2019"
"FSE";"2015-3953/RER";"E39J15001670002";"80152680379";"IRECOOP EMILIA-ROMAGNA SOCIETA' COOPERATIVA";"ANIMATORE SOCIALE";"ANIMATORE SOCIALE, attivit� rivolta a 12 persone costituita da un percorso di formazione di specializzazione per l'area professionale di Erogazione servizi socio-sanitari finalizzato all'acquisizione di un certificato di qualifica di Animatore sociale. Il corso, della durata di 300 ore, � rivolto a 12 persone.";20/11/2015 00:00:00;31/12/2016 00:00:00;43359,00;0,50;"008033";"008";"102";"31/10/2019"
"FSE";"2015-3955/RER";"E39J15001680002";"80152680379";"IRECOOP EMILIA-ROMAGNA SOCIETA' COOPERATIVA";"ANIMATORE SOCIALE";"ANIMATORE SOCIALE, attivit� rivolta a 12 persone costituita da un percorso di formazione di specializzazione per l'area professionale di Erogazione servizi socio-sanitari finalizzato all'acquisizione di un certificato di qualifica di Animatore sociale. Il corso, della durata di 300 ore, � rivolto a 12 persone.";11/11/2015 00:00:00;31/12/2016 00:00:00;46728,00;0,50;"008038";"008";"102";"31/10/2019"
"FSE";"2015-3956/RER";"E39J15001690002";"80152680379";"IRECOOP EMILIA-ROMAGNA SOCIETA' COOPERATIVA";"OPERATORE ALLA POLTRONA ODONTOIATRICA";"OPERATORE ALLA POLTRONA ODONTOIATRICA, attivit� rivolta a 12 persone costituita da un percorso di formazione di specializzazione per l'area professionale di Erogazione servizi socio-sanitari finalizzato all'acquisizione di un certificato di qualifica di Operatore alla poltrona odontoiatrica. Il corso, della durata di 300 ore, � rivolto a 12 persone.";11/11/2015 00:00:00;14/10/2016 00:00:00;42359,00;0,50;"008037";"008";"102";"31/10/2019"
"FSE";"2015-3958/RER";"E39J15001700002";"80152680379";"IRECOOP EMILIA-ROMAGNA SOCIETA' COOPERATIVA";"OPERATORE AGRO-ALIMENTARE";"OPERATORE AGRO-ALIMENTARE, attivit� rivolta a 12 persone costituita da un percorso di formazione di accesso all'area professionale di Progettazione e produzione alimentare finalizzato all'acquisizione di un certificato di qualifica di Operatore agro-alimentare. Il corso, della durata di 600 ore, � rivolto a 12 persone.";16/11/2015 00:00:00;28/7/2016 00:00:00;69716,00;0,50;"008037";"008";"102";"31/10/2019"
"FSE";"2015-3959/RER";"E39J15001710002";"80152680379";"IRECOOP EMILIA-ROMAGNA SOCIETA' COOPERATIVA";"OPERATORE AGRO-ALIMENTARE";"OPERATORE AGRO-ALIMENTARE, attivit� rivolta a 12 persone costituita da un percorso di formazione di accesso all'area professionale di Progettazione e produzione alimentare finalizzato all'acquisizione di un certificato di qualifica di Operatore agro-alimentare. Il corso, della durata di 600 ore, � rivolto a 12 persone.";30/10/2015 00:00:00;31/3/2017 00:00:00;71816,00;0,50;"008040";"008";"102";"31/10/2019"
"FSE";"2015-3968/RER";"E49J15000360002";"02602440352";"WARRANTRAINING S.R.L.";"Tecnico amministrazione, finanza e controllo di gestione con competenze in internazionalizzazione del business";"Tecnico amministrazione, finanza e controllo di gestione con competenze in internazionalizzazione del business, attivit� rivolta a 12 persone costituita da un percorso di formazione di specializzazione per l'area professionale di Amministrazione e controllo d�impresa finalizzato all'acquisizione di un certificato di qualifica di Tecnico amministrazione, finanza e controllo di gestione. Il corso, della durata di 300 ore, � rivolto a 12 persone.";19/10/2015 00:00:00;24/3/2016 00:00:00;43728,00;0,50;"008035";"008";"102";"31/10/2019"
"FSE";"2015-3969/RER";"E49J15000370002";"02602440352";"WARRANTRAINING S.R.L.";"Disegnatore meccanico";"Disegnatore meccanico, attivit� rivolta a 12 persone costituita da un percorso di formazione di specializzazione per l'area professionale di Progettazione e produzione meccanica ed elettromeccanica finalizzato all'acquisizione di un certificato di qualifica di Disegnatore meccanico. Il corso, della durata di 300 ore, � rivolto a 12 persone.";27/10/2015 00:00:00;29/8/2016 00:00:00;43359,00;0,50;"008035";"008";"102";"31/10/2019"
"FSE";"2015-3970/RER";"E49J15000380002";"02602440352";"WARRANTRAINING S.R.L.";"GESTORE DEL SISTEMA QUALITA' AZIENDALE";"GESTORE DEL SISTEMA QUALITA' AZIENDALE, attivit� rivolta a 24 persone costituita da:";20/10/2015 00:00:00;17/3/2016 00:00:00;87087,00;0,50;"008035:::008036";"008";"102";"31/10/2019"
"FSE";"2015-3990/RER";"E39J15001770002";"80061110377";"IAL Innovazione Apprendimento Lavoro Emilia Romagna S.r.l. Impresa Sociale";"Il management dei servizi turistico ricettivi";"Il management dei servizi turistico ricettivi, attivit� rivolta a 12 persone costituita da un percorso di formazione di specializzazione per l'area professionale di Promozione ed erogazione servizi turistici finalizzato all'acquisizione di un certificato di qualifica di Tecnico dei servizi turistico-ricettivi. Il corso, della durata di 300 ore, � rivolto a 12 persone.";16/11/2015 00:00:00;22/4/2016 00:00:00;42973,00;0,50;"008040";"008";"102";"31/10/2019"
"FSE";"2015-3992/RER";"E39J15001780002";"80061110377";"IAL Innovazione Apprendimento Lavoro Emilia Romagna S.r.l. Impresa Sociale";"SVILUPPO DI COMPETENZE NELL'AREA PROGETTAZIONE E PRODUZIONE MECCANICA ED ELETTROMECCANICA";"SVILUPPO DI COMPETENZE NELL'AREA PROGETTAZIONE E PRODUZIONE MECCANICA ED ELETTROMECCANICA, attivit� rivolta a 36 persone costituita da:";9/11/2015 00:00:00;5/5/2017 00:00:00;212687,00;0,50;"008036";"008";"102";"31/10/2019"
"FSE";"2015-3993/RER";"E39J15001790002";"80061110377";"IAL Innovazione Apprendimento Lavoro Emilia Romagna S.r.l. Impresa Sociale";"La salute a tavola: un�alimentazione sana con prodotti di qualit�";"La salute a tavola: un�alimentazione sana con prodotti di qualit�, attivit� rivolta a 12 persone costituita da un percorso di formazione di specializzazione per l'area professionale di Produzione e distribuzione pasti finalizzato all'acquisizione di un certificato di qualifica di Operatore della produzione di pasticceria. Il corso, della durata di 300 ore, � rivolto a 12 persone.";5/10/2015 00:00:00;21/1/2016 00:00:00;43728,00;0,50;"008038";"008";"102";"31/10/2019"
"FSE";"2015-3996/RER";"E39J15001800002";"80061110377";"IAL Innovazione Apprendimento Lavoro Emilia Romagna S.r.l. Impresa Sociale";"Fare ristorazione";"Fare ristorazione, attivit� rivolta a 12 persone costituita da un percorso di formazione di specializzazione per l'area professionale di Produzione e distribuzione pasti finalizzato all'acquisizione di un certificato di qualifica di Operatore della produzione pasti. Il corso, della durata di 300 ore, � rivolto a 12 persone.";26/10/2015 00:00:00;25/2/2016 00:00:00;43728,00;0,50;"008039";"008";"102";"31/10/2019"
"FSE";"2015-3997/RER";"E39J15001810002";"80061110377";"IAL Innovazione Apprendimento Lavoro Emilia Romagna S.r.l. Impresa Sociale";"Fare turismo";"Fare turismo, attivit� rivolta a 12 persone costituita da un percorso di formazione di specializzazione per l'area professionale di Promozione ed erogazione servizi turistici finalizzato all'acquisizione di un certificato di qualifica di Tecnico dei servizi turistico-ricettivi. Il corso, della durata di 300 ore, � rivolto a 12 persone.";16/11/2015 00:00:00;9/6/2016 00:00:00;43728,00;0,50;"008039";"008";"102";"31/10/2019"
"FSE";"2015-4/SE";"E41E14000140007";"97163140581";"Tecnostruttura delle Regioni per il Fondo Sociale Europeo";"Progetto di assistenza tecnica istituzionale alle Regioni e Province autonome POR FSE 2014/2020 - Concessione e assegnazione finanziamento";"Progetto di assistenza tecnica istituzionale alle Regioni e Province autonome POR FSE 2014/2020 - Concessione e assegnazione finanziamento";1/1/2015 00:00:00;31/12/2015 00:00:00;103070,00;0,50;"008037";"008";"121";"31/10/2019"
"FSE";"2015-4001/RER";"E39J15001820002";"80061110377";"IAL Innovazione Apprendimento Lavoro Emilia Romagna S.r.l. Impresa Sociale";"SVILUPPO DI COMPETENZE PER IL MARKETING E LE VENDITE A REGGIO EMILIA";"SVILUPPO DI COMPETENZE PER IL MARKETING E LE VENDITE A REGGIO EMILIA, attivit� rivolta a 12 persone costituita da un percorso di formazione di accesso all'area professionale di Marketing e vendite finalizzato all'acquisizione di un certificato di qualifica di Operatore del punto vendita. Il corso, della durata di 600 ore, � rivolto a 12 persone.";6/11/2015 00:00:00;13/5/2016 00:00:00;72786,00;0,50;"008035";"008";"102";"31/10/2019"
"FSE";"2015-4004/RER";"E39J15001830002";"80061110377";"IAL Innovazione Apprendimento Lavoro Emilia Romagna S.r.l. Impresa Sociale";"Competenze nella Programmazione Specializzata in soluzioni Mobile";"Competenze nella Programmazione Specializzata in soluzioni Mobile, attivit� rivolta a 12 persone costituita da un percorso di formazione di specializzazione per l'area professionale di Sviluppo e gestione sistemi informatici finalizzato all'acquisizione di un certificato di qualifica di Analista programmatore. Il corso, della durata di 300 ore, � rivolto a 12 persone.";13/11/2015 00:00:00;21/12/2016 00:00:00;44624,00;0,50;"008037";"008";"102";"31/10/2019"
"FSE";"2015-4006/RER";"E39J15001840002";"80061110377";"IAL Innovazione Apprendimento Lavoro Emilia Romagna S.r.l. Impresa Sociale";"Competenze di contabilit� specializzata nell'Import ed Export";"Competenze di contabilit� specializzata nell'Import ed Export, attivit� rivolta a 12 persone costituita da un percorso di formazione di specializzazione per l'area professionale di Amministrazione e controllo d�impresa finalizzato all'acquisizione di un certificato di qualifica di Tecnico contabile. Il corso, della durata di 300 ore, � rivolto a 12 persone.";9/11/2015 00:00:00;15/7/2016 00:00:00;46275,00;0,50;"008037";"008";"102";"31/10/2019"
"FSE";"2015-4007/RER";"E39J15001850002";"80061110377";"IAL Innovazione Apprendimento Lavoro Emilia Romagna S.r.l. Impresa Sociale";"Produzione e Distribuzione Pasti nell�area di Parma";"Produzione e Distribuzione Pasti nell�area di Parma, attivit� rivolta a 12 persone costituita da un percorso di formazione di accesso all'area professionale di Produzione e distribuzione pasti finalizzato all'acquisizione di un certificato di qualifica di Operatore della ristorazione. Il corso, della durata di 600 ore, � rivolto a 12 persone.";13/10/2015 00:00:00;10/5/2016 00:00:00;72453,00;0,50;"008034";"008";"102";"31/10/2019"
"FSE";"2015-4008/RER";"E39J15001860002";"80061110377";"IAL Innovazione Apprendimento Lavoro Emilia Romagna S.r.l. Impresa Sociale";"Tecnico gestione punto vendita per l'area di Parma";"Tecnico gestione punto vendita per l'area di Parma, attivit� rivolta a 12 persone costituita da un percorso di formazione di specializzazione per l'area professionale di Marketing e vendite finalizzato all'acquisizione di un certificato di qualifica di Tecnico della gestione del punto vendita. Il corso, della durata di 300 ore, � rivolto a 12 persone.";8/10/2015 00:00:00;4/2/2016 00:00:00;42621,00;0,50;"008034";"008";"102";"31/10/2019"
"FSE";"2015-4010/RER";"E39J15001870002";"80061110377";"IAL Innovazione Apprendimento Lavoro Emilia Romagna S.r.l. Impresa Sociale";"Produzione e Distribuzione Pasti nell�area di Piacenza";"Produzione e Distribuzione Pasti nell�area di Piacenza, attivit� rivolta a 12 persone costituita da un percorso di formazione di accesso all'area professionale di Produzione e distribuzione pasti finalizzato all'acquisizione di un certificato di qualifica di Operatore della ristorazione. Il corso, della durata di 600 ore, � rivolto a 12 persone.";28/10/2015 00:00:00;22/4/2016 00:00:00;72588,00;0,50;"008033";"008";"102";"31/10/2019"
"FSE";"2015-4014/RER";"E99J15000940002";"02020330342";"FORMA FUTURO Soc.Cons. r.l.";"PROGETTAZIONE E PRODUZIONE IN AREA MECCANICA";"PROGETTAZIONE E PRODUZIONE IN AREA MECCANICA, attivit� rivolta a 15 persone costituita da un percorso di formazione di specializzazione per l'area professionale di Progettazione e produzione meccanica ed elettromeccanica finalizzato all'acquisizione di un certificato di qualifica di Tecnologo di prodotto/processo nella meccanica. Il corso, della durata di 300 ore, � rivolto a 15 persone.";16/11/2015 00:00:00;29/9/2016 00:00:00;47085,00;0,50;"008034";"008";"102";"31/10/2019"
"FSE";"2015-4017/RER";"E39J15001880002";"91204630379";"E.N.F.A.P. Emilia-Romagna - Ente per la Formazione e l'Addestramento Professionale";"Formazione per l'inserimento lavorativo nell'area professionale ""Amministrazione e controllo d'impresa"" -  area urbana Bologna";"Formazione per l'inserimento lavorativo nell'area professionale Amministrazione e controllo d'impresa -  area urbana Bologna, attivit� rivolta a 12 persone costituita da un percorso di formazione di accesso all'area professionale di Amministrazione e controllo d�impresa finalizzato all'acquisizione di un certificato di qualifica di Operatore amministrativo-segretariale. Il corso, della durata di 600 ore, � rivolto a 12 persone.";13/10/2015 00:00:00;16/6/2016 00:00:00;73056,00;0,50;"008037";"008";"102";"31/10/2019"
"FSE";"2015-4018/RER";"E39J15001890002";"91204630379";"E.N.F.A.P. Emilia-Romagna - Ente per la Formazione e l'Addestramento Professionale";"Formazione per l'inserimento lavorativo nell'area professionale ""Amministrazione e controllo d'impresa"" - area urbana Forl�";"Formazione per l'inserimento lavorativo nell'area professionale Amministrazione e controllo d'impresa - area urbana Forl�, attivit� rivolta a 12 persone costituita da un percorso di formazione di accesso all'area professionale di Amministrazione e controllo d�impresa finalizzato all'acquisizione di un certificato di qualifica di Operatore amministrativo-segretariale. Il corso, della durata di 600 ore, � rivolto a 12 persone.";13/10/2015 00:00:00;29/4/2016 00:00:00;73120,00;0,50;"008040";"008";"102";"31/10/2019"
"FSE";"2015-4020/RER";"E39J15001900002";"91204630379";"E.N.F.A.P. Emilia-Romagna - Ente per la Formazione e l'Addestramento Professionale";"Formazione per l�inserimento lavorativo nell�area professionale ""Progettazione ed erogazione prodotti informativi e comunicativi"" - area urbana Bologna";"Formazione per l�inserimento lavorativo nell�area professionale Progettazione ed erogazione prodotti informativi e comunicativi - area urbana Bologna, attivit� rivolta a 12 persone costituita da un percorso di formazione di specializzazione per l'area professionale di Progettazione ed erogazione servizi/prodotti informativi e comunicativi finalizzato all'acquisizione di un certificato di qualifica di Redattore di prodotti editoriali. Il corso, della durata di 300 ore, � rivolto a 12 persone.";3/11/2015 00:00:00;1/6/2016 00:00:00;44328,00;0,50;"008037";"008";"102";"31/10/2019"
"FSE";"2015-4024/RER";"E39J15001910002";"91204630379";"E.N.F.A.P. Emilia-Romagna - Ente per la Formazione e l'Addestramento Professionale";"Formazione per l'inserimento lavorativo nell'area professionale ""Progettazione e produzione meccanica ed elettromeccanica""";"Formazione per l'inserimento lavorativo nell'area professionale Progettazione e produzione meccanica ed elettromeccanica, attivit� rivolta a 12 persone costituita da un percorso di formazione di accesso all'area professionale di Progettazione e produzione meccanica ed elettromeccanica finalizzato all'acquisizione di un certificato di qualifica di Costruttore di carpenteria metallica. Il corso, della durata di 600 ore, � rivolto a 12 persone.";12/11/2015 00:00:00;5/5/2016 00:00:00;71652,00;0,50;"008040";"008";"102";"31/10/2019"
"FSE";"2015-4026/RER";"E39J15001920002";"91204630379";"E.N.F.A.P. Emilia-Romagna - Ente per la Formazione e l'Addestramento Professionale";"Formazione per l�inserimento lavorativo nell�area professionale ""Logistica industriale, del trasporto e spedizione""";"Formazione per l�inserimento lavorativo nell�area professionale Logistica industriale, del trasporto e spedizione, attivit� rivolta a 12 persone costituita da un percorso di formazione di specializzazione per l'area professionale di Logistica industriale, del trasporto e spedizione finalizzato all'acquisizione di un certificato di qualifica di Tecnico di spedizione, trasporto e logistica. Il corso, della durata di 300 ore, � rivolto a 12 persone.";14/10/2015 00:00:00;16/3/2016 00:00:00;43728,00;0,50;"008039";"008";"102";"31/10/2019"
"FSE";"2015-4027/RER";"E39J15001930002";"91204630379";"E.N.F.A.P. Emilia-Romagna - Ente per la Formazione e l'Addestramento Professionale";"Formazione per l�inserimento lavorativo nell�area professionale ""Progettazione ed erogazione prodotti informativi e comunicativi"" - area urbana Forl�";"Formazione per l�inserimento lavorativo nell�area professionale Progettazione ed erogazione prodotti informativi e comunicativi - area urbana Forl�, attivit� rivolta a 12 persone costituita da un percorso di formazione di specializzazione per l'area professionale di Progettazione ed erogazione servizi/prodotti informativi e comunicativi finalizzato all'acquisizione di un certificato di qualifica di Tecnico della comunicazione-informazione. Il corso, della durata di 300 ore, � rivolto a 12 persone.";10/11/2015 00:00:00;16/3/2016 00:00:00;44878,00;0,50;"008040";"008";"102";"31/10/2019"
"FSE";"2015-4028/RER";"E39J15001940002";"01523560389";"CENTOFORM S.R.L.";"OPERATORE MECCANICO";"OPERATORE MECCANICO, attivit� rivolta a 28 persone costituita da:";25/9/2015 00:00:00;4/4/2017 00:00:00;149256,00;0,50;"008038";"008";"102";"31/10/2019"
"FSE";"2015-4029/RER";"E39J15001950002";"01523560389";"CENTOFORM S.R.L.";"PROGETTAZIONE ARCHITETTONICA CON STRUMENTI BIM (Building Information Modeling)";"PROGETTAZIONE ARCHITETTONICA CON STRUMENTI BIM (Building Information Modeling), attivit� rivolta a 12 persone costituita da un percorso di formazione di specializzazione per l'area professionale di Progettazione e costruzione edile finalizzato all'acquisizione di un certificato di qualifica di Disegnatore edile. Il corso, della durata di 300 ore, � rivolto a 12 persone.";16/11/2015 00:00:00;15/4/2016 00:00:00;43959,00;0,50;"008038";"008";"102";"31/10/2019"
"FSE";"2015-4030/RER";"E39J15002510002";"01523560389";"CENTOFORM S.R.L.";"OPERATORE DELLE CALZATURE e DELLA PELLETTERIA";"OPERATORE DELLE CALZATURE e DELLA PELLETTERIA, attivit� rivolta a 12 persone costituita da un percorso di formazione di accesso all'area professionale di Progettazione e produzione calzature in pelle finalizzato all'acquisizione di un certificato di competenze di Operatore delle calzature. Il corso, della durata di 400 ore, � rivolto a 12 persone.";22/6/2016 00:00:00;22/9/2016 00:00:00;48224,00;0,50;"008038";"008";"102";"31/10/2019"
"FSE";"2015-4032/RER";"E39J15001960002";"01523560389";"CENTOFORM S.R.L.";"RICAMATRICE: SAPIENZA ARTIGIANALE PER IL FUTURO";"RICAMATRICE: SAPIENZA ARTIGIANALE PER IL FUTURO, attivit� rivolta a 12 persone costituita da un percorso di formazione di specializzazione per l'area professionale di Progettazione e produzione tessile ed abbigliamento � confezione e maglieria finalizzato all'acquisizione di un certificato di competenze di Tecnico della confezione capo-campione. Il corso, della durata di 200 ore, � rivolto a 12 persone.";4/11/2015 00:00:00;18/12/2015 00:00:00;28972,00;0,50;"008037";"008";"102";"31/10/2019"
"FSE";"2015-4034/RER";"E99J15000950002";"02447460409";"ASSOFORM ROMAGNA S.C. a r.l.";"SVILUPPO DELL'OCCUPAZIONE IN AREA AMMINISTRAZIONE E CONTROLLO D'IMPRESA";"SVILUPPO DELL'OCCUPAZIONE IN AREA AMMINISTRAZIONE E CONTROLLO D'IMPRESA, attivit� rivolta a 24 persone costituita da:";16/11/2015 00:00:00;17/6/2016 00:00:00;88956,00;0,50;"008040:::008099";"008";"102";"31/10/2019"
"FSE";"2015-4035/RER";"E99J15000960002";"02447460409";"ASSOFORM ROMAGNA S.C. a r.l.";"SVILUPPO OCCUPAZIONE NEL SETTORE TERMALE";"SVILUPPO OCCUPAZIONE NEL SETTORE TERMALE, attivit� rivolta a 12 persone costituita da un percorso di formazione di specializzazione per l'area professionale di Erogazione servizi socio-sanitari finalizzato all'acquisizione di un certificato di qualifica di Operatore termale. Il corso, della durata di 300 ore, � rivolto a 12 persone.";9/11/2015 00:00:00;31/3/2016 00:00:00;44328,00;0,50;"008099";"008";"102";"31/10/2019"
"FSE";"2015-4036/RER";"E99J15000970002";"02447460409";"ASSOFORM ROMAGNA S.C. a r.l.";"SVILUPPO OCCUPAZIONE SETTORE MODA";"SVILUPPO OCCUPAZIONE SETTORE MODA, attivit� rivolta a 24 persone costituita da:";7/10/2015 00:00:00;14/6/2016 00:00:00;90456,00;0,50;"008099";"008";"102";"31/10/2019"
"FSE";"2015-4039/RER";"E19J15000770002";"03458820366";"Zenit srl";"Tecnico grafico";"Tecnico grafico, attivit� rivolta a 12 persone costituita da un percorso di formazione di specializzazione per l'area professionale di Progettazione e produzione prodotti grafici finalizzato all'acquisizione di un certificato di qualifica di Tecnico grafico. Il corso, della durata di 300 ore, � rivolto a 12 persone.";16/11/2015 00:00:00;6/4/2016 00:00:00;41421,00;0,50;"008036";"008";"102";"31/10/2019"
"FSE";"2015-4041/RER";"E19J15000780002";"03458820366";"Zenit srl";"Operatore di magazzino merci";"Operatore di magazzino merci, attivit� rivolta a 14 persone costituita da un percorso di formazione di accesso all'area professionale di Logistica industriale, del trasporto e spedizione finalizzato all'acquisizione di un certificato di qualifica di Operatore di magazzino merci. Il corso, della durata di 600 ore, � rivolto a 14 persone.";25/1/2016 00:00:00;31/12/2016 00:00:00;72516,00;0,50;"008036";"008";"102";"31/10/2019"
"FSE";"2015-4043/RER";"E19J15000790002";"03458820366";"Zenit srl";"Percorsi di formazione in area ""Progettazione e produzione meccanica ed elettromeccanica""";"Percorsi di formazione in area Progettazione e produzione meccanica ed elettromeccanica, attivit� rivolta a 12 persone costituita da un percorso di formazione di accesso all'area professionale di Progettazione e produzione meccanica ed elettromeccanica finalizzato all'acquisizione di un certificato di competenze di Costruttore di carpenteria metallica. Il corso, della durata di 200 ore, � rivolto a 12 persone.";25/1/2016 00:00:00;31/10/2016 00:00:00;24560,00;0,50;"008036";"008";"102";"31/10/2019"
"FSE";"2015-4044/RER";"E99J15001060002";"91126520401";"FONDAZIONE VALMARECCHIA";"TECNICO DELLA COMUNICAZIONE-INFORMAZIONE";"TECNICO DELLA COMUNICAZIONE-INFORMAZIONE, attivit� rivolta a 12 persone costituita da un percorso di formazione di specializzazione per l'area professionale di Progettazione ed erogazione servizi/prodotti informativi e comunicativi finalizzato all'acquisizione di un certificato di qualifica di Tecnico della comunicazione-informazione. Il corso, della durata di 500 ore, � rivolto a 12 persone.";1/12/2015 00:00:00;28/5/2016 00:00:00;70880,00;0,50;"008099";"008";"102";"31/10/2019"
"FSE";"2015-4046/RER";"E89J15000930002";"01548000387";"SINERGIE societ� consortile a r. l. ";"Tecnico nelle soluzioni energetiche sistema edificio-impianto esperto nell�efficientamento energetico degli edifici storici";"Tecnico nelle soluzioni energetiche sistema edificio-impianto esperto nell�efficientamento energetico degli edifici storici, attivit� rivolta a 15 persone costituita da un percorso di formazione di specializzazione per l'area professionale di Sviluppo e gestione dell�energia finalizzato all'acquisizione di un certificato di qualifica di Tecnico nelle soluzioni energetiche sistema edificio impianto. Il corso, della durata di 300 ore, � rivolto a 15 persone.";16/11/2015 00:00:00;31/3/2017 00:00:00;40924,00;0,50;"008035";"008";"102";"31/10/2019"
"FSE";"2015-4051/RER";"E39J15001970002";"01503150334";"COM 2 SRL";"Tecnico contabile con competenze digitali per favorire l'inserimento lavorativo";"Tecnico contabile con competenze digitali per favorire l'inserimento lavorativo, attivit� rivolta a 12 persone costituita da un percorso di formazione di specializzazione per l'area professionale di Amministrazione e controllo d�impresa finalizzato all'acquisizione di un certificato di qualifica di Tecnico contabile. Il corso, della durata di 500 ore, � rivolto a 12 persone.";20/1/2016 00:00:00;23/6/2016 00:00:00;72755,00;0,50;"008099";"008";"102";"31/10/2019"
"FSE";"2015-4052/RER";"E89J15001080002";"00945360428";"SIDA GROUP S.R.L.";"OCCUPAZIONE NELLA FILIERA AGROALIMENTARE: FORMAZIONE, CERTIFICAZIONE DELLE COMPETENZE ACQUISITE E MISURE DI ACCOMPAGNAMENTO PER L'INSERIMENTO LAVORATIVO";"OCCUPAZIONE NELLA FILIERA AGROALIMENTARE: FORMAZIONE, CERTIFICAZIONE DELLE COMPETENZE ACQUISITE E MISURE DI ACCOMPAGNAMENTO PER L'INSERIMENTO LAVORATIVO, attivit� rivolta a 30 persone costituita da:";9/11/2015 00:00:00;13/9/2016 00:00:00;117365,00;0,50;"008037";"008";"102";"31/10/2019"
"FSE";"2015-4055/RER";"E89J15000940002";"80001790353";"Centro di formazione professionale Alberto Simonini";"PROGETTISTA MECCANICO CON COMPETENZE MECCANOPLASTICHE";"PROGETTISTA MECCANICO CON COMPETENZE MECCANOPLASTICHE, attivit� rivolta a 12 persone costituita da un percorso di formazione di specializzazione per l'area professionale di Progettazione e produzione meccanica ed elettromeccanica finalizzato all'acquisizione di un certificato di qualifica di Progettista meccanico. Il corso, della durata di 500 ore, � rivolto a 12 persone.";9/11/2015 00:00:00;8/11/2016 00:00:00;65864,00;0,50;"008035";"008";"102";"31/10/2019"
"FSE";"2015-4056/RER";"E89J15000950002";"80001790353";"Centro di formazione professionale Alberto Simonini";"TECNICO NEI SISTEMI DOMOTICI";"TECNICO NEI SISTEMI DOMOTICI, attivit� rivolta a 12 persone costituita da un percorso di formazione di specializzazione per l'area professionale di Installazione componenti e impianti elettrici e termo-idraulici finalizzato all'acquisizione di un certificato di qualifica di Tecnico nei sistemi domotici. Il corso, della durata di 300 ore, � rivolto a 12 persone.";9/11/2015 00:00:00;8/11/2016 00:00:00;42621,00;0,50;"008035";"008";"102";"31/10/2019"
"FSE";"2015-4059/RER";"E99J15000990002";"92065520345";"CISITA Parma S.r.l.";"Tecnico Commerciale Marketing con specializzazione sui Mercati Internazionali";"Tecnico Commerciale Marketing con specializzazione sui Mercati Internazionali, attivit� rivolta a 12 persone costituita da un percorso di formazione di specializzazione per l'area professionale di Marketing e vendite finalizzato all'acquisizione di un certificato di qualifica di Tecnico commerciale - marketing. Il corso, della durata di 300 ore, � rivolto a 12 persone.";25/1/2016 00:00:00;9/6/2016 00:00:00;42759,00;0,50;"008034";"008";"102";"31/10/2019"
"FSE";"2015-4061/RER";"E99J15001000002";"92065520345";"CISITA Parma S.r.l.";"Tecnico gestore degli approvvigionamenti e della catena di fornitura";"Tecnico gestore degli approvvigionamenti e della catena di fornitura, attivit� rivolta a 12 persone costituita da un percorso di formazione di specializzazione per l'area professionale di Approvvigionamento e gestione della produzione industriale finalizzato all'acquisizione di un certificato di qualifica di Tecnico degli acquisti e approvvigionamenti. Il corso, della durata di 300 ore, � rivolto a 12 persone.";10/12/2015 00:00:00;12/5/2016 00:00:00;43359,00;0,50;"008034";"008";"102";"31/10/2019"
"FSE";"2015-4062/RER";"E99J15001010002";"92065520345";"CISITA Parma S.r.l.";"Tecnico di Spedizioni, Trasporti e Logistica Internazionale";"Tecnico di Spedizioni, Trasporti e Logistica Internazionale, attivit� rivolta a 12 persone costituita da un percorso di formazione di specializzazione per l'area professionale di Logistica industriale, del trasporto e spedizione finalizzato all'acquisizione di un certificato di qualifica di Tecnico di spedizione, trasporto e logistica. Il corso, della durata di 300 ore, � rivolto a 12 persone.";10/12/2015 00:00:00;20/5/2016 00:00:00;43728,00;0,50;"008034";"008";"102";"31/10/2019"
"FSE";"2015-4063/RER";"E39J15001980002";"04237330370";"DINAMICA soc.cons.r.l";"Produzione agricola: competenze a favore  dell�occupabilit�";"Produzione agricola: competenze a favore  dell�occupabilit�, attivit� rivolta a 65 persone costituita da:";26/10/2015 00:00:00;13/5/2016 00:00:00;162679,41;0,50;"008036:::008037:::008038";"008";"102";"31/10/2019"
"FSE";"2015-4066/RER";"E39J15002520002";"04237330370";"DINAMICA soc.cons.r.l";"Nuove figure tecniche per il marketing e le vendite nel settore agroalimentare";"Nuove figure tecniche per il marketing e le vendite nel settore agroalimentare, attivit� rivolta a 39 persone costituita da:";9/11/2015 00:00:00;5/7/2016 00:00:00;179066,56;0,50;"008033:::008038:::008039";"008";"102";"31/10/2019"
"FSE";"2015-4067/RER";"E39J15001990002";"04237330370";"DINAMICA soc.cons.r.l";"Progettazione e gestione del verde: competenze a favore dell'occupabilit�";"Progettazione e gestione del verde: competenze a favore dell'occupabilit�, attivit� rivolta a 51 persone costituita da:";26/10/2015 00:00:00;24/6/2016 00:00:00;254239,00;0,50;"008035:::008036:::008037:::008099";"008";"102";"31/10/2019"
"FSE";"2015-4068/RER";"E39J15002000002";"04237330370";"DINAMICA soc.cons.r.l";"Tecnico esperto nella gestione dell'energia (nell'era della Green Economy)";"Tecnico esperto nella gestione dell'energia (nell'era della Green Economy), attivit� rivolta a 13 persone costituita da un percorso di formazione di specializzazione per l'area professionale di Sviluppo e gestione dell�energia finalizzato all'acquisizione di un certificato di qualifica di Tecnico esperto nella gestione dell�energia. Il corso, della durata di 500 ore, � rivolto a 13 persone.";5/11/2015 00:00:00;24/6/2016 00:00:00;64765,00;0,50;"008040";"008";"102";"31/10/2019"
"FSE";"2015-4071/RER";"E39J15002010002";"80090410376";"Associazione Emiliano - Romagnola di centri autonomi di formazione professionale - A.E.C.A";"SVILUPPO DEL COMPARTO MECCANICO IN AREE URBANE";"SVILUPPO DEL COMPARTO MECCANICO IN AREE URBANE, attivit� rivolta a 84 persone costituita da:";10/11/2015 00:00:00;30/6/2017 00:00:00;395472,00;0,50;"008033:::008036:::008037:::008039:::008040";"008";"102";"31/10/2019"
"FSE";"2015-4072/RER";"E39J15002020002";"80090410376";"Associazione Emiliano - Romagnola di centri autonomi di formazione professionale - A.E.C.A";"SVILUPPO DEL SETTORE MECCANICO IN AREA SISMA (NEI TERRITORI DI FERRARA E CENTO)";"SVILUPPO DEL SETTORE MECCANICO IN AREA SISMA (NEI TERRITORI DI FERRARA E CENTO), attivit� rivolta a 36 persone costituita da:";13/11/2015 00:00:00;30/6/2017 00:00:00;128242,00;0,50;"008038";"008";"102";"31/10/2019"
"FSE";"2015-4073/RER";"E39J15002530002";"80090410376";"Associazione Emiliano - Romagnola di centri autonomi di formazione professionale - A.E.C.A";"AUTOMOTIVE - AREA URBANA MODENA";"AUTOMOTIVE - AREA URBANA MODENA, attivit� rivolta a 24 persone costituita da:";16/11/2015 00:00:00;30/4/2017 00:00:00;128585,00;0,50;"008036";"008";"102";"31/10/2019"
"FSE";"2015-4074/RER";"E39J15002030002";"80090410376";"Associazione Emiliano - Romagnola di centri autonomi di formazione professionale - A.E.C.A";"GESTIONE D'IMPRESA IN UN'OTTICA DI INNOVAZIONE ED INTERNAZIONALIZZAZIONE";"GESTIONE D'IMPRESA IN UN'OTTICA DI INNOVAZIONE ED INTERNAZIONALIZZAZIONE, attivit� rivolta a 24 persone costituita da:";26/10/2015 00:00:00;31/12/2016 00:00:00;58810,36;0,50;"008036:::008039";"008";"102";"31/10/2019"
"FSE";"2015-4075/RER";"E39J15002540002";"80090410376";"Associazione Emiliano - Romagnola di centri autonomi di formazione professionale - A.E.C.A";"PERCORSI DI FORMAZIONE IN AMBITO ELETTRICO E DOMOTICO IN AREE URBANE";"PERCORSI DI FORMAZIONE IN AMBITO ELETTRICO E DOMOTICO IN AREE URBANE, attivit� rivolta a 36 persone costituita da:";16/11/2015 00:00:00;31/12/2016 00:00:00;141270,60;0,50;"008036:::008039:::008040";"008";"102";"31/10/2019"
"FSE";"2015-4076/RER";"E39J15002040002";"80090410376";"Associazione Emiliano - Romagnola di centri autonomi di formazione professionale - A.E.C.A";"FORMAZIONE NELL'AREA LOGISTICA IN EMILIA ROMAGNA";"FORMAZIONE NELL'AREA LOGISTICA IN EMILIA ROMAGNA, attivit� rivolta a 12 persone costituita da un percorso di formazione di accesso all'area professionale di Logistica industriale, del trasporto e spedizione finalizzato all'acquisizione di un certificato di competenze di Operatore di magazzino merci. Il corso, della durata di 300 ore, � rivolto a 12 persone.";13/11/2015 00:00:00;31/12/2016 00:00:00;36548,00;0,50;"008038";"008";"102";"31/10/2019"
"FSE";"2015-4077/RER";"E39J15002050002";"80090410376";"Associazione Emiliano - Romagnola di centri autonomi di formazione professionale - A.E.C.A";"INTERVENTI A SUPPORTO DEL MARKETING, VENDITE E COMMERCIO NELLE AREE URBANE";"INTERVENTI A SUPPORTO DEL MARKETING, VENDITE E COMMERCIO NELLE AREE URBANE, attivit� rivolta a 36 persone costituita da:";12/11/2015 00:00:00;31/12/2016 00:00:00;132275,00;0,50;"008037:::008038:::008039";"008";"102";"31/10/2019"
"FSE";"2015-4078/RER";"E39J15002060002";"80090410376";"Associazione Emiliano - Romagnola di centri autonomi di formazione professionale - A.E.C.A";"RISTORAZIONE IN AREA SISMA";"RISTORAZIONE IN AREA SISMA, attivit� rivolta a 27 persone costituita da:";16/11/2015 00:00:00;30/4/2017 00:00:00;143550,00;0,50;"008036";"008";"102";"31/10/2019"
"FSE";"2015-4079/RER";"E39J15002070002";"80090410376";"Associazione Emiliano - Romagnola di centri autonomi di formazione professionale - A.E.C.A";"AZIONI FORMATIVE IN AMBITO ENOGASTRONOMICO PER LO SVILUPPO ECONOMICO ED OCCUPAZIONALE DELL�APPENNINO BOLOGNESE";"AZIONI FORMATIVE IN AMBITO ENOGASTRONOMICO PER LO SVILUPPO ECONOMICO ED OCCUPAZIONALE DELL�APPENNINO BOLOGNESE, attivit� rivolta a 15 persone costituita da un percorso di formazione di accesso all'area professionale di Produzione e distribuzione pasti finalizzato all'acquisizione di un certificato di qualifica di Operatore della ristorazione. Il corso, della durata di 600 ore, � rivolto a 15 persone.";25/11/2015 00:00:00;31/12/2016 00:00:00;75990,00;0,50;"008037";"008";"102";"31/10/2019"
"FSE";"2015-4080/RER";"E39J15002080002";"80090410376";"Associazione Emiliano - Romagnola di centri autonomi di formazione professionale - A.E.C.A";"RISTORAZIONE IN AREE URBANE";"RISTORAZIONE IN AREE URBANE, attivit� rivolta a 12 persone costituita da un percorso di formazione di accesso all'area professionale di Produzione e distribuzione pasti finalizzato all'acquisizione di un certificato di qualifica di Operatore della ristorazione. Il corso, della durata di 600 ore, � rivolto a 12 persone.";16/11/2015 00:00:00;10/6/2016 00:00:00;70635,00;0,50;"008037";"008";"102";"31/10/2019"
"FSE";"2015-4081/RER";"E39J15002090002";"80090410376";"Associazione Emiliano - Romagnola di centri autonomi di formazione professionale - A.E.C.A";"PERCORSO DI FORMAZIONE PER GIRDINIERE IN AREA URBANA PARMA";"PERCORSO DI FORMAZIONE PER GIRDINIERE IN AREA URBANA PARMA, attivit� rivolta a 12 persone costituita da un percorso di formazione di accesso all'area professionale di Progettazione e gestione del verde finalizzato all'acquisizione di un certificato di qualifica di Giardiniere. Il corso, della durata di 600 ore, � rivolto a 12 persone.";11/11/2015 00:00:00;18/5/2016 00:00:00;71048,00;0,50;"008034";"008";"102";"31/10/2019"
"FSE";"2015-4084/RER";"E39J15002100002";"80090410376";"Associazione Emiliano - Romagnola di centri autonomi di formazione professionale - A.E.C.A";"GESTORE DEI PROCESSI DI APPRENDIMENTO CIOFS FP ER Bologna";"GESTORE DEI PROCESSI DI APPRENDIMENTO CIOFS FP ER Bologna, attivit� rivolta a 12 persone costituita da un percorso di formazione di specializzazione per l'area professionale di Progettazione ed erogazione servizi di sviluppo delle persone finalizzato all'acquisizione di un certificato di qualifica di Gestore di processi di apprendimento. Il corso, della durata di 500 ore, � rivolto a 12 persone.";18/1/2016 00:00:00;10/6/2016 00:00:00;69736,50;0,50;"008037";"008";"102";"31/10/2019"
"FSE";"2015-4085/RER";"E39J15002110002";"80090410376";"Associazione Emiliano - Romagnola di centri autonomi di formazione professionale - A.E.C.A";"PERCORSI FORMATIVI A SUPPORTO DEI SERVIZI ALLA PERSONA IN AREE URBANE";"PERCORSI FORMATIVI A SUPPORTO DEI SERVIZI ALLA PERSONA IN AREE URBANE, attivit� rivolta a 24 persone costituita da:";9/11/2015 00:00:00;31/12/2016 00:00:00;89456,00;0,50;"008034:::008037";"008";"102";"31/10/2019"
"FSE";"2015-4086/RER";"E39J15002120002";"80090410376";"Associazione Emiliano - Romagnola di centri autonomi di formazione professionale - A.E.C.A";"PROMOZIONE ED EROGAZIONE SERVIZI TURISTICI IN AREE URBANE";"PROMOZIONE ED EROGAZIONE SERVIZI TURISTICI IN AREE URBANE, attivit� rivolta a 12 persone costituita da un percorso di formazione di specializzazione per l'area professionale di Promozione ed erogazione servizi turistici finalizzato all'acquisizione di un certificato di qualifica di Tecnico dei servizi turistico-ricettivi. Il corso, della durata di 300 ore, � rivolto a 12 persone.";20/1/2016 00:00:00;31/12/2016 00:00:00;44490,00;0,50;"008099";"008";"102";"31/10/2019"
"FSE";"2015-4091/RER";"E39J15002130002";"80090410376";"Associazione Emiliano - Romagnola di centri autonomi di formazione professionale - A.E.C.A";"SETTORE ITTICO E ACQUACOLTURA NELLA'REA URBANA RAVENNA";"SETTORE ITTICO E ACQUACOLTURA NELLA'REA URBANA RAVENNA, attivit� rivolta a 12 persone costituita da un percorso di formazione di accesso all'area professionale di Trasporto marittimo, pesca commerciale e acquacoltura finalizzato all'acquisizione di un certificato di competenze di Operatore della pesca e dell�acquacoltura. Il corso, della durata di 400 ore, � rivolto a 12 persone.";7/3/2016 00:00:00;31/12/2016 00:00:00;48668,00;0,50;"008039";"008";"102";"31/10/2019"
"FSE";"2015-4093/RER";"E39J15002140002";"80090410376";"Associazione Emiliano - Romagnola di centri autonomi di formazione professionale - A.E.C.A";"DISEGNATORE MECCANICO NELL'AREA URBANA DI BOLOGNA";"DISEGNATORE MECCANICO NELL'AREA URBANA DI BOLOGNA, attivit� rivolta a 12 persone costituita da un percorso di formazione di specializzazione per l'area professionale di Progettazione e produzione meccanica ed elettromeccanica finalizzato all'acquisizione di un certificato di qualifica di Disegnatore meccanico. Il corso, della durata di 500 ore, � rivolto a 12 persone.";23/11/2015 00:00:00;19/12/2016 00:00:00;78755,00;0,50;"008037";"008";"102";"31/10/2019"
"FSE";"2015-4094/RER";"E39J15002150002";"80090410376";"Associazione Emiliano - Romagnola di centri autonomi di formazione professionale - A.E.C.A";"TECNICO AUTRONICO DELL�AUTOMOBILE - CNOS/FAP (FORLI')";"TECNICO AUTRONICO DELL�AUTOMOBILE - CNOS/FAP (FORLI'), attivit� rivolta a 12 persone costituita da un percorso di formazione di specializzazione per l'area professionale di Autoriparazione finalizzato all'acquisizione di un certificato di qualifica di Tecnico autronico dell'automobile. Il corso, della durata di 500 ore, � rivolto a 12 persone.";16/11/2015 00:00:00;31/12/2016 00:00:00;73755,00;0,50;"008040";"008";"102";"31/10/2019"
"FSE";"2015-4098/RER";"E39J15002160002";"04298010374";"Ecipar Soc.Cons.a r.l.-Formazione e servizi innovativi per l'artigianato e le P.M.I.";"Professionalit� e competenze nell'area ""Autoriparazione""";"Professionalit� e competenze nell'area Autoriparazione, attivit� rivolta a 12 persone costituita da un percorso di formazione di specializzazione per l'area professionale di Autoriparazione finalizzato all'acquisizione di un certificato di qualifica di Tecnico autronico dell'automobile. Il corso, della durata di 300 ore, � rivolto a 12 persone.";16/11/2015 00:00:00;19/12/2016 00:00:00;43359,00;0,50;"008033";"008";"102";"31/10/2019"
"FSE";"2015-4099/RER";"E39J15002170002";"04298010374";"Ecipar Soc.Cons.a r.l.-Formazione e servizi innovativi per l'artigianato e le P.M.I.";"Professionalit� e competenze nell'area ""Erogazione servizi estetici""";"Professionalit� e competenze nell'area Erogazione servizi estetici, attivit� rivolta a 52 persone costituita da:";13/10/2015 00:00:00;22/12/2016 00:00:00;295022,00;0,50;"008034:::008037:::008038:::008039";"008";"102";"31/10/2019"
"FSE";"2015-4101/RER";"E39J15002180002";"04298010374";"Ecipar Soc.Cons.a r.l.-Formazione e servizi innovativi per l'artigianato e le P.M.I.";"Professionalit� e competenze nell'area ""Installazione componenti e impianti elettrici e termoidraulici""""";"Professionalit� e competenze nell'area Installazione componenti e impianti elettrici e termoidraulici, attivit� rivolta a 38 persone costituita da:";28/9/2015 00:00:00;29/6/2016 00:00:00;153170,00;0,50;"008036:::008038:::008039";"008";"102";"31/10/2019"
"FSE";"2015-4102/RER";"E39J15002190002";"04298010374";"Ecipar Soc.Cons.a r.l.-Formazione e servizi innovativi per l'artigianato e le P.M.I.";"Professionalit� e competenze nell'area ""Logistica industriale del trasporto e spedizione""";"Professionalit� e competenze nell'area Logistica industriale del trasporto e spedizione, attivit� rivolta a 12 persone costituita da un percorso di formazione di accesso all'area professionale di Logistica industriale, del trasporto e spedizione finalizzato all'acquisizione di un certificato di competenze di Operatore di magazzino merci. Il corso, della durata di 350 ore, � rivolto a 12 persone.";25/9/2015 00:00:00;12/2/2016 00:00:00;42386,00;0,50;"008038";"008";"102";"31/10/2019"
"FSE";"2015-4103/RER";"E39J15002200002";"04298010374";"Ecipar Soc.Cons.a r.l.-Formazione e servizi innovativi per l'artigianato e le P.M.I.";"Professionalit� e competenze nell'area ""Marketing e vendite""";"Professionalit� e competenze nell'area Marketing e vendite, attivit� rivolta a 36 persone costituita da:";29/9/2015 00:00:00;29/9/2016 00:00:00;158360,00;0,50;"008037:::008040:::008099";"008";"102";"31/10/2019"
"FSE";"2015-4104/RER";"E39J15002210002";"04298010374";"Ecipar Soc.Cons.a r.l.-Formazione e servizi innovativi per l'artigianato e le P.M.I.";"Professionalit� e competenze nell'area ""Produzione e distribuzione pasti""";"Professionalit� e competenze nell'area Produzione e distribuzione pasti, attivit� rivolta a 12 persone costituita da un percorso di formazione di specializzazione per l'area professionale di Produzione e distribuzione pasti finalizzato all'acquisizione di un certificato di qualifica di Operatore della produzione pasti. Il corso, della durata di 300 ore, � rivolto a 12 persone.";12/11/2015 00:00:00;25/11/2016 00:00:00;43359,00;0,50;"008037";"008";"102";"31/10/2019"
"FSE";"2015-4105/RER";"E39J15002550002";"04298010374";"Ecipar Soc.Cons.a r.l.-Formazione e servizi innovativi per l'artigianato e le P.M.I.";"Professionalit� e competenze nell'area ""Progettazione e produzione alimentare""";"Professionalit� e competenze nell'area Progettazione e produzione alimentare, attivit� rivolta a 38 persone costituita da:";16/11/2015 00:00:00;22/12/2016 00:00:00;154129,00;0,50;"008034:::008036:::008039";"008";"102";"31/10/2019"
"FSE";"2015-4106/RER";"E39J15002220002";"04298010374";"Ecipar Soc.Cons.a r.l.-Formazione e servizi innovativi per l'artigianato e le P.M.I.";"Professionalit� e competenze nell'area ""Progettazione e produzione di pelletteria""";"Professionalit� e competenze nell'area Progettazione e produzione di pelletteria, attivit� rivolta a 12 persone costituita da un percorso di formazione di specializzazione per l'area professionale di Progettazione e produzione di pelletteria finalizzato all'acquisizione di un certificato di qualifica di Modellista di pelletteria. Il corso, della durata di 300 ore, � rivolto a 12 persone.";10/11/2015 00:00:00;19/5/2016 00:00:00;45978,00;0,50;"008036";"008";"102";"31/10/2019"
"FSE";"2015-4107/RER";"E39J15002230002";"04298010374";"Ecipar Soc.Cons.a r.l.-Formazione e servizi innovativi per l'artigianato e le P.M.I.";"Professionalit� e competenze nell'area ""Progettazione e produzione meccanica ed elettromeccanica""";"Professionalit� e competenze nell'area Progettazione e produzione meccanica ed elettromeccanica, attivit� rivolta a 60 persone costituita da:";5/10/2015 00:00:00;19/12/2016 00:00:00;282420,00;0,50;"008035:::008036:::008039:::008040:::008099";"008";"102";"31/10/2019"
"FSE";"2015-4108/RER";"E39J15002240002";"04298010374";"Ecipar Soc.Cons.a r.l.-Formazione e servizi innovativi per l'artigianato e le P.M.I.";"Professionalit� e competenze nell'area ""Progettazione e produzione tessile ed abbigliamento: confezione e maglieria""";"Professionalit� e competenze nell'area Progettazione e produzione tessile ed abbigliamento: confezione e maglieria, attivit� rivolta a 24 persone costituita da:";12/11/2015 00:00:00;25/11/2016 00:00:00;95872,00;0,50;"008037";"008";"102";"31/10/2019"
"FSE";"2015-4109/RER";"E39J15002250002";"04298010374";"Ecipar Soc.Cons.a r.l.-Formazione e servizi innovativi per l'artigianato e le P.M.I.";"Professionalit� e competenze nell'area ""Promozione ed erogazione servizi turistici""";"Professionalit� e competenze nell'area Promozione ed erogazione servizi turistici, attivit� rivolta a 24 persone costituita da:";14/10/2015 00:00:00;23/12/2016 00:00:00;147444,00;0,50;"008035:::008037";"008";"102";"31/10/2019"
"FSE";"2015-4110/RER";"E39J15002260002";"04298010374";"Ecipar Soc.Cons.a r.l.-Formazione e servizi innovativi per l'artigianato e le P.M.I.";"Professionalit� e competenze nell'area ""Sviluppo e gestione sistemi informatici""";"Professionalit� e competenze nell'area Sviluppo e gestione sistemi informatici, attivit� rivolta a 72 persone costituita da:";6/10/2015 00:00:00;22/12/2016 00:00:00;255607,47;0,50;"008037:::008039:::008040:::008099";"008";"102";"31/10/2019"
"FSE";"2015-4111/RER";"E39J15002270002";"04298010374";"Ecipar Soc.Cons.a r.l.-Formazione e servizi innovativi per l'artigianato e le P.M.I.";"Professionalit� e competenze nell'area ""Sviluppo e gestione dell'energia""";"Professionalit� e competenze nell'area Sviluppo e gestione dell'energia, attivit� rivolta a 14 persone costituita da un percorso di formazione di specializzazione per l'area professionale di Sviluppo e gestione dell�energia finalizzato all'acquisizione di un certificato di qualifica di Tecnico nelle soluzioni energetiche sistema edificio impianto. Il corso, della durata di 300 ore, � rivolto a 14 persone.";5/11/2015 00:00:00;8/7/2016 00:00:00;45978,00;0,50;"008034";"008";"102";"31/10/2019"
"FSE";"2015-4112/RER";"E39J15002280002";"04298010374";"Ecipar Soc.Cons.a r.l.-Formazione e servizi innovativi per l'artigianato e le P.M.I.";"Professionalit� e competenze nell'area ""Progettazione e produzione orafa""";"Professionalit� e competenze nell'area Progettazione e produzione orafa, attivit� rivolta a 12 persone costituita da un percorso di formazione di specializzazione per l'area professionale di Progettazione e produzione orafa finalizzato all'acquisizione di un certificato di qualifica di Progettista orafo. Il corso, della durata di 300 ore, � rivolto a 12 persone.";9/11/2015 00:00:00;7/12/2016 00:00:00;45228,00;0,50;"008037";"008";"102";"31/10/2019"
"FSE";"2015-4113/RER";"E39J15002290002";"04298010374";"Ecipar Soc.Cons.a r.l.-Formazione e servizi innovativi per l'artigianato e le P.M.I.";"Professionalit� e competenze nell'area ""Approvvigionamento e gestione della produzione industriale""";"Professionalit� e competenze nell'area Approvvigionamento e gestione della produzione industriale, attivit� rivolta a 12 persone costituita da un percorso di formazione di specializzazione per l'area professionale di Approvvigionamento e gestione della produzione industriale finalizzato all'acquisizione di un certificato di qualifica di Tecnico degli acquisti e approvvigionamenti. Il corso, della durata di 500 ore, � rivolto a 12 persone.";14/10/2015 00:00:00;21/6/2016 00:00:00;70880,00;0,50;"008035";"008";"102";"31/10/2019"
"FSE";"2015-4114/RER";"E39J15002300002";"04298010374";"Ecipar Soc.Cons.a r.l.-Formazione e servizi innovativi per l'artigianato e le P.M.I.";"Professionalit� e competenze nell'area ""Erogazione servizi socio-sanitari""";"Professionalit� e competenze nell'area Erogazione servizi socio-sanitari, attivit� rivolta a 12 persone costituita da un percorso di formazione di accesso all'area professionale di Erogazione servizi socio-sanitari finalizzato all'acquisizione di un certificato di qualifica di Operatore termale. Il corso, della durata di 600 ore, � rivolto a 12 persone.";11/11/2015 00:00:00;16/6/2016 00:00:00;75126,00;0,50;"008099";"008";"102";"31/10/2019"
"FSE";"2015-4115/RER";"E39J15002310002";"02261631200";"Formindustria Emilia-Romagna Soc. Cons. a r.l.
";"SISTEMA MECCANICA EMILIA ROMAGNA � ACCESSO ALL�OCCUPAZIONE";"SISTEMA MECCANICA EMILIA ROMAGNA � ACCESSO ALL�OCCUPAZIONE, attivit� rivolta a 114 persone costituita da:";3/11/2015 00:00:00;30/9/2016 00:00:00;443024,10;0,50;"008034:::008035:::008037:::008038:::008039:::008040:::00809";"008";"102";"31/10/2019"
"FSE";"2015-4116/RER";"E79J15000360002";"04260000379";"FORM.ART. Societ� Consortile a r.l.";"AZIONI PER PROMUOVERE L'OCCUPAZIONE NELL'AREA AMMINISTRAZIONE E CONTROLLO D'IMPRESA";"AZIONI PER PROMUOVERE L'OCCUPAZIONE NELL'AREA AMMINISTRAZIONE E CONTROLLO D'IMPRESA, attivit� rivolta a 56 persone costituita da:";26/10/2015 00:00:00;28/12/2016 00:00:00;167133,00;0,50;"008034:::008038:::008039:::008040";"008";"102";"31/10/2019"
"FSE";"2015-4117/RER";"E79J15000370002";"04260000379";"FORM.ART. Societ� Consortile a r.l.";"QUALIFICA DI OPERATORE DELL�AUTORIPARAZIONE";"QUALIFICA DI OPERATORE DELL�AUTORIPARAZIONE, attivit� rivolta a 14 persone costituita da un percorso di formazione di accesso all'area professionale di Autoriparazione finalizzato all'acquisizione di un certificato di qualifica di Operatore meccatronico dell'autoriparazione. Il corso, della durata di 600 ore, � rivolto a 14 persone.";11/11/2015 00:00:00;22/9/2016 00:00:00;73674,00;0,50;"008036";"008";"102";"31/10/2019"
"FSE";"2015-4118/RER";"E79J15000380002";"04260000379";"FORM.ART. Societ� Consortile a r.l.";"PERCORSI DI QUALIFICA PER OPERATORI ALLE CURE ESTETICHE";"PERCORSI DI QUALIFICA PER OPERATORI ALLE CURE ESTETICHE, attivit� rivolta a 70 persone costituita da:";30/10/2015 00:00:00;8/7/2016 00:00:00;373275,00;0,50;"008033:::008035:::008037:::008040";"008";"102";"31/10/2019"
"FSE";"2015-4119/RER";"E79J15000390002";"04260000379";"FORM.ART. Societ� Consortile a r.l.";"PERCORSI FORMATIVI A SOSTEGNO DELL'OCCUPAZIONE NEL SETTORE IMPIANTISTICO";"PERCORSI FORMATIVI A SOSTEGNO DELL'OCCUPAZIONE NEL SETTORE IMPIANTISTICO, attivit� rivolta a 42 persone costituita da:";27/10/2015 00:00:00;23/12/2016 00:00:00;221116,32;0,50;"008035:::008036:::008037";"008";"102";"31/10/2019"
"FSE";"2015-4120/RER";"E79J15000400002";"04260000379";"FORM.ART. Societ� Consortile a r.l.";"LE OPPORTUNITA� DI SVILUPPO PROFESSIONALE NELL�AREA DELLA  LOGISTICA";"LE OPPORTUNITA� DI SVILUPPO PROFESSIONALE NELL�AREA DELLA  LOGISTICA, attivit� rivolta a 28 persone costituita da:";28/10/2015 00:00:00;23/12/2016 00:00:00;65060,00;0,50;"008034";"008";"102";"31/10/2019"
"FSE";"2015-4121/RER";"E79J15000410002";"04260000379";"FORM.ART. Societ� Consortile a r.l.";"FORMAZIONE PER PROMUOVERE OCCUPAZIONE NELL'AREA MARKETING E VENDITE";"FORMAZIONE PER PROMUOVERE OCCUPAZIONE NELL'AREA MARKETING E VENDITE, attivit� rivolta a 28 persone costituita da:";30/10/2015 00:00:00;23/12/2016 00:00:00;91194,00;0,50;"008033:::008037";"008";"102";"31/10/2019"
"FSE";"2015-4122/RER";"E79J15000420002";"04260000379";"FORM.ART. Societ� Consortile a r.l.";"AZIONI A SOSTEGNO DELL'OCCUPAZIONE NEL SETTORE MECCANICO";"AZIONI A SOSTEGNO DELL'OCCUPAZIONE NEL SETTORE MECCANICO, attivit� rivolta a 57 persone costituita da:";22/10/2015 00:00:00;28/12/2016 00:00:00;208793,00;0,50;"008036:::008037:::008038:::008099";"008";"102";"31/10/2019"
"FSE";"2015-4123/RER";"E79J15000430002";"04260000379";"FORM.ART. Societ� Consortile a r.l.";"TECNICO ESPERTO NELLA GESTIONE DELL�ENERGIA";"TECNICO ESPERTO NELLA GESTIONE DELL�ENERGIA, attivit� rivolta a 14 persone costituita da un percorso di formazione di specializzazione per l'area professionale di Sviluppo e gestione dell�energia finalizzato all'acquisizione di un certificato di qualifica di Tecnico esperto nella gestione dell�energia. Il corso, della durata di 500 ore, � rivolto a 14 persone.";21/3/2016 00:00:00;17/2/2017 00:00:00;66273,00;0,50;"008036";"008";"102";"31/10/2019"
"FSE";"2015-4124/RER";"E79J15000440002";"04260000379";"FORM.ART. Societ� Consortile a r.l.";"AZIONI DI SOSTEGNO OCCUPAZIONALE ALL�INFORMATIZZAZIONE DI SISTEMA NELL'AREA SISMA";"AZIONI DI SOSTEGNO OCCUPAZIONALE ALL�INFORMATIZZAZIONE DI SISTEMA NELL'AREA SISMA, attivit� rivolta a 27 persone costituita da:";16/11/2015 00:00:00;24/2/2017 00:00:00;72076,10;0,50;"008038";"008";"102";"31/10/2019"
"FSE";"2015-4127/RER";"E59J15000290002";"01748791207";"Futura societ� consortile a responsabilit� limitata";"Favorire l�occupazione: competenze e specializzazione nel settore meccanico";"Favorire l�occupazione: competenze e specializzazione nel settore meccanico, attivit� rivolta a 26 persone costituita da:";12/11/2015 00:00:00;5/4/2017 00:00:00;115110,00;0,50;"008037";"008";"102";"31/10/2019"
"FSE";"2015-4130/RER";"E89J15000960002";"01033690403";"CERCAL S.P.A. CONSORTILE";"OPERATORE DELLE CALZATURE";"OPERATORE DELLE CALZATURE, attivit� rivolta a 12 persone costituita da un percorso di formazione di accesso all'area professionale di Progettazione e produzione calzature in pelle finalizzato all'acquisizione di un certificato di qualifica di Operatore delle calzature. Il corso, della durata di 600 ore, � rivolto a 12 persone.";9/11/2015 00:00:00;31/12/2016 00:00:00;74056,00;0,50;"008040";"008";"102";"31/10/2019"
"FSE";"2015-4131/RER";"E89J15000970002";"01033690403";"CERCAL S.P.A. CONSORTILE";"MODELLISTA DI PELLETTERIA";"MODELLISTA DI PELLETTERIA, attivit� rivolta a 12 persone costituita da un percorso di formazione di specializzazione per l'area professionale di Progettazione e produzione di pelletteria finalizzato all'acquisizione di un certificato di qualifica di Modellista di pelletteria. Il corso, della durata di 300 ore, � rivolto a 12 persone.";10/11/2015 00:00:00;31/12/2016 00:00:00;43990,00;0,50;"008040";"008";"102";"31/10/2019"
"FSE";"2015-4133/RER";"E39J15002320002";"01035560331";"FOR.P.IN. Societ� Consortile a responsabilit� limitata";"TECNICO DELLE VENDITE PER L'INTERNAZIONALIZZAZIONE D'IMPRESA";"TECNICO DELLE VENDITE PER L'INTERNAZIONALIZZAZIONE D'IMPRESA, attivit� rivolta a 12 persone costituita da un percorso di formazione di specializzazione per l'area professionale di Marketing e vendite finalizzato all'acquisizione di un certificato di qualifica di Tecnico delle vendite. Il corso, della durata di 300 ore, � rivolto a 12 persone.";11/11/2015 00:00:00;5/4/2016 00:00:00;43568,70;0,50;"008033";"008";"102";"31/10/2019"
"FSE";"2015-4134/RER";"E39J15002330002";"01035560331";"FOR.P.IN. Societ� Consortile a responsabilit� limitata";"TRASPORTI E MAGAZZINO: LE FIGURE CHIAVE PER IL POLO LOGISTICO";"TRASPORTI E MAGAZZINO: LE FIGURE CHIAVE PER IL POLO LOGISTICO, attivit� rivolta a 24 persone costituita da:";12/11/2015 00:00:00;6/7/2016 00:00:00;78598,50;0,50;"008033";"008";"102";"31/10/2019"
"FSE";"2015-4137/RER";"E69J15000710002";"93061010380";"FONDAZIONE SAN GIUSEPPE CFP C.E.S.T.A.";"Favorire l�occupazione delle persone disoccupate nell�area interna DELTA del PO, ambito installazione componenti e impianti elettrici e termo-idraulici";"Favorire l�occupazione delle persone disoccupate nell�area interna DELTA del PO, ambito installazione componenti e impianti elettrici e termo-idraulici, attivit� rivolta a 24 persone costituita da:";21/10/2015 00:00:00;2/12/2016 00:00:00;144438,00;0,50;"008038";"008";"102";"31/10/2019"
"FSE";"2015-4140/RER";"E99J15001020002";"02637130408";"Itinera s.r.l. consortile (in liquidazione) - Centro Internazionale di Studi Turistici";"Accompagnamento e formazione per l'accesso al lavoro e per l'occupazione nell'industria dell'ospitalit�";"Accompagnamento e formazione per l'accesso al lavoro e per l'occupazione nell'industria dell'ospitalit�, attivit� rivolta a 12 persone costituita da un percorso di formazione di accesso all'area professionale di Promozione ed erogazione servizi turistici finalizzato all'acquisizione di un certificato di qualifica di Operatore della promozione ed accoglienza turistica. Il corso, della durata di 600 ore, � rivolto a 12 persone.";4/11/2015 00:00:00;28/7/2016 00:00:00;74927,85;0,50;"008099";"008";"102";"31/10/2019"
"FSE";"2015-4142/RER";"E89J15000980002";"01955980352";"FONDAZIONE ENAIP DON GIANFRANCO MAGNANI";"FORMAZIONE IN AREA MECCANICA";"FORMAZIONE IN AREA MECCANICA, attivit� rivolta a 28 persone costituita da:";16/11/2015 00:00:00;30/12/2016 00:00:00;123038,00;0,50;"008035";"008";"102";"31/10/2019"
"FSE";"2015-4145/RER";"E89J15000990002";"01955980352";"FONDAZIONE ENAIP DON GIANFRANCO MAGNANI";"TECNICO DELLA COMUNICAZIONE CON COMPETENZE IN WEB MARKETING";"TECNICO DELLA COMUNICAZIONE CON COMPETENZE IN WEB MARKETING, attivit� rivolta a 14 persone costituita da un percorso di formazione di specializzazione per l'area professionale di Progettazione ed erogazione servizi/prodotti informativi e comunicativi finalizzato all'acquisizione di un certificato di qualifica di Tecnico della comunicazione-informazione. Il corso, della durata di 300 ore, � rivolto a 14 persone.";16/11/2015 00:00:00;31/5/2016 00:00:00;45228,00;0,50;"008035";"008";"102";"31/10/2019"
"FSE";"2015-4147/RER";"E89J15001000002";"01955980352";"FONDAZIONE ENAIP DON GIANFRANCO MAGNANI";"TECNICO GRAFICO CON COMPETENZE IN SEM E SEO";"TECNICO GRAFICO CON COMPETENZE IN SEM E SEO, attivit� rivolta a 14 persone costituita da un percorso di formazione di specializzazione per l'area professionale di Progettazione e produzione prodotti grafici finalizzato all'acquisizione di un certificato di qualifica di Tecnico grafico. Il corso, della durata di 300 ore, � rivolto a 14 persone.";2/12/2015 00:00:00;14/6/2016 00:00:00;45228,00;0,50;"008035";"008";"102";"31/10/2019"
"FSE";"2015-4148/RER";"E19J15000800002";"02078610355";"Centro Studio e Lavoro ""La Cremeria"" s.r.l.";"Operatore della Ristorazione";"Operatore della Ristorazione, attivit� rivolta a 18 persone costituita da un percorso di formazione di accesso all'area professionale di Produzione e distribuzione pasti finalizzato all'acquisizione di un certificato di qualifica di Operatore della ristorazione. Il corso, della durata di 600 ore, � rivolto a 18 persone.";20/10/2015 00:00:00;28/4/2016 00:00:00;75396,00;0,50;"008035";"008";"102";"31/10/2019"
"FSE";"2015-4149/RER";"E19J15000810002";"02078610355";"Centro Studio e Lavoro ""La Cremeria"" s.r.l.";"Azioni formative nell'area della produzione alimentare";"Azioni formative nell'area della produzione alimentare, attivit� rivolta a 18 persone costituita da un percorso di formazione di accesso all'area professionale di Progettazione e produzione alimentare finalizzato all'acquisizione di un certificato di qualifica di Operatore agro-alimentare. Il corso, della durata di 600 ore, � rivolto a 18 persone.";19/10/2015 00:00:00;12/5/2016 00:00:00;71373,00;0,50;"008035";"008";"102";"31/10/2019"
"FSE";"2015-4151/RER";"E19J15000820002";"02078610355";"Centro Studio e Lavoro ""La Cremeria"" s.r.l.";"Disegnatore meccanico";"Disegnatore meccanico, attivit� rivolta a 18 persone costituita da un percorso di formazione di specializzazione per l'area professionale di Progettazione e produzione meccanica ed elettromeccanica finalizzato all'acquisizione di un certificato di qualifica di Disegnatore meccanico. Il corso, della durata di 300 ore, � rivolto a 18 persone.";16/11/2015 00:00:00;31/12/2016 00:00:00;43728,00;0,50;"008035";"008";"102";"31/10/2019"
"FSE";"2015-4152/RER";"E19J15000830002";"02078610355";"Centro Studio e Lavoro ""La Cremeria"" s.r.l.";"TECNICO DEI SERVIZI SALA-BANQUETING";"TECNICO DEI SERVIZI SALA-BANQUETING, attivit� rivolta a 18 persone costituita da un percorso di formazione di specializzazione per l'area professionale di Produzione e distribuzione pasti finalizzato all'acquisizione di un certificato di qualifica di Tecnico dei servizi sala-banqueting. Il corso, della durata di 300 ore, � rivolto a 18 persone.";16/11/2015 00:00:00;26/5/2016 00:00:00;43342,00;0,50;"008035";"008";"102";"31/10/2019"
"FSE";"2015-4161/RER";"E46D15003410005";"90036450360";"FONDAZIONE ""ISTITUTO TECNICO SUPERIORE NUOVE TECNOLOGIE DELLA VITA""";"TECNICO SUPERIORE PER LA PRODUZIONE DI APPARECCHI E DISPOSITIVI BIOMEDICALI";"TECNICO SUPERIORE PER LA PRODUZIONE DI APPARECCHI E DISPOSITIVI BIOMEDICALI";9/11/2015 00:00:00;14/9/2017 00:00:00;179996,00;0,50;"008036";"008";"116";"31/10/2019"
"FSE";"2015-4163/RER";"E66D15006810005";"01832340382";"FONDAZIONE ISTITUTO TECNICO SUPERIORE, TERRITORIO, ENERGIA  COSTRUIRE ";"Tecnico superiore per l�innovazione e la qualit� delle abitazioni
e del patrimonio edilizio anche mediante il rilevamento e il
monitoraggio del sistema edificio-territorio
";"Tecnico superiore per l�innovazione e la qualit� delle abitazioni
e del patrimonio edilizio anche mediante il rilevamento e il
monitoraggio del sistema edificio-territorio
";9/11/2015 00:00:00;20/7/2017 00:00:00;179996,00;0,50;"008038";"008";"116";"31/10/2019"
"FSE";"2015-4164/RER";"E66D15006820005";"01832340382";"FONDAZIONE ISTITUTO TECNICO SUPERIORE, TERRITORIO, ENERGIA  COSTRUIRE ";"TECNICO SUPERIORE PER LA GESTIONE E LA VERIFICA DEGLI IMPIANTI ENERGETICI";"TECNICO SUPERIORE PER LA GESTIONE E LA VERIFICA DEGLI IMPIANTI ENERGETICI";9/11/2015 00:00:00;14/7/2017 00:00:00;179996,00;0,50;"008039";"008";"116";"31/10/2019"
"FSE";"2015-4165/RER";"E56D15002990005";"91361180374";"FONDAZIONE ""Istituto Tecnico Superiore Meccanica, Meccatronica, Motoristica, Packaging""";"TECNICO SUPERIORE PER L'AUTOMAZIONE E IL PACKAGING";"TECNICO SUPERIORE PER L'AUTOMAZIONE E IL PACKAGING";29/10/2015 00:00:00;30/9/2017 00:00:00;178213,85;0,50;"008037";"008";"116";"31/10/2019"
"FSE";"2015-4166/RER";"E56D15003000005";"91361180374";"FONDAZIONE ""Istituto Tecnico Superiore Meccanica, Meccatronica, Motoristica, Packaging""";"TECNICO SUPERIORE IN SISTEMI MECCATRONICI";"TECNICO SUPERIORE IN SISTEMI MECCATRONICI";28/10/2015 00:00:00;30/9/2017 00:00:00;179995,00;0,50;"008035";"008";"116";"31/10/2019"
"FSE";"2015-4167/RER";"E56D15003010005";"91361180374";"FONDAZIONE ""Istituto Tecnico Superiore Meccanica, Meccatronica, Motoristica, Packaging""";"TECNICO SUPERIORE DEI MATERIALI PER LA PROGETTAZIONE E PRODUZIONE MECCANICA";"TECNICO SUPERIORE DEI MATERIALI PER LA PROGETTAZIONE E PRODUZIONE MECCANICA";29/10/2015 00:00:00;30/9/2017 00:00:00;179062,31;0,50;"008036";"008";"116";"31/10/2019"
"FSE";"2015-4168/RER";"E56D15002980005";"91361180374";"FONDAZIONE ""Istituto Tecnico Superiore Meccanica, Meccatronica, Motoristica, Packaging""";"TECNICO SUPERIORE DEL VEICOLO CON SPECIALIZZAZIONE IN MOTORI ENDOTERMICI, IBRIDI ED ELETTRICI";"TECNICO SUPERIORE DEL VEICOLO CON SPECIALIZZAZIONE IN MOTORI ENDOTERMICI, IBRIDI ED ELETTRICI";29/10/2015 00:00:00;30/9/2017 00:00:00;177899,91;0,50;"008036";"008";"116";"31/10/2019"
"FSE";"2015-4169/RER";"E56D15002970005";"91361180374";"FONDAZIONE ""Istituto Tecnico Superiore Meccanica, Meccatronica, Motoristica, Packaging""";"TECNICO SUPERIORE PER LA PROGETTAZIONE DI PRODOTTI INNOVATIVI CON IMPIEGO DI MATERIALI COMPOSITI AVANZATI E TECNOLOGIE DI ADDITIVE MANUFACTURING ";"TECNICO SUPERIORE PER LA PROGETTAZIONE DI PRODOTTI INNOVATIVI CON IMPIEGO DI MATERIALI COMPOSITI AVANZATI E TECNOLOGIE DI ADDITIVE MANUFACTURING ";29/10/2015 00:00:00;30/9/2017 00:00:00;179995,00;0,50;"008034";"008";"116";"31/10/2019"
"FSE";"2015-4170/RER";"E86D15007340005";"03913590406";"FONDAZIONE ""ISTITUTO TECNICO SUPERIORE TECNOLOGIE INDUSTRIE CREATIVE""";"Tecnico superiore per l'organizzazione e la fruizione dell'informazione e della conoscenza ";"Tecnico superiore per l'organizzazione e la fruizione dell'informazione e della conoscenza ";30/10/2015 00:00:00;31/12/2017 00:00:00;179996,00;0,50;"008040";"008";"116";"31/10/2019"
"FSE";"2015-4171/RER";"E86D15007350005";"03913590406";"FONDAZIONE ""ISTITUTO TECNICO SUPERIORE TECNOLOGIE INDUSTRIE CREATIVE""";"Tecnico superiore per il design, lo sviluppo e la sostenibilit� del prodotto ceramico ";"Tecnico superiore per il design, lo sviluppo e la sostenibilit� del prodotto ceramico ";9/11/2015 00:00:00;31/12/2017 00:00:00;179996,00;0,50;"008039";"008";"116";"31/10/2019"
"FSE";"2015-4172/RER";"E46D15003390005";"91131400409";"FONDAZIONE "" ISTITUTO TECNICO SUPERIORE TECNOLOGIE INNOVATIVE PER I BENI E LE ATTIVITA' CULTURALI - TURISMO - TURISMO E BENESSERE""";"TECNICO SUPERIORE PER LA PROMOZIONE E IL MARKETING DELLE FILIERE TURISTICHE E DELLE ATTIVIT� CULTURALI ";"TECNICO SUPERIORE PER LA PROMOZIONE E IL MARKETING DELLE FILIERE TURISTICHE E DELLE ATTIVIT� CULTURALI ";3/11/2015 00:00:00;13/10/2017 00:00:00;179996,00;0,50;"008037";"008";"116";"31/10/2019"
"FSE";"2015-4173/RER";"E46D15003400005";"91131400409";"FONDAZIONE "" ISTITUTO TECNICO SUPERIORE TECNOLOGIE INNOVATIVE PER I BENI E LE ATTIVITA' CULTURALI - TURISMO - TURISMO E BENESSERE""";"TECNICO SUPERIORE PER LA GESTIONE DI STRUTTURE TURISTICO-RICETTIVE";"TECNICO SUPERIORE PER LA GESTIONE DI STRUTTURE TURISTICO-RICETTIVE";5/11/2015 00:00:00;13/10/2017 00:00:00;179996,00;0,50;"008099";"008";"116";"31/10/2019"
"FSE";"2015-4174/RER";"E26D15004260005";"92163480343";"FONDAZIONE ""Istituto Tecnico Superiore - Area Tecnologica Nuove Tecnologie per il Made in Italy - Ambito Settoriale Regionale Agroalimentare""";"TECNICO SUPERIORE RESPONSABILE DELLE 
PRODUZIONI E DELLE TRASFORMAZIONI AGRARIE, 
AGRO-ALIMENTARI E AGRO-INDUSTRIALI
";"TECNICO SUPERIORE RESPONSABILE DELLE 
PRODUZIONI E DELLE TRASFORMAZIONI AGRARIE, 
AGRO-ALIMENTARI E AGRO-INDUSTRIALI
";29/10/2015 00:00:00;28/9/2017 00:00:00;179996,00;0,50;"008034";"008";"116";"31/10/2019"
"FSE";"2015-4175/RER";"E16D15004820005";"91100460335";"""FONDAZIONE  ITS PER LA MOBILITA' SOSTENIBILE - LOGISTICA E MOBILITA' DELLE PERSONE E DELLE MERCI""";"TECNICO SUPERIORE PER L'INFOMOBILITA' E LE INFRASTRUTTURE LOGISTICHE";"TECNICO SUPERIORE PER L'INFOMOBILITA' E LE INFRASTRUTTURE LOGISTICHE";29/10/2015 00:00:00;31/12/2017 00:00:00;159895,33;0,50;"008033";"008";"116";"31/10/2019"
"FSE";"2015-4177/RER";"E79J15000260006";"93072510238";"Centro Studi Opera Don Calabria";"Interventi per l�inclusione socio lavorativa delle persone in esecuzione penale presso la Casa Circondariale di Ferrara";"Interventi per l�inclusione socio lavorativa delle persone in esecuzione penale presso la Casa Circondariale di Ferrara, attivit� rivolta a 25 persone costituita da:";12/10/2015 00:00:00;10/1/2017 00:00:00;72087,20;0,50;"008038";"008";"109";"31/10/2019"
"FSE";"2015-4179/RER";"E39J15000500006";"80007510375";"Istituto per l'Istruzione Professionale dei Lavoratori Edili della Provincia di Bologna";"""COSTRUIRE"" L'INCLUSIONE";"COSTRUIRE L'INCLUSIONE, attivit� rivolta a 12 persone costituita da:";25/11/2015 00:00:00;16/6/2016 00:00:00;72918,75;0,50;"008037";"008";"109";"31/10/2019"
"FSE";"2015-4181/RER";"E99J15000330006";"04237330370";"DINAMICA soc.cons.r.l";"STRUMENTI OPERATIVI PER L'INTEGRAZIONE LAVORATIVA IN AMBIENTE RURALE";"STRUMENTI OPERATIVI PER L'INTEGRAZIONE LAVORATIVA IN AMBIENTE RURALE, attivit� rivolta a 12 persone costituita da:";26/11/2015 00:00:00;12/7/2016 00:00:00;55494,50;0,50;"008036";"008";"109";"31/10/2019"
"FSE";"2015-4182/RER";"E99J15000340006";"02291500409";"Fondazione En.A.I.P.  S. Zavatta Rimini";"FORMAZIONE MIRATA ""Tecnico delle produzioni animali""";"FORMAZIONE MIRATA Tecnico delle produzioni animali, attivit� rivolta a 10 persone costituita da:";1/10/2015 00:00:00;29/6/2016 00:00:00;26099,00;0,50;"008099";"008";"109";"31/10/2019"
"FSE";"2015-4183/RER";"E99J15000310006";"02291500409";"Fondazione En.A.I.P.  S. Zavatta Rimini";"FORMAZIONE MIRATA: OPERATORI DELLA PANIFICAZIONE E DELLA PASTICCERIA";"FORMAZIONE MIRATA: OPERATORI DELLA PANIFICAZIONE E DELLA PASTICCERIA, attivit� rivolta a 16 persone costituita da:";14/6/2016 00:00:00;13/12/2017 00:00:00;37324,00;0,50;"008099";"008";"109";"31/10/2019"
"FSE";"2015-4185/RER";"E46D15002100006";"02291500409";"Fondazione En.A.I.P.  S. Zavatta Rimini";"�Non solo accoglienza� : percorsi di re-inserimento lavorativo.";"�Non solo accoglienza� : percorsi di re-inserimento lavorativo., attivit� rivolta a 8 persone costituita da:";6/10/2015 00:00:00;27/3/2017 00:00:00;15113,00;0,50;"008099";"008";"109";"31/10/2019"
"FSE";"2015-4188/RER";"E99J15000300006";"02020330342";"FORMA FUTURO Soc.Cons. r.l.";"PERCORSI DI INSERIMENTO PENITENZIARIO, SOCIALE E LAVORATIVO";"PERCORSI DI INSERIMENTO PENITENZIARIO, SOCIALE E LAVORATIVO, attivit� rivolta a 12 persone costituita da:";30/10/2015 00:00:00;14/7/2016 00:00:00;39387,12;0,50;"008034";"008";"109";"31/10/2019"
"FSE";"2015-4189/RER";"E99J15000350006";"02020330342";"FORMA FUTURO Soc.Cons. r.l.";"COMPETENZE PER OPERATORE DI PANIFICIO E PASTIFICIO";"COMPETENZE PER OPERATORE DI PANIFICIO E PASTIFICIO, attivit� rivolta a 12 persone costituita da:";30/10/2015 00:00:00;14/6/2016 00:00:00;39224,00;0,50;"008034";"008";"109";"31/10/2019"
"FSE";"2015-4190/RER";"E99J15000360006";"02020330342";"FORMA FUTURO Soc.Cons. r.l.";"COMPETENZE PER OPERATORE AGROALIMENTARE";"COMPETENZE PER OPERATORE AGROALIMENTARE, attivit� rivolta a 12 persone costituita da:";30/10/2015 00:00:00;20/6/2016 00:00:00;39701,00;0,50;"008034";"008";"109";"31/10/2019"
"FSE";"2015-4191/RER";"E69J15000450006";"02604400404";"TECHNE Societ� consortile a responsabilit� limitata";"Interventi per l�inclusione socio-lavorativa delle persone in esecuzione penale";"Interventi per l�inclusione socio-lavorativa delle persone in esecuzione penale, attivit� rivolta a 31 persone costituita da:";13/10/2015 00:00:00;27/6/2017 00:00:00;92457,42;0,50;"008040";"008";"109";"31/10/2019"
"FSE";"2015-4192/RER";"E49J15000310006";"02604400404";"TECHNE Societ� consortile a responsabilit� limitata";"ACERO BIS: percorsi di inclusione socio-lavorativa di persone in esecuzione penale";"ACERO BIS: percorsi di inclusione socio-lavorativa di persone in esecuzione penale, attivit� rivolta a 80 persone costituita da:";29/10/2015 00:00:00;;305946,40;0,50;"008033:::008034:::008035:::008036:::008037:::008038:::008039:::008040:::008099";"008";"109";"31/10/2019"
"FSE";"2015-4193/RER";"E89J15000390006";"01955980352";"FONDAZIONE ENAIP DON GIANFRANCO MAGNANI";"ORIENTAMENTO, CITTADINANZA E LAVORO";"ORIENTAMENTO, CITTADINANZA E LAVORO, attivit� rivolta a 15 persone costituita da:";27/1/2016 00:00:00;23/12/2016 00:00:00;56220,30;0,50;"008035";"008";"109";"31/10/2019"
"FSE";"2015-4194/RER";"E89J15000420006";"01955980352";"FONDAZIONE ENAIP DON GIANFRANCO MAGNANI";"PERCORSI DI FORMAZIONE SOCIO-LAVORATIVA";"PERCORSI DI FORMAZIONE SOCIO-LAVORATIVA, attivit� rivolta a 12 persone costituita da:";27/1/2016 00:00:00;25/10/2016 00:00:00;42196,00;0,50;"008035";"008";"109";"31/10/2019"
"FSE";"2015-4195/RER";"E39J15000470006";"04164640379";"CEFAL Emilia Romagna Societ� Cooperativa";"PERCORSI DI INCLUSIONE LAVORATIVA DI PERSONE   RECLUSE PRESSO LA CASA CIRCONDARIALE DI BOLOGNA";"PERCORSI DI INCLUSIONE LAVORATIVA DI PERSONE   RECLUSE PRESSO LA CASA CIRCONDARIALE DI BOLOGNA, attivit� rivolta a 30 persone costituita da:";18/11/2015 00:00:00;28/4/2017 00:00:00;68504,40;0,50;"008037";"008";"109";"31/10/2019"
"FSE";"2015-4197/RER";"E39J15000480006";"04164640379";"CEFAL Emilia Romagna Societ� Cooperativa";"PERCORSI INTEGRATI FINALIZZATI ALL�INCLUSIONE LAVORATIVA DI PERSONE  DISOCCUPATE  CHE FRUISCONO DELLA MISURA DI  MESSA ALLA PROVA";"PERCORSI INTEGRATI FINALIZZATI ALL�INCLUSIONE LAVORATIVA DI PERSONE  DISOCCUPATE  CHE FRUISCONO DELLA MISURA DI  MESSA ALLA PROVA, attivit� rivolta a 16 persone costituita da:";17/11/2015 00:00:00;28/4/2017 00:00:00;79075,70;0,50;"008037";"008";"109";"31/10/2019"
"FSE";"2015-4198/RER";"E69J15000460006";"04164640379";"CEFAL Emilia Romagna Societ� Cooperativa";"PERCORSI INTEGRATI FINALIZZATI ALL�INCLUSIONE LAVORATIVA DI PERSONE  DISOCCUPATE  CHE FRUISCONO DELLA MISURA DI  ESECUZIONE PENALE ESTERNA";"PERCORSI INTEGRATI FINALIZZATI ALL�INCLUSIONE LAVORATIVA DI PERSONE  DISOCCUPATE  CHE FRUISCONO DELLA MISURA DI  ESECUZIONE PENALE ESTERNA, attivit� rivolta a 8 persone costituita da:";16/11/2015 00:00:00;29/12/2016 00:00:00;41428,20;0,50;"008039";"008";"109";"31/10/2019"
"FSE";"2015-4199/RER";"E39J15000510006";"92050070371";"Fondazione Aldini Valeriani per lo sviluppo della cultura tecnica";"AZIENDA IN CARCERE: SVILUPPO DI COMPETENZE DELLA QUALIFICA DI OPERATORE MECCANICO DI SISTEMI - 4� EDIZIONE";"AZIENDA IN CARCERE: SVILUPPO DI COMPETENZE DELLA QUALIFICA DI OPERATORE MECCANICO DI SISTEMI - 4� EDIZIONE, attivit� rivolta a 12 persone costituita da:";10/12/2015 00:00:00;22/7/2016 00:00:00;51644,36;0,50;"008037";"008";"109";"31/10/2019"
"FSE";"2015-4203/RER";"E39J15000520006";"01139920332";"EN.A.I.P. DELLA PROVINCIA DI PIACENZA";"OPERATORE DI PRODUZIONE  PASTA FRESCA";"OPERATORE DI PRODUZIONE  PASTA FRESCA, attivit� rivolta a 15 persone costituita da:";29/12/2015 00:00:00;29/7/2016 00:00:00;42403,50;0,50;"008033";"008";"109";"31/10/2019"
"FSE";"2015-4205/RER";"E19J15000590006";"80090410376";"Associazione Emiliano - Romagnola di centri autonomi di formazione professionale - A.E.C.A";"Formazione per lo sviluppo di competenze professionalizzanti di persone in esecuzione penale";"Formazione per lo sviluppo di competenze professionalizzanti di persone in esecuzione penale, attivit� rivolta a 12 persone costituita da:";14/10/2015 00:00:00;22/3/2016 00:00:00;26686,50;0,50;"008036";"008";"109";"31/10/2019"
"FSE";"2015-4209/RER";"E99J15000370006";"80152680379";"IRECOOP EMILIA-ROMAGNA SOCIETA' COOPERATIVA";"FORMAZIONE PER L'INCLUSIONE SOCIO LAVORATIVA DI PERSONE IN ESECUZIONE PENALE- CASA CIRCONDARIALE DI MODENA";"FORMAZIONE PER L'INCLUSIONE SOCIO LAVORATIVA DI PERSONE IN ESECUZIONE PENALE- CASA CIRCONDARIALE DI MODENA, attivit� rivolta a 34 persone costituita da:";26/10/2015 00:00:00;10/8/2017 00:00:00;106043,00;0,50;"008036";"008";"109";"31/10/2019"
"FSE";"2015-4210/RER";"E99J15000380006";"80152680379";"IRECOOP EMILIA-ROMAGNA SOCIETA' COOPERATIVA";"FORMAZIONE PER L'INCLUSIONE SOCIO LAVORATIVA DI PERSONE IN ESECUZIONE PENALE- CASA DI LAVORO DI CASTELFRANCO EMILIA";"FORMAZIONE PER L'INCLUSIONE SOCIO LAVORATIVA DI PERSONE IN ESECUZIONE PENALE- CASA DI LAVORO DI CASTELFRANCO EMILIA, attivit� rivolta a 18 persone costituita da:";5/11/2015 00:00:00;15/6/2016 00:00:00;65884,00;0,50;"008036";"008";"109";"31/10/2019"
"FSE";"2015-4211/RER";"E49J15000300006";"80152680379";"IRECOOP EMILIA-ROMAGNA SOCIETA' COOPERATIVA";"RistorAzione: percorso per l'inclusione lavorativa a Villa Bianconi";"RistorAzione: percorso per l'inclusione lavorativa a Villa Bianconi, attivit� rivolta a 4 persone costituita da:";29/10/2015 00:00:00;29/7/2016 00:00:00;15511,20;0,50;"008037";"008";"109";"31/10/2019"
"FSE";"2015-4212/RER";"E99J15000390006";"80152680379";"IRECOOP EMILIA-ROMAGNA SOCIETA' COOPERATIVA";"OPERATORE DEL VERDE_UC 1 e UC 4";"OPERATORE DEL VERDE_UC 1 e UC 4, attivit� rivolta a 12 persone costituita da:";14/10/2015 00:00:00;23/6/2016 00:00:00;38100,50;0,50;"008034";"008";"109";"31/10/2019"
"FSE";"2015-4213/RER";"E89J15000410006";"80152680379";"IRECOOP EMILIA-ROMAGNA SOCIETA' COOPERATIVA";"AZIONI DI ACCOMPAGNAMENTO INDIVIDUALE, FORMAZIONE E TIROCINIO NEL SETTORE DELL'ASSEMBLAGGIO";"AZIONI DI ACCOMPAGNAMENTO INDIVIDUALE, FORMAZIONE E TIROCINIO NEL SETTORE DELL'ASSEMBLAGGIO, attivit� rivolta a 8 persone costituita da:";30/11/2015 00:00:00;1/6/2017 00:00:00;21734,50;0,50;"008035";"008";"109";"31/10/2019"
"FSE";"2015-4215/RER";"E89J15000400006";"80001790353";"Centro di formazione professionale Alberto Simonini";"OPERATORE MECCANICO DI SISTEMI";"OPERATORE MECCANICO DI SISTEMI, attivit� rivolta a 6 persone costituita da:";23/10/2015 00:00:00;30/8/2016 00:00:00;16883,30;0,50;"008035";"008";"109";"31/10/2019"
"FSE";"2015-4216/RER";"E39J15000490006";"80008070338";"Ente - Scuola per la Formazione professionale delle maestranze edili della Provincia di Piacenza";"Costruire per s�, costruire per tutti";"Costruire per s�, costruire per tutti, attivit� rivolta a 6 persone costituita da:";29/10/2015 00:00:00;31/12/2016 00:00:00;16415,70;0,50;"008033";"008";"109";"31/10/2019"
"FSE";"2015-4218/RER";"E89J15000430006";"02078610355";"Centro Studio e Lavoro ""La Cremeria"" s.r.l.";"Azioni formative per l'inclusione socio-lavorativa di persone detenute negli Istituti Penitenziari di Reggio Emilia";"Azioni formative per l'inclusione socio-lavorativa di persone detenute negli Istituti Penitenziari di Reggio Emilia, attivit� rivolta a 30 persone costituita da:";20/10/2015 00:00:00;14/6/2016 00:00:00;77405,68;0,50;"008035";"008";"109";"31/10/2019"
"FSE";"2015-4232/RER";"E79J15000280002";"01149540385";"CONSORZIO FERRARA INNOVAZIONE-Societ� Consortile a responsabilit� limitata ";"Tecnico per la progettazione e lo sviluppo di applicazioni informatiche, dall'e-commerce al social-commerce";"Tecnico per la progettazione e lo sviluppo di applicazioni informatiche, dall'e-commerce al social-commerce, attivit� rivolta a 20 persone costituita da un percorso IFTS (Istruzione e Formazione Tecnica Superiore) afferente alla  specializzazione nazionale in Tecniche per la progettazione e lo sviluppo di applicazioni informatiche. Il corso, della durata di 800 ore, � rivolto a 20 persone. Prevede il rilascio di un certificato di specializzazione tecnica superiore (IFTS).";27/11/2015 00:00:00;27/7/2016 00:00:00;118486,58;0,50;"008038";"008";"118";"31/10/2019"
"FSE";"2015-4233/RER";"E89J15000440002";"01164570358";"CIS  Scuola per la Gestione d'Impresa Societ� consortile a responsabilit� limitata";"Tecnico della programmazione della produzione e della logistica esperto in modelli lean";"Tecnico della programmazione della produzione e della logistica esperto in modelli lean, attivit� rivolta a 20 persone costituita da un percorso IFTS (Istruzione e Formazione Tecnica Superiore) afferente alla  specializzazione nazionale in Tecniche per la programmazione della produzione e la logistica. Il corso, della durata di 800 ore, � rivolto a 20 persone. Prevede il rilascio di un certificato di specializzazione tecnica superiore (IFTS).";25/11/2015 00:00:00;9/11/2016 00:00:00;111284,88;0,50;"008035";"008";"118";"31/10/2019"
"FSE";"2015-4234/RER";"E99J15000400002";"02526930363";"Nuova Didactica - societ� consortile a responsabilit� limitata";"Tecnico per la progettazione, lo sviluppo e la gestione di applicazioni informatiche";"Tecnico per la progettazione, lo sviluppo e la gestione di applicazioni informatiche, attivit� rivolta a 20 persone costituita da un percorso IFTS (Istruzione e Formazione Tecnica Superiore) afferente alla  specializzazione nazionale in Tecniche per la progettazione e lo sviluppo di applicazioni informatiche. Il corso, della durata di 800 ore, � rivolto a 20 persone. Prevede il rilascio di un certificato di specializzazione tecnica superiore (IFTS).";25/11/2015 00:00:00;20/10/2016 00:00:00;122040,40;0,50;"008036";"008";"118";"31/10/2019"
"FSE";"2015-4241/RER";"E99J15000410002";"02483780363";"FORMODENA - FORMAZIONE PROFESSIONALE PER I TERRITORI MODENESI SOC.CONS.A.R.L.";"Tecnico per la progettazione e realizzazione del prodotto moda";"Tecnico per la progettazione e realizzazione del prodotto moda, attivit� rivolta a 20 persone costituita da un percorso IFTS (Istruzione e Formazione Tecnica Superiore) afferente alla  specializzazione nazionale in Tecniche per la realizzazione artigianale di prodotti del made in Italy. Il corso, della durata di 800 ore, � rivolto a 20 persone. Prevede il rilascio di un certificato di specializzazione tecnica superiore (IFTS).";4/11/2015 00:00:00;19/7/2016 00:00:00;120810,00;0,50;"008036";"008";"118";"31/10/2019"
"FSE";"2015-4242/RER";"E19J15000610002";"01229920333";"TUTOR Societ� Consortile a responsabilit� limitata";"Tecnico per la programmazione della produzione e logistica nei settori meccanico e meccatronico";"Tecnico per la programmazione della produzione e logistica nei settori meccanico e meccatronico, attivit� rivolta a 20 persone costituita da un percorso IFTS (Istruzione e Formazione Tecnica Superiore) afferente alla  specializzazione nazionale in Tecniche per la programmazione della produzione e la logistica. Il corso, della durata di 800 ore, � rivolto a 20 persone. Prevede il rilascio di un certificato di specializzazione tecnica superiore (IFTS).";26/11/2015 00:00:00;22/7/2016 00:00:00;119060,00;0,50;"008033";"008";"118";"31/10/2019"
"FSE";"2015-4243/RER";"E99J15000420002";"04051790378";"Nuovo Cescot Emilia-Romagna s.c.r.l.";"Tecnico per la promozione turistica specializzato in strumenti web e social";"Tecnico per la promozione turistica specializzato in strumenti web e social, attivit� rivolta a 20 persone costituita da un percorso IFTS (Istruzione e Formazione Tecnica Superiore) afferente alla  specializzazione nazionale in Tecniche per la promozione di prodotti e servizi turistici con attenzione alle risorse, opportunit� ed eventi del territorio. Il corso, della durata di 800 ore, � rivolto a 20 persone. Prevede il rilascio di un certificato di specializzazione tecnica superiore (IFTS).";3/11/2015 00:00:00;21/6/2016 00:00:00;118960,22;0,50;"008099";"008";"118";"31/10/2019"
"FSE";"2015-4245/RER";"E69J15000480002";"80009910391";"Istituto Scuola Provinciale Edili - C.P.T. Ravenna";"Tecnico di monitoraggio e gestione del territorio e dell'ambiente con l'utilizzo di strumentazione topografica";"Tecnico di monitoraggio e gestione del territorio e dell'ambiente con l'utilizzo di strumentazione topografica, attivit� rivolta a 20 persone costituita da un percorso IFTS (Istruzione e Formazione Tecnica Superiore) afferente alla  specializzazione nazionale in Tecniche di monitoraggio e gestione del territorio e dell'ambiente. Il corso, della durata di 800 ore, � rivolto a 20 persone. Prevede il rilascio di un certificato di specializzazione tecnica superiore (IFTS).";27/11/2015 00:00:00;7/12/2016 00:00:00;116576,00;0,50;"008039";"008";"118";"31/10/2019"
"FSE";"2015-4246/RER";"E39J15000540002";"80007510375";"Istituto per l'Istruzione Professionale dei Lavoratori Edili della Provincia di Bologna";"Tecnico per l'organizzazione e gestione di cantieri edili con specializzazione in servizi di facility management";"Tecnico per l'organizzazione e gestione di cantieri edili con specializzazione in servizi di facility management, attivit� rivolta a 20 persone costituita da un percorso IFTS (Istruzione e Formazione Tecnica Superiore) afferente alla  specializzazione nazionale in Tecniche di organizzazione e gestione del cantiere edile. Il corso, della durata di 800 ore, � rivolto a 20 persone. Prevede il rilascio di un certificato di specializzazione tecnica superiore (IFTS).";12/11/2015 00:00:00;20/7/2016 00:00:00;122606,00;0,50;"008037";"008";"118";"31/10/2019"
"FSE";"2015-4247/RER";"E19J15000620002";"02604400404";"TECHNE Societ� consortile a responsabilit� limitata";"Tecnico di reti e servizi per le telecomunicazioni";"Tecnico di reti e servizi per le telecomunicazioni, attivit� rivolta a 20 persone costituita da un percorso IFTS (Istruzione e Formazione Tecnica Superiore) afferente alla  specializzazione nazionale in Tecniche per l�integrazione dei sistemi e di apparati TLC. Il corso, della durata di 800 ore, � rivolto a 20 persone. Prevede il rilascio di un certificato di specializzazione tecnica superiore (IFTS).";29/10/2015 00:00:00;30/9/2016 00:00:00;116246,00;0,50;"008040";"008";"118";"31/10/2019"
"FSE";"2015-4248/RER";"E89J15000450002";"93002400369";"Cerform";"Tecnico per il design e la comunicazione per la ceramica industriale";"Tecnico per il design e la comunicazione per la ceramica industriale, attivit� rivolta a 22 persone costituita da un percorso IFTS (Istruzione e Formazione Tecnica Superiore) afferente alla  specializzazione nazionale in Tecniche di disegno e progettazione industriale. Il corso, della durata di 800 ore, � rivolto a 22 persone. Prevede il rilascio di un certificato di specializzazione tecnica superiore (IFTS).";30/10/2015 00:00:00;14/12/2016 00:00:00;117157,00;0,50;"008036";"008";"118";"31/10/2019"
"FSE";"2015-4249/RER";"E99J15000430002";"02020330342";"FORMA FUTURO Soc.Cons. r.l.";"Tecnico di allestimento scenico per cinema e teatro";"Tecnico di allestimento scenico per cinema e teatro, attivit� rivolta a 20 persone costituita da un percorso IFTS (Istruzione e Formazione Tecnica Superiore) afferente alla  specializzazione nazionale in Tecniche di allestimento scenico. Il corso, della durata di 800 ore, � rivolto a 20 persone. Prevede il rilascio di un certificato di specializzazione tecnica superiore (IFTS).";24/11/2015 00:00:00;26/10/2016 00:00:00;125480,00;0,50;"008034";"008";"118";"31/10/2019"
"FSE";"2015-4250/RER";"E39J15000550002";"01523560389";"CENTOFORM S.R.L.";"Tecnico per il disegno meccanico e la progettazione industriale";"Tecnico per il disegno meccanico e la progettazione industriale, attivit� rivolta a 20 persone costituita da un percorso IFTS (Istruzione e Formazione Tecnica Superiore) afferente alla  specializzazione nazionale in Tecniche di disegno e progettazione industriale. Il corso, della durata di 800 ore, � rivolto a 20 persone. Prevede il rilascio di un certificato di specializzazione tecnica superiore (IFTS).";11/11/2015 00:00:00;19/7/2016 00:00:00;114424,00;0,50;"008038";"008";"118";"31/10/2019"
"FSE";"2015-4252/RER";"E39J15000560002";"02493650358";"DEMETRA FORMAZIONE S.R.L.";"Tecnico della produzione multimediale per la comunicazione della cultura";"Tecnico della produzione multimediale per la comunicazione della cultura, attivit� rivolta a 20 persone costituita da un percorso IFTS (Istruzione e Formazione Tecnica Superiore) afferente alla  specializzazione nazionale in Tecniche di produzione multimediale. Il corso, della durata di 800 ore, � rivolto a 20 persone. Prevede il rilascio di un certificato di specializzazione tecnica superiore (IFTS).";25/11/2015 00:00:00;29/7/2016 00:00:00;118436,00;0,50;"008037";"008";"118";"31/10/2019"
"FSE";"2015-4253/RER";"E99J15000440002";"02291500409";"Fondazione En.A.I.P.  S. Zavatta Rimini";"Tecnico la progettazione e lo sviluppo di applicazioni informatiche";"Tecnico la progettazione e lo sviluppo di applicazioni informatiche, attivit� rivolta a 20 persone costituita da un percorso IFTS (Istruzione e Formazione Tecnica Superiore) afferente alla  specializzazione nazionale in Tecniche per la progettazione e lo sviluppo di applicazioni informatiche. Il corso, della durata di 800 ore, � rivolto a 20 persone. Prevede il rilascio di un certificato di specializzazione tecnica superiore (IFTS).";26/10/2015 00:00:00;10/6/2016 00:00:00;119528,00;0,50;"008099";"008";"118";"31/10/2019"
"FSE";"2015-4255/RER";"E29J15000340002";"04298010374";"Ecipar Soc.Cons.a r.l.-Formazione e servizi innovativi per l'artigianato e le P.M.I.";"Tecnico per la progettazione il� design e la fabbricazione digitale 3d";"Tecnico per la progettazione il� design e la fabbricazione digitale 3d, attivit� rivolta a 20 persone costituita da un percorso IFTS (Istruzione e Formazione Tecnica Superiore) afferente alla  specializzazione nazionale in Tecniche per la realizzazione artigianale di prodotti del made in Italy. Il corso, della durata di 800 ore, � rivolto a 20 persone. Prevede il rilascio di un certificato di specializzazione tecnica superiore (IFTS).";17/11/2015 00:00:00;15/11/2016 00:00:00;116528,00;0,50;"008039";"008";"118";"31/10/2019"
"FSE";"2015-4256/RER";"E99J15000450002";"04298010374";"Ecipar Soc.Cons.a r.l.-Formazione e servizi innovativi per l'artigianato e le P.M.I.";"Tecnico per lo sviluppo di applicazioni informatiche per l'Internet delle cose con linguaggio java";"Tecnico per lo sviluppo di applicazioni informatiche per l'Internet delle cose con linguaggio java, attivit� rivolta a 20 persone costituita da un percorso IFTS (Istruzione e Formazione Tecnica Superiore) afferente alla  specializzazione nazionale in Tecniche per la progettazione e lo sviluppo di applicazioni informatiche. Il corso, della durata di 800 ore, � rivolto a 20 persone. Prevede il rilascio di un certificato di specializzazione tecnica superiore (IFTS).";11/11/2015 00:00:00;27/10/2016 00:00:00;119480,00;0,50;"008036";"008";"118";"31/10/2019"
"FSE";"2015-4257/RER";"E39J15000570002";"04298010374";"Ecipar Soc.Cons.a r.l.-Formazione e servizi innovativi per l'artigianato e le P.M.I.";"Tecnico per la creazione e la produzione multimediale";"Tecnico per la creazione e la produzione multimediale, attivit� rivolta a 20 persone costituita da un percorso IFTS (Istruzione e Formazione Tecnica Superiore) afferente alla  specializzazione nazionale in Tecniche di produzione multimediale. Il corso, della durata di 800 ore, � rivolto a 20 persone. Prevede il rilascio di un certificato di specializzazione tecnica superiore (IFTS).";20/11/2015 00:00:00;28/10/2016 00:00:00;118496,00;0,50;"008037";"008";"118";"31/10/2019"
"FSE";"2015-4258/RER";"E89J15000460002";"00447280355";"Edili Reggio Emilia - Scuola - Societ� Cooperativa Sociale";"Tecnico di progettazione, modellazione e gestione integrata per la riqualificazione sostenibile del patrimonio edilizio";"Tecnico di progettazione, modellazione e gestione integrata per la riqualificazione sostenibile del patrimonio edilizio, attivit� rivolta a 20 persone costituita da un percorso IFTS (Istruzione e Formazione Tecnica Superiore) afferente alla  specializzazione nazionale in Tecniche innovative per l'edilizia. Il corso, della durata di 800 ore, � rivolto a 20 persone. Prevede il rilascio di un certificato di specializzazione tecnica superiore (IFTS).";15/10/2015 00:00:00;12/10/2016 00:00:00;124496,00;0,50;"008035";"008";"118";"31/10/2019"
"FSE";"2015-4260/RER";"E69J15000490002";"92013540395";"Il Sestante Romagna s.r.l.";"Tecnico per la programmazione della produzione e la logistica";"Tecnico per la programmazione della produzione e la logistica, attivit� rivolta a 20 persone costituita da un percorso IFTS (Istruzione e Formazione Tecnica Superiore) afferente alla  specializzazione nazionale in Tecniche per la programmazione della produzione e la logistica. Il corso, della durata di 800 ore, � rivolto a 20 persone. Prevede il rilascio di un certificato di specializzazione tecnica superiore (IFTS).";25/11/2015 00:00:00;29/10/2016 00:00:00;115516,00;0,50;"008039";"008";"118";"31/10/2019"
"FSE";"2015-4261/RER";"E89J15000470002";"80061110377";"IAL Innovazione Apprendimento Lavoro Emilia Romagna S.r.l. Impresa Sociale";"Tecnico delle produzioni tipiche e della tradizione enogastronomica del territorio";"Tecnico delle produzioni tipiche e della tradizione enogastronomica del territorio, attivit� rivolta a 20 persone costituita da un percorso IFTS (Istruzione e Formazione Tecnica Superiore) afferente alla  specializzazione nazionale in Tecniche di progettazione e realizzazione di processi artigianali e di trasformazione agroalimentare con produzioni tipiche del territorio e della tradizione enogastronomica. Il corso, della durata di 800 ore, � rivolto a 20 persone. Prevede il rilascio di un certificato di specializzazione tecnica superiore (IFTS).";25/11/2015 00:00:00;3/9/2016 00:00:00;112310,00;0,50;"008037";"008";"118";"31/10/2019"
"FSE";"2015-4262/RER";"E19J15000630002";"80061110377";"IAL Innovazione Apprendimento Lavoro Emilia Romagna S.r.l. Impresa Sociale";"Tecnico per la valorizzazione delle tipicit� enogastronomiche del territorio";"Tecnico per la valorizzazione delle tipicit� enogastronomiche del territorio, attivit� rivolta a 20 persone costituita da un percorso IFTS (Istruzione e Formazione Tecnica Superiore) afferente alla  specializzazione nazionale in Tecniche di progettazione e realizzazione di processi artigianali e di trasformazione agroalimentare con produzioni tipiche del territorio e della tradizione enogastronomica. Il corso, della durata di 800 ore, � rivolto a 20 persone. Prevede il rilascio di un certificato di specializzazione tecnica superiore (IFTS).";18/11/2015 00:00:00;15/11/2016 00:00:00;114278,00;0,50;"008036";"008";"118";"31/10/2019"
"FSE";"2015-4263/RER";"E69J15000500002";"02450600396";"SVILUPPO PMI SRL";"Tecnico per l�automazione industriale specializzato in manutenzione e programmazione PLC";"Tecnico per l�automazione industriale specializzato in manutenzione e programmazione PLC, attivit� rivolta a 20 persone costituita da un percorso IFTS (Istruzione e Formazione Tecnica Superiore) afferente alla  specializzazione nazionale in Tecniche di installazione e manutenzione di impianti civili e industriali. Il corso, della durata di 800 ore, � rivolto a 20 persone. Prevede il rilascio di un certificato di specializzazione tecnica superiore (IFTS).";10/11/2015 00:00:00;14/7/2016 00:00:00;123528,00;0,50;"008039";"008";"118";"31/10/2019"
"FSE";"2015-4265/RER";"E39J15000580002";"03109320378";"ISCOM Emilia- Romagna";"Tecnico della logistica integrata e delle spedizioni";"Tecnico della logistica integrata e delle spedizioni, attivit� rivolta a 20 persone costituita da un percorso IFTS (Istruzione e Formazione Tecnica Superiore) afferente alla  specializzazione nazionale in Tecniche per la programmazione della produzione e la logistica. Il corso, della durata di 800 ore, � rivolto a 20 persone. Prevede il rilascio di un certificato di specializzazione tecnica superiore (IFTS).";24/11/2015 00:00:00;30/6/2016 00:00:00;113022,00;0,50;"008037";"008";"118";"31/10/2019"
"FSE";"2015-4267/RER";"E39J15000590002";"92050070371";"Fondazione Aldini Valeriani per lo sviluppo della cultura tecnica";"Tecnico per l'industrializzazione del prodotto e del processo della meccanica";"Tecnico per l'industrializzazione del prodotto e del processo della meccanica, attivit� rivolta a 20 persone costituita da un percorso IFTS (Istruzione e Formazione Tecnica Superiore) afferente alla  specializzazione nazionale in Tecniche di industrializzazione del prodotto e del processo. Il corso, della durata di 800 ore, � rivolto a 20 persone. Prevede il rilascio di un certificato di specializzazione tecnica superiore (IFTS).";11/11/2015 00:00:00;15/6/2016 00:00:00;115636,91;0,50;"008037";"008";"118";"31/10/2019"
"FSE";"2015-4268/RER";"E39J15000600002";"92050070371";"Fondazione Aldini Valeriani per lo sviluppo della cultura tecnica";"Tecnico per la sicurezza delle reti e dei sistemi informatici";"Tecnico per la sicurezza delle reti e dei sistemi informatici, attivit� rivolta a 20 persone costituita da un percorso IFTS (Istruzione e Formazione Tecnica Superiore) afferente alla  specializzazione nazionale in Tecniche per la sicurezza delle reti e dei sistemi. Il corso, della durata di 800 ore, � rivolto a 20 persone. Prevede il rilascio di un certificato di specializzazione tecnica superiore (IFTS).";26/10/2015 00:00:00;18/6/2016 00:00:00;124725,00;0,50;"008037";"008";"118";"31/10/2019"
"FSE";"2015-4269/RER";"E99J15000460002";"92065520345";"CISITA Parma S.r.l.";"Tecnico specialista in applicazioni informatiche mobile";"Tecnico specialista in applicazioni informatiche mobile, attivit� rivolta a 20 persone costituita da un percorso IFTS (Istruzione e Formazione Tecnica Superiore) afferente alla  specializzazione nazionale in Tecniche per la progettazione e lo sviluppo di applicazioni informatiche. Il corso, della durata di 800 ore, � rivolto a 20 persone. Prevede il rilascio di un certificato di specializzazione tecnica superiore (IFTS).";24/11/2015 00:00:00;21/9/2016 00:00:00;119528,00;0,50;"008034";"008";"118";"31/10/2019"
"FSE";"2015-4270/RER";"E99J15000470002";"92065520345";"CISITA Parma S.r.l.";"Tecnico per la manutenzione di macchine e impianti per l'industria agroalimentare";"Tecnico per la manutenzione di macchine e impianti per l'industria agroalimentare, attivit� rivolta a 20 persone costituita da un percorso IFTS (Istruzione e Formazione Tecnica Superiore) afferente alla  specializzazione nazionale in Tecniche di installazione e manutenzione di impianti civili e industriali. Il corso, della durata di 800 ore, � rivolto a 20 persone. Prevede il rilascio di un certificato di specializzazione tecnica superiore (IFTS).";25/11/2015 00:00:00;13/10/2016 00:00:00;119528,00;0,50;"008034";"008";"118";"31/10/2019"
"FSE";"2015-4272/RER";"E19J15000640002";"04260000379";"FORM.ART. Societ� Consortile a r.l.";"Tecnico per la progettazione e lo sviluppo di applicazioni informatiche specializzato in social media management";"Tecnico per la progettazione e lo sviluppo di applicazioni informatiche specializzato in social media management, attivit� rivolta a 20 persone costituita da un percorso IFTS (Istruzione e Formazione Tecnica Superiore) afferente alla  specializzazione nazionale in Tecniche per la progettazione e lo sviluppo di applicazioni informatiche. Il corso, della durata di 800 ore, � rivolto a 20 persone. Prevede il rilascio di un certificato di specializzazione tecnica superiore (IFTS).";16/11/2015 00:00:00;22/7/2016 00:00:00;116012,00;0,50;"008040";"008";"118";"31/10/2019"
"FSE";"2015-4274/RER";"E19J15000650002";"02447460409";"ASSOFORM ROMAGNA S.C. a r.l.";"Tecnico della qualit� e della sicurezza dei processi nell�agro-industria";"Tecnico della qualit� e della sicurezza dei processi nell�agro-industria, attivit� rivolta a 20 persone costituita da un percorso IFTS (Istruzione e Formazione Tecnica Superiore) afferente alla  specializzazione nazionale in Tecniche dei sistemi di sicurezza ambientali e qualit� dei processi industriali. Il corso, della durata di 800 ore, � rivolto a 20 persone. Prevede il rilascio di un certificato di specializzazione tecnica superiore (IFTS).";18/11/2015 00:00:00;28/9/2016 00:00:00;112450,00;0,50;"008040";"008";"118";"31/10/2019"
"FSE";"2015-4279/RER";"E39J15000610002";"80008070338";"Ente - Scuola per la Formazione professionale delle maestranze edili della Provincia di Piacenza";"Tecnico per la gestione dell'innovazione tecnologica del cantiere";"Tecnico per la gestione dell'innovazione tecnologica del cantiere, attivit� rivolta a 20 persone costituita da un percorso IFTS (Istruzione e Formazione Tecnica Superiore) afferente alla  specializzazione nazionale in Tecniche di organizzazione e gestione del cantiere edile. Il corso, della durata di 800 ore, � rivolto a 20 persone. Prevede il rilascio di un certificato di specializzazione tecnica superiore (IFTS).";23/11/2015 00:00:00;25/11/2016 00:00:00;118106,00;0,50;"008033";"008";"118";"31/10/2019"
"FSE";"2015-4282/RER";"E89J15000480002";"00453310351";"I.F.O.A. Istituto Formazione Operatori Aziendali";"Tecnico di disegno e progettazione industriale";"Tecnico di disegno e progettazione industriale, attivit� rivolta a 20 persone costituita da un percorso IFTS (Istruzione e Formazione Tecnica Superiore) afferente alla  specializzazione nazionale in Tecniche di disegno e progettazione industriale. Il corso, della durata di 800 ore, � rivolto a 20 persone. Prevede il rilascio di un certificato di specializzazione tecnica superiore (IFTS).";10/11/2015 00:00:00;30/11/2016 00:00:00;117064,00;0,50;"008035";"008";"118";"31/10/2019"
"FSE";"2015-4283/RER";"E99J15000480002";"00453310351";"I.F.O.A. Istituto Formazione Operatori Aziendali";"Tecnico di prodotto e di processo nell�agro-industria";"Tecnico di prodotto e di processo nell�agro-industria, attivit� rivolta a 20 persone costituita da un percorso IFTS (Istruzione e Formazione Tecnica Superiore) afferente alla  specializzazione nazionale in Tecniche di industrializzazione del prodotto e del processo. Il corso, della durata di 800 ore, � rivolto a 20 persone. Prevede il rilascio di un certificato di specializzazione tecnica superiore (IFTS).";26/11/2015 00:00:00;16/12/2016 00:00:00;117512,00;0,50;"008034";"008";"118";"31/10/2019"
"FSE";"2015-4284/RER";"E89J15000490002";"00453310351";"I.F.O.A. Istituto Formazione Operatori Aziendali";"Tecnico per la realizzazione e internazionalizzazione dei prodotti agro-alimentari made in Italy";"Tecnico per la realizzazione e internazionalizzazione dei prodotti agro-alimentari made in Italy, attivit� rivolta a 20 persone costituita da un percorso IFTS (Istruzione e Formazione Tecnica Superiore) afferente alla  specializzazione nazionale in Tecniche per la realizzazione artigianale di prodotti del made in Italy. Il corso, della durata di 800 ore, � rivolto a 20 persone. Prevede il rilascio di un certificato di specializzazione tecnica superiore (IFTS).";18/11/2015 00:00:00;20/12/2016 00:00:00;117215,00;0,50;"008035";"008";"118";"31/10/2019"
"FSE";"2015-4285/RER";"E39J15000620002";"80090410376";"Associazione Emiliano - Romagnola di centri autonomi di formazione professionale - A.E.C.A";"Tecnico per la comunicazione e il multimedia";"Tecnico per la comunicazione e il multimedia, attivit� rivolta a 20 persone costituita da un percorso IFTS (Istruzione e Formazione Tecnica Superiore) afferente alla  specializzazione nazionale in Tecniche di produzione multimediale. Il corso, della durata di 800 ore, � rivolto a 20 persone. Prevede il rilascio di un certificato di specializzazione tecnica superiore (IFTS).";9/11/2015 00:00:00;8/7/2016 00:00:00;125496,00;0,50;"008037";"008";"118";"31/10/2019"
"FSE";"2015-4287/RER";"E39J15000630002";"01035560331";"FOR.P.IN. Societ� Consortile a responsabilit� limitata";"Tecnico per l�amministrazione economico-finanziaria e il controllo di imprese orientate all'export";"Tecnico per l�amministrazione economico-finanziaria e il controllo di imprese orientate all'export, attivit� rivolta a 22 persone costituita da un percorso IFTS (Istruzione e Formazione Tecnica Superiore) afferente alla  specializzazione nazionale in Tecniche per l�amministrazione economico-finanziaria. Il corso, della durata di 800 ore, � rivolto a 22 persone. Prevede il rilascio di un certificato di specializzazione tecnica superiore (IFTS).";25/11/2015 00:00:00;3/11/2016 00:00:00;114497,43;0,50;"008033";"008";"118";"31/10/2019"
"FSE";"2015-4289/RER";"E89J15000500002";"01033690403";"CERCAL S.P.A. CONSORTILE";"Tecnico per la progettazione e la realizzazione di prodotti calzaturieri";"Tecnico per la progettazione e la realizzazione di prodotti calzaturieri, attivit� rivolta a 20 persone costituita da un percorso IFTS (Istruzione e Formazione Tecnica Superiore) afferente alla  specializzazione nazionale in Tecniche per la realizzazione artigianale di prodotti del made in Italy. Il corso, della durata di 800 ore, � rivolto a 20 persone. Prevede il rilascio di un certificato di specializzazione tecnica superiore (IFTS).";9/11/2015 00:00:00;30/9/2016 00:00:00;120680,00;0,50;"008040";"008";"118";"31/10/2019"
"FSE";"2015-4297/RER";"E49D15000430001";"80090410376";"Associazione Emiliano - Romagnola di centri autonomi di formazione professionale - A.E.C.A";"AZIONE REGIONALE PER L'INTEGRAZIONE PROGETTUALE E OPERATIVA DI SUPPORTO AL
SISTEMA REGIONALE DELL'ISTRUZIONE E FORMAZIONE PROFESSIONALE PER IL TRIENNIO A
QUALIFICA 2015/2017.";"AZIONE REGIONALE PER L'INTEGRAZIONE PROGETTUALE E OPERATIVA DI SUPPORTO AL
SISTEMA REGIONALE DELL'ISTRUZIONE E FORMAZIONE PROFESSIONALE PER IL TRIENNIO A
QUALIFICA 2015/2017.";23/7/2015 00:00:00;30/9/2016 00:00:00;3733398,09;0,50;"008033:::008035:::008037:::008038:::008039:::008099";"008";"115";"31/10/2019"
"FSE";"2015-4400/RER";"E39J15000710006";"80090410376";"Associazione Emiliano - Romagnola di centri autonomi di formazione professionale - A.E.C.A";"Percorsi Integrati finalizzati all'inclusione lavorativa di minori e giovani-adulti sottoposti a procedimento penale";"Percorsi Integrati finalizzati all'inclusione lavorativa di minori e giovani-adulti sottoposti a procedimento penale, attivit� rivolta a 28 persone costituita da:";27/11/2015 00:00:00;30/5/2017 00:00:00;112880,80;0,50;"008034:::008037:::008038:::008040";"008";"109";"31/10/2019"
"FSE";"2015-4401/RER";"E39J15000700006";"80007510375";"Istituto per l'Istruzione Professionale dei Lavoratori Edili della Provincia di Bologna";"PRATELLO: PRAtica, TEcnica, Laboratorio per Lavorare e creare Opportunit�";"PRATELLO: PRAtica, TEcnica, Laboratorio per Lavorare e creare Opportunit�, attivit� rivolta a 36 persone costituita da:";15/10/2015 00:00:00;27/7/2016 00:00:00;66848,90;0,50;"008037";"008";"109";"31/10/2019"
"FSE";"2015-4402/RER";"E39J15000720006";"92049540377";"Fondazione Opera Madonna del Lavoro";"PERCORSI DI RISTORAZIONE IN I.P.M.";"PERCORSI DI RISTORAZIONE IN I.P.M., attivit� rivolta a 24 persone costituita da:";19/10/2015 00:00:00;5/1/2016 00:00:00;15605,40;0,50;"008037";"008";"109";"31/10/2019"
"FSE";"2015-4537/RER";"E39J15003000002";"92050070371";"Fondazione Aldini Valeriani per lo sviluppo della cultura tecnica";"Operatore meccatronico dell'autoriparazione - IeFP 2015/2017";"Operatore meccatronico dell'autoriparazione - IeFP 2015/2017, attivit� rivolta a 36 persone costituita da:";15/9/2015 00:00:00;15/6/2017 00:00:00;490830,50;0,50;"008037";"008";"103";"31/10/2019"
"FSE";"2015-4538/RER";"E39J15003010002";"92050070371";"Fondazione Aldini Valeriani per lo sviluppo della cultura tecnica";"Progettazione e produzione meccanica ed elettromeccanica - IeFP 2015/2017";"Progettazione e produzione meccanica ed elettromeccanica - IeFP 2015/2017, attivit� rivolta a 36 persone costituita da:";15/9/2015 00:00:00;21/6/2017 00:00:00;473965,00;0,50;"008037";"008";"103";"31/10/2019"
"FSE";"2015-4539/RER";"E39J15002990002";"01820051207";"ECIPAR Bologna - Soc. Cons. a r.l.";"OPERATORE ALLE CURE ESTETICHE - ""IeFP 2015/2017""";"OPERATORE ALLE CURE ESTETICHE - IeFP 2015/2017, attivit� rivolta a 60 persone costituita da:";15/9/2015 00:00:00;27/6/2017 00:00:00;719582,00;0,50;"008037";"008";"103";"31/10/2019"
"FSE";"2015-4542/RER";"E39J15003020002";"80007510375";"Istituto per l'Istruzione Professionale dei Lavoratori Edili della Provincia di Bologna";"OPERATORE EDILE ALLE STRUTTURE - IeFP 2015/2017";"OPERATORE EDILE ALLE STRUTTURE - IeFP 2015/2017, attivit� rivolta a 20 persone costituita da:";15/9/2015 00:00:00;22/6/2017 00:00:00;233778,00;0,50;"008037";"008";"103";"31/10/2019"
"FSE";"2015-4543/RER";"E99J15001340002";"91126520401";"FONDAZIONE VALMARECCHIA";"OPERATORE AGRO-ALIMENTARE - IeFP 2014/2016";"OPERATORE AGRO-ALIMENTARE - IeFP 2014/2016, attivit� rivolta a 18 persone costituita da:";15/9/2015 00:00:00;9/6/2017 00:00:00;235103,00;0,50;"008099";"008";"103";"31/10/2019"
"FSE";"2015-4552/RER";"E99J15001350002";"02416950406";"OSFIN - F.P. OPERA SAN FILIPPO NERI - FORMAZIONE PROFESSIONALE";"OPERATORE DELLA PROMOZIONE ED ACCOGLIENZA TURISTICA Iefp 2015/2017";"OPERATORE DELLA PROMOZIONE ED ACCOGLIENZA TURISTICA Iefp 2015/2017, attivit� rivolta a 18 persone costituita da:";15/9/2015 00:00:00;13/6/2017 00:00:00;232961,00;0,50;"008099";"008";"103";"31/10/2019"
"FSE";"2015-4553/RER";"E99J15001360002";"02416950406";"OSFIN - F.P. OPERA SAN FILIPPO NERI - FORMAZIONE PROFESSIONALE";"OPERATORE DEL PUNTO VENDITA Iefp 2015/2017";"OPERATORE DEL PUNTO VENDITA Iefp 2015/2017, attivit� rivolta a 18 persone costituita da:";15/9/2015 00:00:00;14/6/2017 00:00:00;246203,75;0,50;"008099";"008";"103";"31/10/2019"
